Workbook

Sheet LadenLossen (34) (hidden)
A1: 02:00:00 | B1: Laden/lossen (beschikbaarheidstijd (behalve bij Rood )) | J1: Week 34 | N1: = zelf laden/lossen
J4: Totaal | N4: Wachturen laden/lossen
B5: Laden | F5: Lossen | J5: Laden | K5: Lossen | L5: Totaal uren | N5: Laden | P5: Lossen | Q5: Totaal uren
A6: Nr. | J6: =SUM(J8:J49) -> 0.2070486111 | K6: =SUM(K8:K49) -> 0.07920138889 | L6: =J6+K6 -> 0.28625 | N6: =SUM(N8:N25) -> 0.08891203704 | P6: =SUM(P8:P25) -> 0 | Q6: =N6+P6 -> 0.08891203704
A7: 0 | B7: begin | D7: eind | F7: begin | H7: eind
A8: 1 | F8: 2015-08-18T10:39:08 | H8: 2015-08-18T10:56:11 | J8: =IF(D8<>"",IF(D8-B8>TIME(2,0,0),TIME(2,0,0),D8-B8),"") ->  | K8: =IF(H8<>"",IF((H8-F8)>TIME(2,0,0),TIME(2,0,0),H8-F8),"") -> 0.01184027778 | N8: =IF(D8-B8>TIME(2,0,0),D8-B8-TIME(2,0,0),"") ->  | P8: =IF((H8-F8)>TIME(2,0,0),H8-F8-TIME(2,0,0),"") -> 
A9: 2 | B9: 2015-08-18T10:57:12 | D9: 2015-08-18T12:02:19 | J9: 0.04521990741
A10: 3 | B10: 2015-08-19T07:02:04 | D10: 2015-08-19T08:26:05 | J10: 0.05834490741
A11: 4 | F11: 2015-08-20T07:02:52 | H11: 2015-08-20T08:26:52 | K11: 0.05833333333
A12: 5 | B12: 2015-08-21T06:34:34 | D12: 2015-08-21T10:42:36 | J12: 0.08333333333 | N12: 0.08891203704
A13: 6 | B13: 2015-08-22T07:50:43 | D13: 2015-08-22T08:19:44 | J13: 0.02015046296
A14: 7 | F14: 2015-08-23T06:29:38 | H14: 2015-08-23T06:42:38 | K14: 0.009027777778
J16: =IF(D16<>"",IF(D16-B16>TIME(2,0,0),TIME(2,0,0),D16-B16),"") -> 
L25: =IF(H25<>"",H25-F25,"") -> 
J26: =IF(D26<>"",D26-B26,"") ->  | K26: =IF(H26<>"",H26-F26,"") -> 

Sheet Werkuren
A1: 3.75 | F1: 1.875 | G1: 1900-01-02T02:20:00 | I1: 14:19:00 | U1: Week ver- bruik | V1: Weekend- rust tekort ( ja) (nee) | W1: Kilometer- stand start rit | X1: 1.875
C2: = | D2: Ziekteverzuim | F2: Start | G2: Einde | H2: Totaal tijd | J2: Niet vergoede tijd | K2: Werktijd zelf Laden/Lossen/tanken/ duane/Les volgen | L2: I + K = AT | M2: Niet zelf Laden/Lossen Beschikbaar-heidstijd = BT | N2: Rest tijd = file stoppen/ starten, garage enz…. | O2: Totale betaalde werktijd + gewaarborgd loon | P2: Wachttijd buiten de 2 uur bij laden/lossen, enz | R2: Nach-ten | T2: Ver- plaat -sing | X2: ok
B3: 3 | C3: = | D3: Verlof
C4: = | D4: Zaterdagen | Q4: + 11 uur | S4: rijtijd voor rest week
C5: = | D5: Zon/Feestdag | H5: =NOW() -> 42368.22114
B6: Einde land | D6: Weekdag | E6: = | G6: Maaltijdcheques | Q6: - 11 uur
D11: Zaterdag | E11: 1 | F11: 2015-12-13T05:05:00 | G11: 2015-12-13T14:00:00 | H11: =G11-F11 -> 0.3715277778 | I11: 0.125 | L11: =I11+K11+N11 -> 0.125 | O11: =L11+M11+P11 -> 0.125 | S11: 0.3291666667 | T11: 1 | V11: (-) 00
D12: Week 01
D14: Maandag | E14: 1 | F14: 2016-01-05 | G14: 2016-01-05 | H14: =G14-F14 -> 0 | L14: =I14+K14+N14 -> 0 | O14: =L14+M14+P14 -> 0 | Q14: =F14-G11 -> 22.41666667 | S14: =MIN("56:00:00",A1-I8) -> 2.333333333 | T14: 1 | V14: =IF(Q14<X1,X1-Q14,X2) -> ok
D15: Dinsdag | E15: 1 | F15: 2016-01-06 | G15: 2016-01-06 | H15: 0 | L15: =I15+K15+N15 -> 0 | O15: 0 | Q15: =F15-G14 -> 1 | S15: =S14-I14 -> 2.333333333 | T15: =IF(R15=1,0,1) -> 1 | V15: (-) 00
D16: Woensdag | E16: 1 | F16: 2016-01-07 | G16: 2016-01-07 | H16: 0 | L16: =I16+K16+N16 -> 0 | O16: 0 | Q16: 1 | S16: 2.333333333 | T16: =IF(R16=1,0,1) -> 1 | V16: (-) 00
D17: Donderdag | E17: 1 | F17: 2016-01-08 | G17: 2016-01-08 | H17: 0 | L17: =I17+K17+N17 -> 0 | O17: 0 | Q17: 1 | S17: 2.333333333 | T17: =IF(R17=1,0,1) -> 1 | V17: (-) 00
D18: Vrijdag | E18: 1 | F18: 2016-01-09 | G18: 2016-01-09 | H18: 0 | L18: =I18+K18+N18 -> 0 | O18: 0 | Q18: 1 | S18: 2.333333333 | T18: =IF(R18=1,0,1) -> 1 | V18: (-) 00
D19: Zaterdag | E19: 1 | F19: 2016-01-10 | G19: 2016-01-10 | H19: 0 | L19: =(I19+K19+N19)*150% -> 0 | O19: 0 | Q19: 1 | S19: 2.333333333 | T19: 1 | V19: (-) 00
D20: Zondag | F20: 2016-01-11 | G20: 2016-01-11 | H20: 0 | L20: =I20+K20+N20 -> 0 | O20: 0 | Q20: 1 | S20: 2.333333333 | T20: =IF(R20=1,0,1) -> 1 | V20: (-) 00
D21: =E19+E14+E15+E16+E17+E20+E18 -> 6
A22: Totaal week 01 | I22: =I20+I19+I18+I17+I16+I15+I14 -> 0 | J22: 0 | K22: 0 | L22: 0 | M22: 0 | N22: 0 | O22: 0 | R22: =R16+R20+R19+R18+R17+R14+R15 -> 0 | T22: =T16+T20+T19+T18+T17+T14+T15 -> 7
A24: uittreksel (01) Totaal (week 01) Januari '20 | I24: =I22 -> 0 | J24: 0 | K24: 0 | L24: 0 | M24: 0 | N24: 0 | O24: =M24+L24+P24 -> 0 | P24: =P15+P14+P16+P17+P18+P19+P20 -> 0 | R24: =R22 -> 0 | T24: =T22 -> 7
D26: Week 02
D28: Maandag | E28: 1 | F28: 2016-01-12 | G28: 2016-01-12 | H28: =G28-F28 -> 0 | L28: =I28+K28+N28 -> 0 | O28: =L28+M28+P28 -> 0 | Q28: 1.416666667 | S28: =MIN("56:00:00",A1-I22) -> 2.333333333 | T28: 1 | V28: =IF(Q28<X1,X1-Q28,X2) -> 0.4583333333
D29: Dinsdag | E29: 1 | F29: 2016-01-13 | G29: 2016-01-13 | H29: 0 | L29: 0 | O29: 0 | Q29: 0.7916666667 | S29: =S28-I28 -> 2.333333333 | T29: =IF(R29=1,0,1) -> 1 | V29: =IF(Q29>"20:00:01",V28,X2) -> ok
D30: Woensdag | E30: 1 | F30: 2016-01-14 | G30: 2016-01-14 | H30: 0 | L30: 0 | O30: 0 | Q30: =F30-G29 -> 1 | S30: 2.333333333 | T30: =IF(R30=1,0,1) -> 1 | V30: =IF(Q30>"20:00:01",V29,X2) -> ok
D31: Donderdag | E31: 1 | F31: 2016-01-15 | G31: 2016-01-15 | H31: 0 | L31: 0 | O31: 0 | Q31: 1 | S31: 2.333333333 | T31: =IF(R31=1,0,1) -> 1 | V31: =IF(Q31>"20:00:01",V30,X2) -> ok
D32: Vrijdag | E32: 1 | F32: 2016-01-16 | G32: 2016-01-16 | H32: 0 | L32: 0 | O32: 0 | Q32: 1 | S32: 2.333333333 | T32: =IF(R32=1,0,1) -> 1 | V32: =IF(Q32>"20:00:01",V31,X2) -> ok
D33: Zaterdag | E33: 1 | F33: 2016-01-17 | G33: 2016-01-17 | H33: 0 | L33: 0 | O33: 0 | Q33: 1 | S33: 2.333333333 | T33: 1 | V33: =IF(Q33>"20:00:01",V32,X2) -> ok
D34: Zondag | F34: 2016-01-18 | G34: 2016-01-18 | H34: 0 | L34: 0 | O34: 0 | Q34: 1 | S34: 2.333333333 | T34: =IF(R34=1,0,1) -> 1 | V34: =IF(Q34>"20:00:01",V33,X2) -> ok
D35: =E33+E28+E29+E30+E31+E34+E32 -> 6
A36: Totaal week 02 | I36: =I34+I33+I32+I31+I30+I29+I28 -> 0 | J36: 0 | K36: 0 | L36: 0 | M36: 0 | N36: 0 | O36: 0 | R36: =R30+R34+R33+R32+R31+R28+R29 -> 0 | T36: =T30+T34+T33+T32+T31+T28+T29 -> 7
A38: uittreksel (02) Totaal (week 02) Januari '20 | I38: =I36 -> 0 | J38: 0 | K38: 0 | L38: 0 | M38: 0 | N38: 0 | O38: =M38+L38+P38 -> 0 | P38: =P29+P28+P30+P31+P32+P33+P34 -> 0 | R38: =R36 -> 0 | T38: =T36 -> 7
D40: Week 03
D42: Maandag | E42: 1 | F42: 2016-01-19 | G42: 2016-01-19 | H42: =G42-F42 -> 0 | L42: =I42+K42+N42 -> 0 | O42: =L42+M42+P42 -> 0 | Q42: =F42-G32 -> 3 | S42: =MIN("56:00:00",A1-I36) -> 2.333333333 | T42: 1 | V42: =IF(Q42<X1,X1-Q42,X2) -> ok
D43: Dinsdag | E43: 1 | F43: 2016-01-20 | G43: 2016-01-20 | H43: 0 | L43: 0 | O43: 0 | Q43: =F43-G42 -> 1 | S43: =S42-I42 -> 2.333333333 | T43: =IF(R43=1,0,1) -> 1 | V43: (-) 00
D44: Woensdag | E44: 1 | F44: 2016-01-21 | G44: 2016-01-21 | H44: 0 | L44: 0 | O44: 0 | Q44: 1 | S44: 2.333333333 | T44: =IF(R44=1,0,1) -> 1 | V44: (-) 00
D45: Donderdag | E45: 1 | F45: 2016-01-22 | G45: 2016-01-22 | H45: 0 | L45: 0 | O45: 0 | Q45: 1 | S45: 2.333333333 | T45: =IF(R45=1,0,1) -> 1 | V45: (-) 00
D46: Vrijdag | E46: 1 | F46: 2016-01-23 | G46: 2016-01-23 | H46: 0 | L46: 0 | O46: 0 | Q46: 1 | S46: 2.333333333 | T46: =IF(R46=1,0,1) -> 1 | V46: (-) 00
D47: Zaterdag | E47: 1 | F47: 2016-01-24 | G47: 2016-01-24 | H47: 0 | L47: 0 | O47: 0 | Q47: 1 | S47: 2.333333333 | T47: 1 | V47: (-) 00
D48: Zondag | F48: 2016-01-25 | G48: 2016-01-25 | H48: 0 | L48: 0 | O48: 0 | Q48: 1 | S48: 2.333333333 | T48: =IF(R48=1,0,1) -> 1 | V48: (-) 00
D49: =E47+E42+E43+E44+E45+E48+E46 -> 6
A50: Totaal week 03 | I50: =I48+I47+I46+I45+I44+I43+I42 -> 0 | J50: 0 | K50: 0 | L50: 0 | M50: 0 | N50: 0 | O50: 0 | R50: =R44+R48+R47+R46+R45+R42+R43 -> 0 | T50: =T44+T48+T47+T46+T45+T42+T43 -> 7
A52: uittreksel (03) Totaal (week 03) Januari '20 | I52: =I50 -> 0 | J52: 0 | K52: 0 | L52: 0 | M52: 0 | N52: 0 | O52: =M52+L52+P52 -> 0 | P52: =P43+P42+P44+P45+P46+P47+P48 -> 0 | R52: =R50 -> 0 | T52: =T50 -> 7
D54: Week 04
D56: Maandag | E56: 1 | F56: 2016-01-26 | G56: 2016-01-26 | H56: =G56-F56 -> 0 | L56: =I56+K56+N56 -> 0 | O56: =L56+M56+P56 -> 0 | Q56: =F56-G46 -> 3 | S56: =MIN("56:00:00",A1-I50) -> 2.333333333 | T56: 1 | V56: =IF(Q56<X1,X1-Q56,X2) -> ok
D57: Dinsdag | E57: 1 | F57: 2016-01-27 | G57: 2016-01-27 | H57: 0 | L57: 0 | O57: 0 | Q57: =F57-G56 -> 1 | S57: =S56-I56 -> 2.333333333 | T57: =IF(R57=1,0,1) -> 1 | V57: (-) 00
D58: Woensdag | E58: 1 | F58: 2016-01-28 | G58: 2016-01-28 | H58: 0 | L58: 0 | O58: 0 | Q58: 1 | S58: 2.333333333 | T58: =IF(R58=1,0,1) -> 1 | V58: (-) 00
D59: Donderdag | E59: 1 | F59: 2016-01-29 | G59: 2016-01-29 | H59: 0 | L59: 0 | O59: 0 | Q59: 1 | S59: 2.333333333 | T59: =IF(R59=1,0,1) -> 1 | V59: (-) 00
D60: Vrijdag | E60: 1 | F60: 2016-01-30 | G60: 2016-01-30 | H60: 0 | L60: 0 | O60: 0 | Q60: 1 | S60: 2.333333333 | T60: =IF(R60=1,0,1) -> 1 | V60: (-) 00
D61: Zaterdag | E61: 1 | F61: 2016-01-31 | G61: 2016-01-31 | H61: 0 | L61: 0 | O61: 0 | Q61: 1 | S61: 2.333333333 | T61: 1 | V61: (-) 00
D62: Zondag | F62: 2016-02-01 | G62: 2016-02-01 | H62: 0 | L62: 0 | O62: 0 | Q62: 1 | S62: 2.333333333 | T62: =IF(R62=1,0,1) -> 1 | V62: (-) 00
D63: =E61+E56+E57+E58+E59+E62+E60 -> 6
A64: Totaal week 04 | I64: =I62+I61+I60+I59+I58+I57+I56 -> 0 | J64: 0 | K64: 0 | L64: 0 | M64: 0 | N64: 0 | O64: 0 | R64: =R58+R62+R61+R60+R59+R56+R57 -> 0 | T64: =T58+T62+T61+T60+T59+T56+T57 -> 7
A66: uittreksel (04) Totaal (week 04) Januari/Februari '20 | I66: =I64 -> 0 | J66: 0 | K66: 0 | L66: 0 | M66: 0 | N66: 0 | O66: =M66+L66+P66 -> 0 | P66: =P57+P56+P58+P59+P60+P61+P62 -> 0 | R66: =R64 -> 0 | T66: =T64 -> 7
A68: Maandgegevens Januari '20 | I68: =I66+I52+I38+I24 -> 0 | J68: =J66+J52+J38+J24 -> 0 | K68: 0 | L68: 0 | M68: 0 | N68: 0 | O68: 0 | P68: 0 | R68: =R66+R52+R38+R24 -> 0 | T68: =T66+T52+T38+T24 -> 28

Sheet LadenLossen (01)
A1: 02:00:00 | B1: Laden/lossen (beschikbaarheidstijd (behalve bij Rood )) | J1: Week 01 | N1: = zelf laden/lossen
J4: Totaal | N4: Wachturen laden/lossen
B5: Laden | F5: Lossen | J5: Laden | K5: Lossen | L5: Totaal uren | N5: Laden | P5: Lossen | Q5: Totaal uren
A6: Nr. | J6: =SUM(J8:J46) -> 0 | K6: =SUM(K8:K46) -> 0 | L6: =J6+K6 -> 0 | N6: =SUM(N8:N46) -> 0 | P6: =SUM(P8:P46) -> 0 | Q6: =N6+P6 -> 0
A7: 0 | B7: begin | D7: eind | F7: begin | H7: eind
J14: =IF(D14<>"",IF(D14-B14>TIME(2,0,0),TIME(2,0,0),D14-B14),"") ->  | K14: =IF(H14<>"",IF(H14-F14>TIME(2,0,0),TIME(2,0,0),H14-F14),"") ->  | N14: =IF(D14-B14>TIME(2,0,0),D14-B14-TIME(2,0,0),"") ->  | P14: =IF((H14-F14)>TIME(2,0,0),H14-F14-TIME(2,0,0),"") -> 
J17: =IF(D17<>"",IF(D17-B17>TIME(2,0,0),TIME(2,0,0),D17-B17),"") ->  | K17: =IF(H17<>"",IF(H17-F17>TIME(2,0,0),TIME(2,0,0),H17-F17),"") ->  | N17: =IF(D17-B17>TIME(2,0,0),D17-B17-TIME(2,0,0),"") -> 
P18: =IF((H18-F18)>TIME(2,0,0),H18-F18-TIME(2,0,0),"") -> 
P19: =IF((H19-F19)>TIME(2,0,0),H19-F19-TIME(2,0,0),"") -> 
P20: =IF((H20-F20)>TIME(2,0,0),H20-F20-TIME(2,0,0),"") -> 
P21: =IF((H21-F21)>TIME(2,0,0),H21-F21-TIME(2,0,0),"") -> 
P22: =IF((H22-F22)>TIME(2,0,0),H22-F22-TIME(2,0,0),"") -> 
P23: =IF((H23-F23)>TIME(2,0,0),H23-F23-TIME(2,0,0),"") -> 

Sheet Dagtaken (01)
B1: samenvatting | C1: Dag-taken | R1: samenvatting
C2: tanken | E2: aan/afkoppelen | G2: wachten instructie | I2: wachten koppelchauffeur | K2: Totaal | L2: =V2 -> wachten koppelchauf | R2: week | S2: tanken | T2: koppelen | U2: wachten instructie | V2: wachten koppelchauf
A3: week | B3: datum | C3: Begintijd | D3: Eindtijd | E3: Begintijd | F3: Eindtijd | G3: Begintijd | H3: Eindtijd | I3: Begintijd | J3: Eindtijd | K3: tanken | L3: aan/afkoppelen | M3: wachten instructie | N3: wachten koppelchauffeur | R3: 1 | S3: =IF(R3<>"",SUMIF($A4:$A18,$R3,K4:K18),"") -> 0 | T3: =IF(S3<>"",SUMIF($A4:$A18,$R3,L4:L18),"") -> 0 | U3: 0 | V3: 0
A4: =IF(B4<>"",_xlfn.ISOWEEKNUM(B4),"") ->  | K4: =IF(D4<>"",D4-C4,"") ->  | L4: =IF(F4<>"",F4-E4,"") ->  | M4: =IF(H4<>"",H4-G4,"") ->  | N4: =IF(J4<>"",J4-I4,"") ->  | R4: 2 | S4: =IF(R4<>"",SUMIF($A5:$A19,$R4,K5:K19),"") -> 0 | T4: =IF(S4<>"",SUMIF($A5:$A19,$R4,L5:L19),"") -> 0 | U4: =IF(T4<>"",SUMIF($A5:$A19,$R4,M5:M19),"") -> 0 | V4: =IF(U4<>"",SUMIF($A5:$A19,$R4,N5:N19),"") -> 0
A5: =IF(B5<>"",_xlfn.ISOWEEKNUM(B5),"") ->  | K5: =IF(D5<>"",D5-C5,"") ->  | L5: =IF(F5<>"",F5-E5,"") ->  | M5: =IF(H5<>"",H5-G5,"") ->  | N5: =IF(J5<>"",J5-I5,"") -> 
K17: =IF(D17<>"",D17-C17,"") ->  | L17: =IF(F17<>"",F17-E17,"") -> 
M18: =IF(H18<>"",H18-G18,"") ->  | N18: =IF(J18<>"",J18-I18,"") -> 
K30: =IF(D30<>"",D30-C30,"") ->  | L30: =IF(F30<>"",F30-E30,"") -> 
K43: =IF(D43<>"",D43-C43,"") ->  | L43: =IF(F43<>"",F43-E43,"") -> 
K51: =IF(D51<>"",D51-C51,"") ->  | L51: =IF(F51<>"",F51-E51,"") ->  | M51: =IF(H51<>"",H51-G51,"") ->  | N51: =IF(J51<>"",J51-I51,"") -> 
S68: =IF(R68<>"",SUMIF($A69:$A83,$R68,K69:K83),"") ->  | T68: =IF(S68<>"",SUMIF($A69:$A83,$R68,L69:L83),"") ->  | U68: =IF(T68<>"",SUMIF($A69:$A83,$R68,M69:M83),"") ->  | V68: =IF(U68<>"",SUMIF($A69:$A83,$R68,N69:N83),"") -> 
A69: =IF(B69<>"",_xlfn.ISOWEEKNUM(B69),"") -> 
K79: =IF(D79<>"",D79-C79,"") ->  | L79: =IF(F79<>"",F79-E79,"") ->  | M79: =IF(H79<>"",H79-G79,"") ->  | N79: =IF(J79<>"",J79-I79,"") -> 
M122: =IF(H122<>"",H122-G122,"") ->  | N122: =IF(J122<>"",J122-I122,"") -> 
S132: =IF(R132<>"",SUMIF($A133:$A147,$R132,K133:K147),"") ->  | T132: =IF(S132<>"",SUMIF($A133:$A147,$R132,L133:L147),"") ->  | U132: =IF(T132<>"",SUMIF($A133:$A147,$R132,M133:M147),"") ->  | V132: =IF(U132<>"",SUMIF($A133:$A147,$R132,N133:N147),"") -> 
A133: =IF(B133<>"",_xlfn.ISOWEEKNUM(B133),"") ->  | M133: =IF(H133<>"",H133-G133,"") ->  | N133: =IF(J133<>"",J133-I133,"") -> 
S196: =IF(R196<>"",SUMIF($A197:$A211,$R196,K197:K211),"") ->  | T196: =IF(S196<>"",SUMIF($A197:$A211,$R196,L197:L211),"") ->  | U196: =IF(T196<>"",SUMIF($A197:$A211,$R196,M197:M211),"") ->  | V196: =IF(U196<>"",SUMIF($A197:$A211,$R196,N197:N211),"") -> 
A197: =IF(B197<>"",_xlfn.ISOWEEKNUM(B197),"") ->  | M197: =IF(H197<>"",H197-G197,"") ->  | N197: =IF(J197<>"",J197-I197,"") -> 
A261: =IF(B261<>"",_xlfn.ISOWEEKNUM(B261),"") ->  | M261: =IF(H261<>"",H261-G261,"") ->  | N261: =IF(J261<>"",J261-I261,"") -> 
A325: =IF(B325<>"",_xlfn.ISOWEEKNUM(B325),"") ->  | M325: =IF(H325<>"",H325-G325,"") ->  | N325: =IF(J325<>"",J325-I325,"") -> 
A389: =IF(B389<>"",_xlfn.ISOWEEKNUM(B389),"") ->  | M389: =IF(H389<>"",H389-G389,"") ->  | N389: =IF(J389<>"",J389-I389,"") -> 

Sheet Dag-taken week (49) (hidden)
B1: Dag-taken week 49 | M1: =B1 -> Dag-taken week 49
B2: tanken | D2: aan/afkoppelen | F2: Totaal | G2: =Q2 -> Tijden | M2: wachten instructie | O2: wachten koppelchauffeur | Q2: Tijden
B5: maandag 02-12-2019 | M5: =B5 -> maandag 02-12-2019
B6: Begintijd | C6: Eindtijd | D6: Begintijd | E6: Eindtijd | F6: tanken | G6: aan/afkoppelen | I6: Totaal uren | J6: =J7+J8 -> 0 | M6: Begintijd | N6: Eindtijd | O6: Begintijd | P6: Eindtijd | Q6: wachten instructie | R6: wachten koppelchauffeur
A7: =IF(B7,"1",0) -> 0 | F7: =C7-B7 -> 0 | G7: =E7-D7 -> 0 | I7: tanken | J7: =SUM(F7:F12) -> 0 | L7: =IF(M7,"1",0) -> 0 | Q7: =N7-M7 -> 0 | R7: =P7-O7 -> 0
A8: 0 | F8: =C8-B8 -> 0 | G8: 0 | I8: aan-afkoppelen | J8: =SUM(G7:G12) -> 0 | L8: 0 | Q8: =N8-M8 -> 0 | R8: =P8-O8 -> 0
A9: 0 | F9: 0 | G9: 0 | L9: 0 | Q9: 0 | R9: 0
A10: 0 | F10: 0 | G10: 0 | I10: Totaal uren | J10: =J11+J12 -> 0 | L10: 0 | Q10: 0 | R10: 0
A11: 0 | F11: 0 | G11: 0 | I11: wachten instructie | J11: =SUM(Q7:Q16) -> 0 | L11: 0 | Q11: 0 | R11: 0
A12: 0 | F12: 0 | G12: 0 | I12: wachten koppelchauffeur | J12: =SUM(R7:R16) -> 0 | L12: 0 | Q12: 0 | R12: 0
A13: 0 | F13: 0 | G13: 0 | L13: 0 | Q13: 0 | R13: 0
A14: 0 | F14: 0 | G14: 0 | L14: 0 | Q14: 0 | R14: 0
A15: 0 | F15: 0 | G15: 0 | L15: 0 | Q15: 0 | R15: 0
A16: 0 | F16: 0 | G16: 0 | L16: 0 | Q16: 0 | R16: 0
B18: dinsdag 03-12-2019 | M18: =B18 -> dinsdag 03-12-2019
B19: Begintijd | C19: Eindtijd | D19: Begintijd | E19: Eindtijd | F19: tanken | G19: aan/afkoppelen | I19: Totaal uren | J19: =J20+J21 -> 0.00986111111 | M19: Begintijd | N19: Eindtijd | O19: Begintijd | P19: Eindtijd | Q19: wachten instructie | R19: wachten koppelchauffeur
A20: =IF(B20,"1",0) -> 0 | D20: 2015-12-02T10:52:00 | E20: 2015-12-02T11:06:12 | F20: =C20-B20 -> 0 | G20: =E20-D20 -> 0.00986111111 | I20: tanken | J20: =SUM(F20:F29) -> 0 | L20: =IF(M20,"1",0) -> 0 | Q20: =N20-M20 -> 0 | R20: =R7 -> 0
A21: =IF(B21,"1",0) -> 0 | F21: 0 | G21: 0 | I21: aan-afkoppelen | J21: =SUM(G20:G29) -> 0.00986111111 | L21: 0 | Q21: =N21-M21 -> 0 | R21: 0
A22: 0 | F22: 0 | G22: 0 | L22: 0 | Q22: 0 | R22: 0
A23: 0 | F23: 0 | G23: 0 | I23: Totaal uren | J23: =J24+J25 -> 0 | L23: 0 | Q23: 0 | R23: 0
A24: 0 | F24: 0 | G24: 0 | I24: wachten instructie | J24: =SUM(Q20:Q29) -> 0 | L24: 0 | Q24: 0 | R24: 0
A25: 0 | F25: 0 | G25: 0 | I25: wachten koppelchauffeur | J25: =SUM(R20:R29) -> 0 | L25: 0 | Q25: 0 | R25: 0
A26: 0 | F26: 0 | G26: 0 | L26: 0 | Q26: 0 | R26: 0
A27: 0 | F27: 0 | G27: 0 | L27: 0 | Q27: 0 | R27: 0
A28: 0 | F28: 0 | G28: 0 | L28: 0 | Q28: 0 | R28: 0
A29: 0 | F29: 0 | G29: 0 | L29: 0 | Q29: =Q16 -> 0 | R29: =R16 -> 0
B31: woensdag 04-12-2019 | M31: =B31 -> woensdag 04-12-2019
B32: Begintijd | C32: Eindtijd | D32: Begintijd | E32: Eindtijd | F32: tanken | G32: aan/afkoppelen | I32: Totaal uren | J32: =J33+J34 -> 0.01479166667 | M32: Begintijd | N32: Eindtijd | O32: Begintijd | P32: Eindtijd | Q32: wachten instructie | R32: wachten koppelchauffeur
A33: =IF(B33,"1",0) -> 1 | B33: 2015-12-03T17:17:20 | C33: 2015-12-03T17:32:40 | D33: 2015-12-03T17:51:10 | E33: 2015-12-03T17:57:08 | F33: =C33-B33 -> 0.01064814815 | G33: =E33-D33 -> 0.004143518519 | I33: tanken | J33: =SUM(F33:F38) -> 0.01064814815 | L33: 1 | Q33: 0 | R33: 0
A34: 0 | F34: 0 | G34: 0 | I34: aan-afkoppelen | J34: =SUM(G33:G38) -> 0.004143518519 | L34: =IF(M34,"1",0) -> 0 | Q34: 0 | R34: 0
A35: 0 | F35: 0 | G35: 0 | L35: 0 | Q35: 0 | R35: 0
A36: 0 | F36: 0 | G36: 0 | I36: Totaal uren | J36: =J37+J38 -> 0 | L36: 0 | Q36: 0 | R36: 0
A37: 0 | F37: 0 | G37: 0 | I37: wachten instructie | J37: =SUM(Q33:Q42) -> 0 | L37: 0 | Q37: 0 | R37: 0
A38: 0 | F38: 0 | G38: 0 | I38: wachten koppelchauffeur | J38: =SUM(R33:R42) -> 0 | L38: 0 | Q38: 0 | R38: 0
A39: 0 | F39: 0 | G39: 0 | L39: 0 | Q39: 0 | R39: 0
A40: 0 | F40: 0 | G40: 0 | L40: 0 | Q40: 0 | R40: 0
A41: 0 | F41: 0 | G41: 0 | L41: 0 | Q41: 0 | R41: 0
A42: 0 | F42: 0 | G42: 0 | L42: 0 | Q42: 0 | R42: 0
B44: donderdag 05-12-2019 | M44: =B44 -> donderdag 05-12-2019
B45: Begintijd | C45: Eindtijd | D45: Begintijd | E45: Eindtijd | F45: tanken | G45: aan/afkoppelen | I45: Totaal uren | J45: =J46+J47 -> 0.02751157407 | M45: Begintijd | N45: Eindtijd | O45: Begintijd | P45: Eindtijd | Q45: wachten instructie | R45: wachten koppelchauffeur
A46: =IF(B46,"1",0) -> 1 | B46: 2015-12-04T06:00:25 | C46: 2015-12-04T06:12:11 | D46: 2015-12-04T05:43:02 | E46: 2015-12-04T05:49:21 | F46: =C46-B46 -> 0.008171296293 | G46: =E46-D46 -> 0.004386574074 | I46: tanken | J46: =SUM(F46:F55) -> 0.008171296293 | L46: 0 | M46: 2015-12-04T12:00:18 | N46: 2015-12-04T13:54:59 | Q46: =N46-M46 -> 0.07964120371 | R46: =P46-O46 -> 0
A47: 0 | D47: 2015-12-04T11:38:30 | E47: 2015-12-04T11:49:11 | F47: =C47-B47 -> 0 | G47: 0.007418981477 | I47: aan-afkoppelen | J47: =SUM(G46:G55) -> 0.01934027777 | L47: =IF(M46,"1",0) -> 1 | Q47: 0 | R47: =P47-O47 -> 0
A48: 0 | D48: 2015-12-04T11:49:14 | E48: 2015-12-04T12:00:05 | F48: 0 | G48: 0.007534722223 | L48: =IF(M47,"1",0) -> 0 | Q48: 0 | R48: 0
A49: 0 | F49: 0 | G49: 0 | I49: Totaal uren | J49: =J50+J51 -> 0.07964120371 | L49: =IF(M49,"1",0) -> 0 | Q49: 0 | R49: 0
A50: 0 | F50: 0 | G50: 0 | I50: wachten instructie | J50: =SUM(Q46:Q55) -> 0.07964120371 | L50: 0 | Q50: 0 | R50: 0
A51: 0 | F51: 0 | G51: 0 | I51: wachten koppelchauffeur | J51: =SUM(R46:R55) -> 0 | L51: 0 | Q51: 0 | R51: 0
A52: 0 | F52: 0 | G52: 0 | L52: 0 | Q52: 0 | R52: 0
A53: 0 | F53: 0 | G53: 0 | L53: 0 | Q53: 0 | R53: 0
A54: 0 | F54: 0 | G54: 0 | L54: 0 | Q54: 0 | R54: 0
A55: 0 | F55: 0 | G55: 0 | L55: 0 | Q55: 0 | R55: 0
B57: vrijdag 06-12-2019 | M57: =B57 -> vrijdag 06-12-2019
B58: Begintijd | C58: Eindtijd | D58: Begintijd | E58: Eindtijd | F58: tanken | G58: aan/afkoppelen | I58: Totaal uren | J58: =J59+J60 -> 0.01359953704 | M58: Begintijd | N58: Eindtijd | O58: Begintijd | P58: Eindtijd | Q58: wachten instructie | R58: wachten koppelchauffeur
A59: =IF(B59,"1",0) -> 1 | B59: 2015-12-05T15:33:09 | C59: 2015-12-05T15:52:44 | F59: =C59-B59 -> 0.01359953704 | G59: =E59-D59 -> 0 | I59: tanken | J59: =SUM(F59:F64) -> 0.01359953704 | L59: =IF(M59,"1",0) -> 0 | Q59: =N59-M59 -> 0 | R59: =P59-O59 -> 0
A60: =IF(B60,"1",0) -> 0 | F60: =C60-B60 -> 0 | G60: 0 | I60: aan-afkoppelen | J60: =SUM(G59:G64) -> 0 | L60: =IF(M60,"1",0) -> 0 | Q60: 0 | R60: =P60-O60 -> 0
A61: 0 | F61: 0 | G61: 0 | L61: 0 | Q61: 0 | R61: 0
A62: 0 | F62: 0 | G62: 0 | I62: Totaal uren | J62: =J63+J64 -> 0 | L62: 0 | Q62: 0 | R62: 0
A63: 0 | F63: 0 | G63: 0 | I63: wachten instructie | J63: =SUM(Q59:Q68) -> 0 | L63: 0 | Q63: 0 | R63: 0
A64: 0 | F64: 0 | G64: 0 | I64: wachten koppelchauffeur | J64: =SUM(R59:R68) -> 0 | L64: 0 | Q64: 0 | R64: 0
A65: 0 | F65: 0 | G65: 0 | L65: 0 | Q65: 0 | R65: 0
A66: 0 | F66: 0 | G66: 0 | L66: 0 | Q66: 0 | R66: 0
A67: 0 | F67: 0 | G67: 0 | L67: 0 | Q67: 0 | R67: 0
A68: 0 | F68: 0 | G68: 0 | L68: 0 | Q68: 0 | R68: 0
B70: zaterdag 07-12-2019 | M70: =B70 -> zaterdag 07-12-2019
B71: Begintijd | C71: Eindtijd | D71: Begintijd | E71: Eindtijd | F71: tanken | G71: aan/afkoppelen | I71: Totaal uren | J71: =J72+J73 -> 0 | M71: Begintijd | N71: Eindtijd | O71: Begintijd | P71: Eindtijd | Q71: wachten instructie | R71: wachten koppelchauffeur
A72: =IF(B72,"1",0) -> 0 | F72: =C72-B72 -> 0 | G72: =E72-D72 -> 0 | I72: tanken | J72: =SUM(F72:F81) -> 0 | L72: =IF(M72,"1",0) -> 0 | Q72: =N72-M72 -> 0 | R72: =P72-O72 -> 0
A73: =IF(B73,"1",0) -> 0 | F73: =C73-B73 -> 0 | G73: =E73-D73 -> 0 | I73: aan-afkoppelen | J73: =SUM(G72:G81) -> 0 | L73: =IF(M73,"1",0) -> 0 | Q73: =N73-M73 -> 0 | R73: =P73-O73 -> 0
A74: 0 | F74: 0 | G74: 0 | L74: 0 | Q74: 0 | R74: 0
A75: 0 | F75: 0 | G75: 0 | I75: Totaal uren | J75: =J76+J77 -> 0 | L75: 0 | Q75: 0 | R75: 0
A76: 0 | F76: 0 | G76: 0 | I76: wachten instructie | J76: =SUM(Q72:Q81) -> 0 | L76: 0 | Q76: 0 | R76: 0
A77: 0 | F77: 0 | G77: 0 | I77: wachten koppelchauffeur | J77: =SUM(R72:R81) -> 0 | L77: 0 | Q77: 0 | R77: 0
A78: 0 | F78: 0 | G78: 0 | L78: 0 | Q78: 0 | R78: 0
A79: 0 | F79: 0 | G79: 0 | L79: 0 | Q79: 0 | R79: 0
A80: 0 | F80: 0 | G80: 0 | L80: 0 | Q80: 0 | R80: 0
A81: 0 | F81: 0 | G81: 0 | L81: 0 | Q81: 0 | R81: 0
B83: zondag 08-12-2019 | M83: =B83 -> zondag 08-12-2019
B84: Begintijd | C84: Eindtijd | D84: Begintijd | E84: Eindtijd | F84: tanken | G84: aan/afkoppelen | I84: Totaal uren | J84: =J85+J86 -> 0 | M84: Begintijd | N84: Eindtijd | O84: Begintijd | P84: Eindtijd | Q84: wachten instructie | R84: wachten koppelchauffeur
A85: =IF(B85,"1",0) -> 0 | F85: =C85-B85 -> 0 | G85: =E85-D85 -> 0 | I85: tanken | J85: =SUM(F85:F90) -> 0 | L85: =IF(M85,"1",0) -> 0 | Q85: =N85-M85 -> 0 | R85: =P85-O85 -> 0
A86: 0 | F86: =C86-B86 -> 0 | G86: =E86-D86 -> 0 | I86: aan-afkoppelen | J86: =SUM(G85:G90) -> 0 | L86: =IF(M86,"1",0) -> 0 | Q86: 0 | R86: 0
A87: 0 | F87: 0 | G87: 0 | L87: 0 | Q87: 0 | R87: 0
A88: 0 | F88: 0 | G88: 0 | I88: Totaal uren | J88: =J89+J90 -> 0 | L88: 0 | Q88: 0 | R88: 0
A89: 0 | F89: 0 | G89: 0 | I89: wachten instructie | J89: =SUM(Q85:Q94) -> 0 | L89: 0 | Q89: 0 | R89: 0
A90: 0 | F90: 0 | G90: 0 | I90: wachten koppelchauffeur | J90: =SUM(R85:R94) -> 0 | L90: 0 | Q90: 0 | R90: 0
A91: 0 | F91: 0 | G91: 0 | L91: 0 | Q91: 0 | R91: 0
A92: 0 | F92: 0 | G92: 0 | L92: 0 | Q92: 0 | R92: 0
A93: 0 | F93: 0 | G93: 0 | L93: 0 | Q93: 0 | R93: 0
A94: 0 | F94: 0 | G94: 0 | L94: 0 | Q94: 0 | R94: 0
I96: tanken | J96: =J85+J72+J59+J46+J33+J20+J7 -> 0.03241898148
I98: aan-afkoppelen | J98: =J86+J73+J60+J47+J34+J21+J8 -> 0.0333449074
I100: Totaal uren | J100: =J98+J96 -> 0.06576388888
I103: wachten instructie | J103: =J89+J76+J63+J50+J37+J24+J11 -> 0.07964120371
I105: wachten koppelchauffeur | J105: =J90+J77+J64+J51+J38+J25+J12 -> 0
I107: Totaal uren | J107: =J105+J103 -> 0.07964120371
B110: Einde dag-taken week 49

Sheet LadenLossen (49) (hidden)
A1: 02:00:00 | B1: Laden/lossen (beschikbaarheidstijd (behalve bij Rood )) | J1: Week 48 | N1: = zelf laden/lossen
J4: Totaal | N4: Wachturen laden/lossen
B5: Laden | F5: Lossen | J5: Laden | K5: Lossen | L5: Totaal uren | N5: Laden | P5: Lossen | Q5: Totaal uren
A6: Nr. | J6: =SUM(J8:J49) -> 0.2946527778 | K6: =SUM(K8:K49) -> 0.2609606482 | L6: =J6+K6 -> 0.5556134259 | N6: =SUM(N8:N49) -> 0.05438657408 | P6: =SUM(P8:P49) -> 0.1749768519 | Q6: =N6+P6 -> 0.2293634259
A7: 0 | B7: begin | D7: eind | F7: begin | H7: eind
A8: 1 | B8: 2015-11-30T09:20:44 | D8: 2015-11-30T09:24:46 | J8: =IF(D8<>"",IF(D8-B8>TIME(2,0,0),TIME(2,0,0),D8-B8),"") -> 0.002800925926 | K8: =IF(H8<>"",IF(H8-F8>TIME(2,0,0),TIME(2,0,0),H8-F8),"") ->  | L8: =IF(H8<>"",H8-F8,"") ->  | N8: =IF(D8-B8>TIME(2,0,0),D8-B8-TIME(2,0,0),"") ->  | P8: =IF((H8-F8)>TIME(2,0,0),H8-F8-TIME(2,0,0),"") -> 
A9: 2 | F9: 2015-12-01T07:23:46 | H9: 2015-12-01T12:29:27 | K9: =IF(H9<>"",IF(H9-F9>TIME(2,0,0),TIME(2,0,0),H9-F9),"") -> 0.08333333333 | N9: =IF(D9-B9>TIME(2,0,0),D9-B9-TIME(2,0,0),"") ->  | P9: 0.1289467593
A10: 3 | F10: 2015-12-01T12:33:48 | H10: 2015-12-01T13:18:18 | K10: 0.03090277778 | N10: =IF(D10-B10>TIME(2,0,0),D10-B10-TIME(2,0,0),"") -> 
A11: 4 | F11: 2015-12-01T14:00:12 | H11: 2015-12-01T14:22:38 | K11: 0.01557870371 | N11: =IF(D11-B11>TIME(2,0,0),D11-B11-TIME(2,0,0),"") -> 
A12: 5 | F12: 2015-12-01T15:06:14 | H12: 2015-12-01T15:41:52 | K12: 0.02474537037
A13: 6 | F13: 2015-12-02T07:42:23 | H13: 2015-12-02T10:48:40 | K13: 0.08333333333 | P13: 0.04603009259
A14: 7 | B14: 2015-12-02T13:11:40 | D14: 2015-12-02T13:57:00 | J14: 0.03148148148
A15: 8 | B15: 2015-12-02T15:14:12 | D15: 2015-12-02T16:04:13 | J15: 0.0347337963
A16: 9 | B16: 2015-12-03T06:56:41 | D16: 2015-12-03T08:29:21 | J16: 0.06435185186
A17: 10 | F17: 2015-12-03T17:34:48 | H17: 2015-12-03T17:48:42 | K17: 0.009652777779
A18: 11 | B18: 2015-12-05T07:27:07 | D18: 2015-12-05T10:45:26 | J18: 0.08333333333 | N18: 0.05438657408
A19: 12 | B19: 2015-12-05T10:45:37 | D19: 2015-12-05T12:37:52 | J19: 0.07795138888
A20: 13 | F20: 2015-12-05T15:54:47 | H20: 2015-12-05T16:14:06 | K20: 0.01341435185
P21: =IF((H21-F21)>TIME(2,0,0),H21-F21-TIME(2,0,0),"") -> 
P22: =IF((H22-F22)>TIME(2,0,0),H22-F22-TIME(2,0,0),"") -> 
P23: =IF((H23-F23)>TIME(2,0,0),H23-F23-TIME(2,0,0),"") -> 
P24: =IF((H24-F24)>TIME(2,0,0),H24-F24-TIME(2,0,0),"") -> 
J25: =IF(D25<>"",IF(D25-B25>TIME(2,0,0),TIME(2,0,0),D25-B25),"") ->  | P25: =IF((H25-F25)>TIME(2,0,0),H25-F25-TIME(2,0,0),"") -> 
J26: =IF(D26<>"",IF(D26-B26>TIME(2,0,0),TIME(2,0,0),D26-B26),"") -> 

Sheet LadenLossen (48) (hidden)
A1: 02:00:00 | B1: Laden/lossen (beschikbaarheidstijd (behalve bij Rood )) | J1: Week 48 | N1: = zelf laden/lossen
J4: Totaal | N4: Wachturen laden/lossen
B5: Laden | F5: Lossen | J5: Laden | K5: Lossen | L5: Totaal uren | N5: Laden | P5: Lossen | Q5: Totaal uren
A6: Nr. | J6: =SUM(J8:J51) -> 0.297974537 | K6: =SUM(K8:K51) -> 0.3829282407 | L6: =J6+K6 -> 0.6809027778 | N6: =SUM(N8:N51) -> 0.03746527778 | P6: =SUM(P8:P51) -> 0.04361111111 | Q6: =N6+P6 -> 0.08107638889
A7: 0 | B7: begin | D7: eind | F7: begin | H7: eind
A8: 1 | B8: 2015-11-24T02:31:27 | D8: 2015-11-24T02:37:55 | J8: =IF(D8<>"",IF(D8-B8>TIME(2,0,0),TIME(2,0,0),D8-B8),"") -> 0.004490740743 | K8: =IF(H8<>"",H8-F8,"") ->  | L8: =IF(H8<>"",H8-F8,"") ->  | N8: =IF(D8-B8>TIME(2,0,0),D8-B8-TIME(2,0,0),"") ->  | P8: =IF((H8-F8)>TIME(2,0,0),H8-F8-TIME(2,0,0),"") -> 
A9: 2 | F9: 2015-11-24T09:04:34 | H9: 2015-11-24T09:54:23 | J9: =IF(D9<>"",IF(D9-B9>TIME(2,0,0),TIME(2,0,0),D9-B9),"") ->  | K9: =IF(H9<>"",H9-F9,"") -> 0.03459490741 | N9: =IF(D9-B9>TIME(2,0,0),D9-B9-TIME(2,0,0),"") ->  | P9: =IF((H9-F9)>TIME(2,0,0),H9-F9-TIME(2,0,0),"") -> 
A10: 3 | F10: 2015-11-24T12:12:23 | H10: 2015-11-24T13:32:53 | K10: =IF(H10<>"",H10-F10,"") -> 0.05590277778 | N10: =IF(D10-B10>TIME(2,0,0),D10-B10-TIME(2,0,0),"") ->  | P10: =IF((H10-F10)>TIME(2,0,0),H10-F10-TIME(2,0,0),"") -> 
A11: 4 | F11: 2015-11-25T07:08:18 | H11: 2015-11-25T07:58:41 | K11: =IF(H11<>"",H11-F11,"") -> 0.03498842593
A12: 5 | B12: 2015-11-25T12:01:46 | D12: 2015-11-25T12:52:33 | J12: 0.0352662037 | K12: =IF(H12<>"",IF(H12-F12>TIME(2,0,0),TIME(2,0,0),H12-F12),"") -> 
A13: 6 | B13: 2015-11-25T15:10:21 | D13: 2015-11-25T15:40:14 | J13: 0.02075231481 | N13: =IF(D13-B13>TIME(2,0,0),D13-B13-TIME(2,0,0),"") ->  | P13: =IF((H13-F13)>TIME(2,0,0),H13-F13-TIME(2,0,0),"") -> 
A14: 7 | B14: 2015-11-26T06:27:42 | D14: 2015-11-26T07:55:28 | J14: 0.06094907408 | N14: =IF(D14-B14>TIME(2,0,0),D14-B14-TIME(2,0,0),"") ->  | P14: =IF((H14-F14)>TIME(2,0,0),H14-F14-TIME(2,0,0),"") -> 
A15: 8 | F15: 2015-11-26T15:34:40 | H15: 2015-11-26T17:25:06 | K15: 0.07668981481
A16: 9 | B16: 2015-11-26T18:05:42 | D16: 2015-11-26T18:36:02 | J16: 0.02106481481
A17: 10 | B17: 2015-11-27T06:20:26 | D17: 2015-11-27T06:32:17 | J17: 0.008229166669
A18: 11 | F18: 2015-11-27T07:46:36 | H18: 2015-11-27T10:49:24 | K18: =IF(H18<>"",IF(H18-F18>TIME(2,0,0),TIME(2,0,0),H18-F18),"") -> 0.08333333333 | P18: 0.04361111111
A19: 12 | F19: 2015-11-27T11:04:03 | H19: 2015-11-27T12:07:39 | K19: 0.04416666667
A20: 13 | B20: 2015-11-27T15:35:11 | D20: 2015-11-27T15:42:25 | J20: 0.005023148151
A21: 14 | B21: 2015-11-27T15:35:11 | D21: 2015-11-27T15:42:25 | J21: 0.005023148151 | K21: =IF(H21<>"",IF(H21-F21>TIME(2,0,0),TIME(2,0,0),H21-F21),"") ->  | N21: =IF(D21-B21>TIME(2,0,0),D21-B21-TIME(2,0,0),"") ->  | P21: =IF((H21-F21)>TIME(2,0,0),H21-F21-TIME(2,0,0),"") -> 
A22: 15 | B22: 2015-11-28T06:35:51 | D22: 2015-11-28T07:26:51 | J22: 0.03541666667
A23: 16 | B23: 2015-11-28T07:58:51 | D23: 2015-11-28T10:52:48 | J23: 0.08333333333 | K23: =IF(H23<>"",IF(H23-F23>TIME(2,0,0),TIME(2,0,0),H23-F23),"") ->  | N23: 0.03746527778
A24: 17 | F24: 2015-11-28T15:39:56 | H24: 2015-11-28T16:56:37 | K24: =IF(H24<>"",IF(H24-F24>TIME(2,0,0),TIME(2,0,0),H24-F24),"") -> 0.05325231481
A25: 18 | F25: 2015-11-28T17:08:40 | H25: 2015-11-28T17:34:31
A26: 19 | B26: 2015-11-28T18:27:07 | D26: 2015-11-28T18:53:39 | J26: 0.01842592593

Sheet Dag-taken week (48) (hidden)
B1: Dag-taken week 48 | M1: =B1 -> Dag-taken week 48
B2: tanken | D2: aan/afkoppelen | F2: Totaal | G2: =Q2 -> Tijden | M2: wachten instructie | O2: wachten koppelchauffeur | Q2: Tijden
B5: maandag 25-11-2019 | M5: =B5 -> maandag 25-11-2019
B6: Begintijd | C6: Eindtijd | D6: Begintijd | E6: Eindtijd | F6: tanken | G6: aan/afkoppelen | I6: Totaal uren | J6: =J7+J8 -> 0.02939814815 | M6: Begintijd | N6: Eindtijd | O6: Begintijd | P6: Eindtijd | Q6: wachten instructie | R6: wachten koppelchauffeur
A7: =IF(B7,"1",0) -> 1 | B7: 2015-11-24T01:45:24 | C7: 2015-11-24T02:04:58 | D7: 2015-11-24T02:15:14 | E7: 2015-11-24T02:31:00 | F7: =C7-B7 -> 0.01358796297 | G7: =E7-D7 -> 0.01094907407 | I7: tanken | J7: =SUM(F7:F12) -> 0.01844907408 | L7: =IF(M7,"1",0) -> 0 | Q7: =N7-M7 -> 0 | R7: =P7-O7 -> 0
A8: 1 | B8: 2015-11-24T02:47:46 | C8: 2015-11-24T02:54:46 | F8: =C8-B8 -> 0.004861111112 | G8: 0 | I8: aan-afkoppelen | J8: =SUM(G7:G12) -> 0.01094907407 | L8: 0 | Q8: =N8-M8 -> 0 | R8: =P8-O8 -> 0
A9: 0 | F9: 0 | G9: 0 | L9: 0 | Q9: 0 | R9: 0
A10: 0 | F10: 0 | G10: 0 | I10: Totaal uren | J10: =J11+J12 -> 0 | L10: 0 | Q10: 0 | R10: 0
A11: 0 | F11: 0 | G11: 0 | I11: wachten instructie | J11: =SUM(Q7:Q16) -> 0 | L11: 0 | Q11: 0 | R11: 0
A12: 0 | F12: 0 | G12: 0 | I12: wachten koppelchauffeur | J12: =SUM(R7:R16) -> 0 | L12: 0 | Q12: 0 | R12: 0
A13: 0 | F13: 0 | G13: 0 | L13: 0 | Q13: 0 | R13: 0
A14: 0 | F14: 0 | G14: 0 | L14: 0 | Q14: 0 | R14: 0
A15: 0 | F15: 0 | G15: 0 | L15: 0 | Q15: 0 | R15: 0
A16: 0 | F16: 0 | G16: 0 | L16: 0 | Q16: 0 | R16: 0
B18: dinsdag 26-11-2019 | M18: =B18 -> dinsdag 26-11-2019
B19: Begintijd | C19: Eindtijd | D19: Begintijd | E19: Eindtijd | F19: tanken | G19: aan/afkoppelen | I19: Totaal uren | J19: =J20+J21 -> 0 | M19: Begintijd | N19: Eindtijd | O19: Begintijd | P19: Eindtijd | Q19: wachten instructie | R19: wachten koppelchauffeur
A20: =IF(B20,"1",0) -> 0 | F20: =C20-B20 -> 0 | G20: =E20-D20 -> 0 | I20: tanken | J20: =SUM(F20:F29) -> 0 | L20: =IF(M20,"1",0) -> 1 | M20: 2015-11-25T07:59:15 | N20: 2015-11-25T08:35:03 | Q20: =N20-M20 -> 0.02486111112 | R20: =R7 -> 0
A21: =IF(B21,"1",0) -> 0 | F21: 0 | G21: 0 | I21: aan-afkoppelen | J21: =SUM(G20:G29) -> 0 | L21: 0 | Q21: =N21-M21 -> 0 | R21: 0
A22: 0 | F22: 0 | G22: 0 | L22: 0 | Q22: 0 | R22: 0
A23: 0 | F23: 0 | G23: 0 | I23: Totaal uren | J23: =J24+J25 -> 0.02486111112 | L23: 0 | Q23: 0 | R23: 0
A24: 0 | F24: 0 | G24: 0 | I24: wachten instructie | J24: =SUM(Q20:Q29) -> 0.02486111112 | L24: 0 | Q24: 0 | R24: 0
A25: 0 | F25: 0 | G25: 0 | I25: wachten koppelchauffeur | J25: =SUM(R20:R29) -> 0 | L25: 0 | Q25: 0 | R25: 0
A26: 0 | F26: 0 | G26: 0 | L26: 0 | Q26: 0 | R26: 0
A27: 0 | F27: 0 | G27: 0 | L27: 0 | Q27: 0 | R27: 0
A28: 0 | F28: 0 | G28: 0 | L28: 0 | Q28: 0 | R28: 0
A29: 0 | F29: 0 | G29: 0 | L29: 0 | Q29: =Q16 -> 0 | R29: =R16 -> 0
B31: woensdag 27-11-2019 | M31: =B31 -> woensdag 27-11-2019
B32: Begintijd | C32: Eindtijd | D32: Begintijd | E32: Eindtijd | F32: tanken | G32: aan/afkoppelen | I32: Totaal uren | J32: =J33+J34 -> 0.01173611111 | M32: Begintijd | N32: Eindtijd | O32: Begintijd | P32: Eindtijd | Q32: wachten instructie | R32: wachten koppelchauffeur
A33: =IF(B33,"1",0) -> 0 | D33: 2015-11-26T17:46:50 | E33: 2015-11-26T17:51:47 | F33: =C33-B33 -> 0 | G33: =E33-D33 -> 0.003437499996 | I33: tanken | J33: =SUM(F33:F38) -> 0 | L33: 1 | Q33: 0 | R33: 0
A34: 0 | D34: 2015-11-26T19:59:42 | E34: 2015-11-26T20:11:39 | F34: 0 | G34: 0.008298611116 | I34: aan-afkoppelen | J34: =SUM(G33:G38) -> 0.01173611111 | L34: =IF(M34,"1",0) -> 0 | Q34: 0 | R34: 0
A35: 0 | F35: 0 | G35: 0 | L35: 0 | Q35: 0 | R35: 0
A36: 0 | F36: 0 | G36: 0 | I36: Totaal uren | J36: =J37+J38 -> 0 | L36: 0 | Q36: 0 | R36: 0
A37: 0 | F37: 0 | G37: 0 | I37: wachten instructie | J37: =SUM(Q33:Q42) -> 0 | L37: 0 | Q37: 0 | R37: 0
A38: 0 | F38: 0 | G38: 0 | I38: wachten koppelchauffeur | J38: =SUM(R33:R42) -> 0 | L38: 0 | Q38: 0 | R38: 0
A39: 0 | F39: 0 | G39: 0 | L39: 0 | Q39: 0 | R39: 0
A40: 0 | F40: 0 | G40: 0 | L40: 0 | Q40: 0 | R40: 0
A41: 0 | F41: 0 | G41: 0 | L41: 0 | Q41: 0 | R41: 0
A42: 0 | F42: 0 | G42: 0 | L42: 0 | Q42: 0 | R42: 0
B44: donderdag 28-11-2019 | M44: =B44 -> donderdag 28-11-2019
B45: Begintijd | C45: Eindtijd | D45: Begintijd | E45: Eindtijd | F45: tanken | G45: aan/afkoppelen | I45: Totaal uren | J45: =J46+J47 -> 0.006782407407 | M45: Begintijd | N45: Eindtijd | O45: Begintijd | P45: Eindtijd | Q45: wachten instructie | R45: wachten koppelchauffeur
A46: =IF(B46,"1",0) -> 1 | B46: 2015-11-27T05:45:30 | C46: 2015-11-27T05:55:16 | F46: =C46-B46 -> 0.006782407407 | G46: =E46-D46 -> 0 | I46: tanken | J46: =SUM(F46:F55) -> 0.006782407407 | L46: 0 | Q46: =N46-M46 -> 0 | R46: =P46-O46 -> 0
A47: 0 | F47: =C47-B47 -> 0 | G47: 0 | I47: aan-afkoppelen | J47: =SUM(G46:G55) -> 0 | L47: =IF(M46,"1",0) -> 0 | Q47: 0 | R47: =P47-O47 -> 0
A48: 0 | F48: 0 | G48: 0 | L48: =IF(M47,"1",0) -> 0 | Q48: 0 | R48: 0
A49: 0 | F49: 0 | G49: 0 | I49: Totaal uren | J49: =J50+J51 -> 0 | L49: =IF(M49,"1",0) -> 0 | Q49: 0 | R49: 0
A50: 0 | F50: 0 | G50: 0 | I50: wachten instructie | J50: =SUM(Q46:Q55) -> 0 | L50: 0 | Q50: 0 | R50: 0
A51: 0 | F51: 0 | G51: 0 | I51: wachten koppelchauffeur | J51: =SUM(R46:R55) -> 0 | L51: 0 | Q51: 0 | R51: 0
A52: 0 | F52: 0 | G52: 0 | L52: 0 | Q52: 0 | R52: 0
A53: 0 | F53: 0 | G53: 0 | L53: 0 | Q53: 0 | R53: 0
A54: 0 | F54: 0 | G54: 0 | L54: 0 | Q54: 0 | R54: 0
A55: 0 | F55: 0 | G55: 0 | L55: 0 | Q55: 0 | R55: 0
B57: vrijdag 29-11-2019 | M57: =B57 -> vrijdag 29-11-2019
B58: Begintijd | C58: Eindtijd | D58: Begintijd | E58: Eindtijd | F58: tanken | G58: aan/afkoppelen | I58: Totaal uren | J58: =J59+J60 -> 0.01799768518 | M58: Begintijd | N58: Eindtijd | O58: Begintijd | P58: Eindtijd | Q58: wachten instructie | R58: wachten koppelchauffeur
A59: =IF(B59,"1",0) -> 0 | D59: 2015-11-28T18:03:20 | E59: 2015-11-28T18:13:36 | F59: =C59-B59 -> 0 | G59: =E59-D59 -> 0.00712962963 | I59: tanken | J59: =SUM(F59:F64) -> 0 | L59: =IF(M59,"1",0) -> 0 | Q59: =N59-M59 -> 0 | R59: =P59-O59 -> 0
A60: =IF(B60,"1",0) -> 0 | D60: 2015-11-28T20:40:07 | E60: 2015-11-28T20:55:46 | F60: =C60-B60 -> 0 | G60: 0.01086805555 | I60: aan-afkoppelen | J60: =SUM(G59:G64) -> 0.01799768518 | L60: =IF(M60,"1",0) -> 0 | Q60: 0 | R60: =P60-O60 -> 0
A61: 0 | F61: 0 | G61: 0 | L61: 0 | Q61: 0 | R61: 0
A62: 0 | F62: 0 | G62: 0 | I62: Totaal uren | J62: =J63+J64 -> 0 | L62: 0 | Q62: 0 | R62: 0
A63: 0 | F63: 0 | G63: 0 | I63: wachten instructie | J63: =SUM(Q59:Q68) -> 0 | L63: 0 | Q63: 0 | R63: 0
A64: 0 | F64: 0 | G64: 0 | I64: wachten koppelchauffeur | J64: =SUM(R59:R68) -> 0 | L64: 0 | Q64: 0 | R64: 0
A65: 0 | F65: 0 | G65: 0 | L65: 0 | Q65: 0 | R65: 0
A66: 0 | F66: 0 | G66: 0 | L66: 0 | Q66: 0 | R66: 0
A67: 0 | F67: 0 | G67: 0 | L67: 0 | Q67: 0 | R67: 0
A68: 0 | F68: 0 | G68: 0 | L68: 0 | Q68: 0 | R68: 0
B70: zaterdag 30-11-2019 | M70: =B70 -> zaterdag 30-11-2019
B71: Begintijd | C71: Eindtijd | D71: Begintijd | E71: Eindtijd | F71: tanken | G71: aan/afkoppelen | I71: Totaal uren | J71: =J72+J73 -> 0 | M71: Begintijd | N71: Eindtijd | O71: Begintijd | P71: Eindtijd | Q71: wachten instructie | R71: wachten koppelchauffeur
A72: =IF(B72,"1",0) -> 0 | F72: =C72-B72 -> 0 | G72: =E72-D72 -> 0 | I72: tanken | J72: =SUM(F72:F81) -> 0 | L72: =IF(M72,"1",0) -> 0 | Q72: =N72-M72 -> 0 | R72: =P72-O72 -> 0
A73: =IF(B73,"1",0) -> 0 | F73: =C73-B73 -> 0 | G73: =E73-D73 -> 0 | I73: aan-afkoppelen | J73: =SUM(G72:G81) -> 0 | L73: =IF(M73,"1",0) -> 0 | Q73: =N73-M73 -> 0 | R73: =P73-O73 -> 0
A74: 0 | F74: 0 | G74: 0 | L74: 0 | Q74: 0 | R74: 0
A75: 0 | F75: 0 | G75: 0 | I75: Totaal uren | J75: =J76+J77 -> 0 | L75: 0 | Q75: 0 | R75: 0
A76: 0 | F76: 0 | G76: 0 | I76: wachten instructie | J76: =SUM(Q72:Q81) -> 0 | L76: 0 | Q76: 0 | R76: 0
A77: 0 | F77: 0 | G77: 0 | I77: wachten koppelchauffeur | J77: =SUM(R72:R81) -> 0 | L77: 0 | Q77: 0 | R77: 0
A78: 0 | F78: 0 | G78: 0 | L78: 0 | Q78: 0 | R78: 0
A79: 0 | F79: 0 | G79: 0 | L79: 0 | Q79: 0 | R79: 0
A80: 0 | F80: 0 | G80: 0 | L80: 0 | Q80: 0 | R80: 0
A81: 0 | F81: 0 | G81: 0 | L81: 0 | Q81: 0 | R81: 0
B83: zondag 01-12-2019 | M83: =B83 -> zondag 01-12-2019
B84: Begintijd | C84: Eindtijd | D84: Begintijd | E84: Eindtijd | F84: tanken | G84: aan/afkoppelen | I84: Totaal uren | J84: =J85+J86 -> 0.01043981481 | M84: Begintijd | N84: Eindtijd | O84: Begintijd | P84: Eindtijd | Q84: wachten instructie | R84: wachten koppelchauffeur
A85: =IF(B85,"1",0) -> 1 | B85: 2015-11-30T09:32:17 | C85: 2015-11-30T09:47:19 | F85: =C85-B85 -> 0.01043981481 | G85: =E85-D85 -> 0 | I85: tanken | J85: =SUM(F85:F90) -> 0.01043981481 | L85: =IF(M85,"1",0) -> 0 | Q85: =N85-M85 -> 0 | R85: =P85-O85 -> 0
A86: 0 | F86: =C86-B86 -> 0 | G86: =E86-D86 -> 0 | I86: aan-afkoppelen | J86: =SUM(G85:G90) -> 0 | L86: =IF(M86,"1",0) -> 0 | Q86: 0 | R86: 0
A87: 0 | F87: 0 | G87: 0 | L87: 0 | Q87: 0 | R87: 0
A88: 0 | F88: 0 | G88: 0 | I88: Totaal uren | J88: =J89+J90 -> 0 | L88: 0 | Q88: 0 | R88: 0
A89: 0 | F89: 0 | G89: 0 | I89: wachten instructie | J89: =SUM(Q85:Q94) -> 0 | L89: 0 | Q89: 0 | R89: 0
A90: 0 | F90: 0 | G90: 0 | I90: wachten koppelchauffeur | J90: =SUM(R85:R94) -> 0 | L90: 0 | Q90: 0 | R90: 0
A91: 0 | F91: 0 | G91: 0 | L91: 0 | Q91: 0 | R91: 0
A92: 0 | F92: 0 | G92: 0 | L92: 0 | Q92: 0 | R92: 0
A93: 0 | F93: 0 | G93: 0 | L93: 0 | Q93: 0 | R93: 0
A94: 0 | F94: 0 | G94: 0 | L94: 0 | Q94: 0 | R94: 0
I96: tanken | J96: =J85+J72+J59+J46+J33+J20+J7 -> 0.0356712963
I98: aan-afkoppelen | J98: =J86+J73+J60+J47+J34+J21+J8 -> 0.04068287036
I100: Totaal uren | J100: =J98+J96 -> 0.07635416666
I103: wachten instructie | J103: =J89+J76+J63+J50+J37+J24+J11 -> 0.02486111112
I105: wachten koppelchauffeur | J105: =J90+J77+J64+J51+J38+J25+J12 -> 0
I107: Totaal uren | J107: =J105+J103 -> 0.02486111112
B110: Einde dag-taken week 48

Sheet Blad1 (hidden)

Sheet LadenLossen (41) (hidden)
A1: 02:00:00 | B1: Laden/lossen (beschikbaarheidstijd (behalve bij Rood )) | J1: Week 41 | N1: = zelf laden/lossen
J4: Totaal | N4: Wachturen laden/lossen
B5: Laden | F5: Lossen | J5: Laden | K5: Lossen | L5: Totaal uren | N5: Laden | P5: Lossen | Q5: Totaal uren
A6: Nr. | J6: =SUM(J8:J38) -> 0.1519560185 | K6: =SUM(K8:K38) -> 0.2372337963 | L6: =J6+K6 -> 0.3891898148 | N6: =SUM(N8:N16) -> 0.09078703704 | P6: =SUM(P8:P16) -> 0 | Q6: =N6+P6 -> 0.09078703704
A7: 0 | B7: begin | D7: eind | F7: begin | H7: eind
A8: 1 | B8: 2015-10-06T09:22:55 | D8: 2015-10-06T09:24:41 | J8: =IF(D8<>"",IF(D8-B8>TIME(2,0,0),TIME(2,0,0),D8-B8),"") -> 0.001226851848 | K8: =IF(H8<>"",IF((H8-F8)>TIME(2,0,0),TIME(2,0,0),H8-F8),"") ->  | N8: =IF(D8-B8>TIME(2,0,0),D8-B8-TIME(2,0,0),"") ->  | P8: =IF((H8-F8)>TIME(2,0,0),H8-F8-TIME(2,0,0),"") -> 
A9: 2 | F9: 2015-10-06T09:26:45 | H9: 2015-10-06T10:11:50 | J9: =IF(D9<>"",IF(D9-B9>TIME(2,0,0),TIME(2,0,0),D9-B9),"") ->  | K9: 0.03130787037 | N9: =IF(D9-B9>TIME(2,0,0),D9-B9-TIME(2,0,0),"") ->  | P9: =IF((H9-F9)>TIME(2,0,0),H9-F9-TIME(2,0,0),"") -> 
A10: 3 | F10: 2015-10-06T10:15:30 | H10: 2015-10-06T12:05:42 | J10: =IF(D10<>"",IF(D10-B10>TIME(2,0,0),TIME(2,0,0),D10-B10),"") ->  | K10: 0.07652777778
A11: 4 | F11: 2015-10-06T15:17:25 | H11: 2015-10-06T16:33:40 | J11: =IF(D11<>"",IF(D11-B11>TIME(2,0,0),TIME(2,0,0),D11-B11),"") ->  | K11: 0.05295138889 | N11: =IF(D11-B11>TIME(2,0,0),D11-B11-TIME(2,0,0),"") ->  | P11: =IF((H11-F11)>TIME(2,0,0),H11-F11-TIME(2,0,0),"") -> 
A12: 5 | B12: 2015-10-07T07:49:50 | D12: 2015-10-07T12:00:34 | J12: =IF(D12<>"",IF(D12-B12>TIME(2,0,0),TIME(2,0,0),D12-B12),"") -> 0.08333333333 | N12: =IF(D12-B12>TIME(2,0,0),D12-B12-TIME(2,0,0),"") -> 0.09078703704 | P12: =IF((H12-F12)>TIME(2,0,0),H12-F12-TIME(2,0,0),"") -> 
A13: 6 | F13: 2015-10-09T08:09:21 | H13: 2015-10-09T09:45:39 | K13: 0.066875
A14: 7 | B14: 2015-10-09T09:45:48 | D14: 2015-10-09T10:18:29 | J14: =IF(D14<>"",IF(D14-B14>TIME(2,0,0),TIME(2,0,0),D14-B14),"") -> 0.02269675926
A15: 8 | B15: 2015-10-09T10:45:01 | D15: 2015-10-09T11:10:17 | J15: =IF(D15<>"",IF(D15-B15>TIME(2,0,0),TIME(2,0,0),D15-B15),"") -> 0.01754629629
A16: 9 | B16: 2015-10-09T13:27:42 | D16: 2015-10-09T14:06:48 | J16: =IF(D16<>"",IF(D16-B16>TIME(2,0,0),TIME(2,0,0),D16-B16),"") -> 0.02715277778
A17: 10 | F17: 2015-10-09T16:34:03 | H17: 42286.69988 | J17: =IF(D17<>"",D17-B17,"") ->  | K17: =IF(H17<>"",H17-F17,"") -> 0.009571759256
J18: =IF(D18<>"",D18-B18,"") ->  | K18: =IF(H18<>"",H18-F18,"") -> 
J19: =IF(D19<>"",D19-B19,"") ->  | K19: =IF(H19<>"",H19-F19,"") ->  | L19: =IF(H19<>"",H19-F19,"") -> 

Sheet Dag-taken week (41) (hidden)
B1: Dag-taken week 41 | M1: =B1 -> Dag-taken week 41
B2: tanken | D2: aan/afkoppelen | F2: Totaal | G2: =Q2 -> Tijden | M2: wachten instructie | O2: wachten koppelchauffeur | Q2: Tijden
B5: maandag 07-10-2019 | M5: =B5 -> maandag 07-10-2019
B6: Begintijd | C6: Eindtijd | D6: Begintijd | E6: Eindtijd | F6: tanken | G6: aan/afkoppelen | I6: Totaal uren | J6: =J7+J8 -> 0.02343750001 | M6: Begintijd | N6: Eindtijd | O6: Begintijd | P6: Eindtijd | Q6: wachten instructie | R6: wachten koppelchauffeur
A7: =IF(B7,"1",0) -> 1 | B7: 2015-10-06T03:10:38 | C7: 2015-10-06T03:23:30 | D7: 2015-10-06T03:26:58 | E7: 2015-10-06T03:41:35 | F7: =C7-B7 -> 0.008935185186 | G7: =E7-D7 -> 0.01015046296 | I7: tanken | J7: =SUM(F7:F12) -> 0.01328703704 | L7: =IF(M7,"1",0) -> 0 | Q7: =N7-M7 -> 0 | R7: =P7-O7 -> 0
A8: 1 | B8: 2015-10-06T03:45:39 | C8: 2015-10-06T03:51:55 | F8: =C8-B8 -> 0.004351851858 | G8: 0 | I8: aan-afkoppelen | J8: =SUM(G7:G12) -> 0.01015046296 | L8: 0 | Q8: =N8-M8 -> 0 | R8: =P8-O8 -> 0
A9: 0 | F9: 0 | G9: 0 | L9: 0 | Q9: 0 | R9: 0
A10: 0 | F10: 0 | G10: 0 | I10: Totaal uren | J10: =J11+J12 -> 0 | L10: 0 | Q10: 0 | R10: 0
A11: 0 | F11: 0 | G11: 0 | I11: wachten instructie | J11: =SUM(Q7:Q16) -> 0 | L11: 0 | Q11: 0 | R11: 0
A12: 0 | F12: 0 | G12: 0 | I12: wachten koppelchauffeur | J12: =SUM(R7:R16) -> 0 | L12: 0 | Q12: 0 | R12: 0
A13: 0 | F13: 0 | G13: 0 | L13: 0 | Q13: 0 | R13: 0
A14: 0 | F14: 0 | G14: 0 | L14: 0 | Q14: 0 | R14: 0
A15: 0 | F15: 0 | G15: 0 | L15: 0 | Q15: 0 | R15: 0
A16: 0 | F16: 0 | G16: 0 | L16: 0 | Q16: 0 | R16: 0
B18: dinsdag 08-10-2019 | M18: =B18 -> dinsdag 08-10-2019
B19: Begintijd | C19: Eindtijd | D19: Begintijd | E19: Eindtijd | F19: tanken | G19: aan/afkoppelen | I19: Totaal uren | J19: =J20+J21 -> 0 | M19: Begintijd | N19: Eindtijd | O19: Begintijd | P19: Eindtijd | Q19: wachten instructie | R19: wachten koppelchauffeur
A20: =IF(B20,"1",0) -> 0 | F20: =C20-B20 -> 0 | G20: =E20-D20 -> 0 | I20: tanken | J20: =SUM(F20:F29) -> 0 | L20: =IF(M20,"1",0) -> 0 | Q20: =N20-M20 -> 0 | R20: =R7 -> 0
A21: =IF(B21,"1",0) -> 0 | F21: 0 | G21: 0 | I21: aan-afkoppelen | J21: =SUM(G20:G29) -> 0 | L21: 0 | Q21: =N21-M21 -> 0 | R21: 0
A22: 0 | F22: 0 | G22: 0 | L22: 0 | Q22: 0 | R22: 0
A23: 0 | F23: 0 | G23: 0 | I23: Totaal uren | J23: =J24+J25 -> 0 | L23: 0 | Q23: 0 | R23: 0
A24: 0 | F24: 0 | G24: 0 | I24: wachten instructie | J24: =SUM(Q20:Q29) -> 0 | L24: 0 | Q24: 0 | R24: 0
A25: 0 | F25: 0 | G25: 0 | I25: wachten koppelchauffeur | J25: =SUM(R20:R29) -> 0 | L25: 0 | Q25: 0 | R25: 0
A26: 0 | F26: 0 | G26: 0 | L26: 0 | Q26: 0 | R26: 0
A27: 0 | F27: 0 | G27: 0 | L27: 0 | Q27: 0 | R27: 0
A28: 0 | F28: 0 | G28: 0 | L28: 0 | Q28: 0 | R28: 0
A29: 0 | F29: 0 | G29: 0 | L29: 0 | Q29: =Q16 -> 0 | R29: =R16 -> 0
B31: woensdag 09-10-2019 | M31: =B31 -> woensdag 09-10-2019
B32: Begintijd | C32: Eindtijd | D32: Begintijd | E32: Eindtijd | F32: tanken | G32: aan/afkoppelen | I32: Totaal uren | J32: =J33+J34 -> 0 | M32: Begintijd | N32: Eindtijd | O32: Begintijd | P32: Eindtijd | Q32: wachten instructie | R32: wachten koppelchauffeur
A33: =IF(B33,"1",0) -> 0 | F33: =C33-B33 -> 0 | G33: =E33-D33 -> 0 | I33: tanken | J33: =SUM(F33:F38) -> 0 | L33: 1 | Q33: 0 | R33: 0
A34: 0 | F34: 0 | G34: 0 | I34: aan-afkoppelen | J34: =SUM(G33:G38) -> 0 | L34: =IF(M34,"1",0) -> 0 | Q34: 0 | R34: 0
A35: 0 | F35: 0 | G35: 0 | L35: 0 | Q35: 0 | R35: 0
A36: 0 | F36: 0 | G36: 0 | I36: Totaal uren | J36: =J37+J38 -> 0 | L36: 0 | Q36: 0 | R36: 0
A37: 0 | F37: 0 | G37: 0 | I37: wachten instructie | J37: =SUM(Q33:Q42) -> 0 | L37: 0 | Q37: 0 | R37: 0
A38: 0 | F38: 0 | G38: 0 | I38: wachten koppelchauffeur | J38: =SUM(R33:R42) -> 0 | L38: 0 | Q38: 0 | R38: 0
A39: 0 | F39: 0 | G39: 0 | L39: 0 | Q39: 0 | R39: 0
A40: 0 | F40: 0 | G40: 0 | L40: 0 | Q40: 0 | R40: 0
A41: 0 | F41: 0 | G41: 0 | L41: 0 | Q41: 0 | R41: 0
A42: 0 | F42: 0 | G42: 0 | L42: 0 | Q42: 0 | R42: 0
B44: donderdag 10-10-2019 | M44: =B44 -> donderdag 10-10-2019
B45: Begintijd | C45: Eindtijd | D45: Begintijd | E45: Eindtijd | F45: tanken | G45: aan/afkoppelen | I45: Totaal uren | J45: =J46+J47 -> 0.01016203704 | M45: Begintijd | N45: Eindtijd | O45: Begintijd | P45: Eindtijd | Q45: wachten instructie | R45: wachten koppelchauffeur
A46: =IF(B46,"1",0) -> 1 | B46: 2015-10-09T16:16:11 | C46: 2015-10-09T16:30:49 | F46: =C46-B46 -> 0.01016203704 | G46: =E46-D46 -> 0 | I46: tanken | J46: =SUM(F46:F55) -> 0.01016203704 | L46: 0 | M46: 2015-10-09T11:12:10 | N46: 2015-10-09T11:31:00 | Q46: =N46-M46 -> 0.01307870371 | R46: =P46-O46 -> 0
A47: =IF(B47,"1",0) -> 0 | F47: =C47-B47 -> 0 | G47: 0 | I47: aan-afkoppelen | J47: =SUM(G46:G55) -> 0 | L47: =IF(M46,"1",0) -> 1 | Q47: 0 | R47: =P47-O47 -> 0
A48: 0 | F48: 0 | G48: 0 | L48: =IF(M47,"1",0) -> 0 | Q48: 0 | R48: 0
A49: 0 | F49: 0 | G49: 0 | I49: Totaal uren | J49: =J50+J51 -> 0.01307870371 | L49: =IF(M49,"1",0) -> 0 | Q49: 0 | R49: 0
A50: 0 | F50: 0 | G50: 0 | I50: wachten instructie | J50: =SUM(Q46:Q55) -> 0.01307870371 | L50: 0 | Q50: 0 | R50: 0
A51: 0 | F51: 0 | G51: 0 | I51: wachten koppelchauffeur | J51: =SUM(R46:R55) -> 0 | L51: 0 | Q51: 0 | R51: 0
A52: 0 | F52: 0 | G52: 0 | L52: 0 | Q52: 0 | R52: 0
A53: 0 | F53: 0 | G53: 0 | L53: 0 | Q53: 0 | R53: 0
A54: 0 | F54: 0 | G54: 0 | L54: 0 | Q54: 0 | R54: 0
A55: 0 | F55: 0 | G55: 0 | L55: 0 | Q55: 0 | R55: 0
B57: vrijdag 11-10-2019 | M57: =B57 -> vrijdag 11-10-2019
B58: Begintijd | C58: Eindtijd | D58: Begintijd | E58: Eindtijd | F58: tanken | G58: aan/afkoppelen | I58: Totaal uren | J58: =J59+J60 -> 0 | M58: Begintijd | N58: Eindtijd | O58: Begintijd | P58: Eindtijd | Q58: wachten instructie | R58: wachten koppelchauffeur
A59: =IF(B59,"1",0) -> 0 | F59: =C59-B59 -> 0 | G59: =E59-D59 -> 0 | I59: tanken | J59: =SUM(F59:F64) -> 0 | L59: =IF(M59,"1",0) -> 0 | Q59: =N59-M59 -> 0 | R59: =P59-O59 -> 0
A60: =IF(B60,"1",0) -> 0 | F60: =C60-B60 -> 0 | G60: 0 | I60: aan-afkoppelen | J60: =SUM(G59:G64) -> 0 | L60: =IF(M60,"1",0) -> 0 | Q60: 0 | R60: =P60-O60 -> 0
A61: 0 | F61: 0 | G61: 0 | L61: 0 | Q61: 0 | R61: 0
A62: 0 | F62: 0 | G62: 0 | I62: Totaal uren | J62: =J63+J64 -> 0 | L62: 0 | Q62: 0 | R62: 0
A63: 0 | F63: 0 | G63: 0 | I63: wachten instructie | J63: =SUM(Q59:Q68) -> 0 | L63: 0 | Q63: 0 | R63: 0
A64: 0 | F64: 0 | G64: 0 | I64: wachten koppelchauffeur | J64: =SUM(R59:R68) -> 0 | L64: 0 | Q64: 0 | R64: 0
A65: 0 | F65: 0 | G65: 0 | L65: 0 | Q65: 0 | R65: 0
A66: 0 | F66: 0 | G66: 0 | L66: 0 | Q66: 0 | R66: 0
A67: 0 | F67: 0 | G67: 0 | L67: 0 | Q67: 0 | R67: 0
A68: 0 | F68: 0 | G68: 0 | L68: 0 | Q68: 0 | R68: 0
B70: zaterdag 12-10-2019 | M70: =B70 -> zaterdag 12-10-2019
B71: Begintijd | C71: Eindtijd | D71: Begintijd | E71: Eindtijd | F71: tanken | G71: aan/afkoppelen | I71: Totaal uren | J71: =J72+J73 -> 0 | M71: Begintijd | N71: Eindtijd | O71: Begintijd | P71: Eindtijd | Q71: wachten instructie | R71: wachten koppelchauffeur
A72: =IF(B72,"1",0) -> 0 | F72: =C72-B72 -> 0 | G72: =E72-D72 -> 0 | I72: tanken | J72: =SUM(F72:F81) -> 0 | L72: =IF(M72,"1",0) -> 0 | Q72: =N72-M72 -> 0 | R72: =P72-O72 -> 0
A73: =IF(B73,"1",0) -> 0 | F73: =C73-B73 -> 0 | G73: =E73-D73 -> 0 | I73: aan-afkoppelen | J73: =SUM(G72:G81) -> 0 | L73: =IF(M73,"1",0) -> 0 | Q73: =N73-M73 -> 0 | R73: =P73-O73 -> 0
A74: 0 | F74: 0 | G74: 0 | L74: 0 | Q74: 0 | R74: 0
A75: 0 | F75: 0 | G75: 0 | I75: Totaal uren | J75: =J76+J77 -> 0 | L75: 0 | Q75: 0 | R75: 0
A76: 0 | F76: 0 | G76: 0 | I76: wachten instructie | J76: =SUM(Q72:Q81) -> 0 | L76: 0 | Q76: 0 | R76: 0
A77: 0 | F77: 0 | G77: 0 | I77: wachten koppelchauffeur | J77: =SUM(R72:R81) -> 0 | L77: 0 | Q77: 0 | R77: 0
A78: 0 | F78: 0 | G78: 0 | L78: 0 | Q78: 0 | R78: 0
A79: 0 | F79: 0 | G79: 0 | L79: 0 | Q79: 0 | R79: 0
A80: 0 | F80: 0 | G80: 0 | L80: 0 | Q80: 0 | R80: 0
A81: 0 | F81: 0 | G81: 0 | L81: 0 | Q81: 0 | R81: 0
B83: zondag 13-10-2019 | M83: =B83 -> zondag 13-10-2019
B84: Begintijd | C84: Eindtijd | D84: Begintijd | E84: Eindtijd | F84: tanken | G84: aan/afkoppelen | I84: Totaal uren | J84: =J85+J86 -> 0 | M84: Begintijd | N84: Eindtijd | O84: Begintijd | P84: Eindtijd | Q84: wachten instructie | R84: wachten koppelchauffeur
A85: =IF(B85,"1",0) -> 0 | F85: =C85-B85 -> 0 | G85: =E85-D85 -> 0 | I85: tanken | J85: =SUM(F85:F90) -> 0 | L85: =IF(M85,"1",0) -> 0 | Q85: =N85-M85 -> 0 | R85: =P85-O85 -> 0
A86: 0 | F86: =C86-B86 -> 0 | G86: =E86-D86 -> 0 | I86: aan-afkoppelen | J86: =SUM(G85:G90) -> 0 | L86: =IF(M86,"1",0) -> 0 | Q86: 0 | R86: 0
A87: 0 | F87: 0 | G87: 0 | L87: 0 | Q87: 0 | R87: 0
A88: 0 | F88: 0 | G88: 0 | I88: Totaal uren | J88: =J89+J90 -> 0 | L88: 0 | Q88: 0 | R88: 0
A89: 0 | F89: 0 | G89: 0 | I89: wachten instructie | J89: =SUM(Q85:Q94) -> 0 | L89: 0 | Q89: 0 | R89: 0
A90: 0 | F90: 0 | G90: 0 | I90: wachten koppelchauffeur | J90: =SUM(R85:R94) -> 0 | L90: 0 | Q90: 0 | R90: 0
A91: 0 | F91: 0 | G91: 0 | L91: 0 | Q91: 0 | R91: 0
A92: 0 | F92: 0 | G92: 0 | L92: 0 | Q92: 0 | R92: 0
A93: 0 | F93: 0 | G93: 0 | L93: 0 | Q93: 0 | R93: 0
A94: 0 | F94: 0 | G94: 0 | L94: 0 | Q94: 0 | R94: 0
I96: tanken | J96: =J85+J72+J59+J46+J33+J20+J7 -> 0.02344907408
I98: aan-afkoppelen | J98: =J86+J73+J60+J47+J34+J21+J8 -> 0.01015046296
I100: Totaal uren | J100: =J98+J96 -> 0.03359953705
I103: wachten instructie | J103: =J89+J76+J63+J50+J37+J24+J11 -> 0.01307870371
I105: wachten koppelchauffeur | J105: =J90+J77+J64+J51+J38+J25+J12 -> 0
I107: Totaal uren | J107: =J105+J103 -> 0.01307870371
B110: Einde dag-taken week 41

Sheet LadenLossen (40) (hidden)
A1: 02:00:00 | B1: Laden/lossen (beschikbaarheidstijd (behalve bij Rood )) | J1: Week 40 | N1: = zelf laden/lossen
J4: Totaal | N4: Wachturen laden/lossen
B5: Laden | F5: Lossen | J5: Laden | K5: Lossen | L5: Totaal uren | N5: Laden | P5: Lossen | Q5: Totaal uren
A6: Nr. | J6: =SUM(J8:J38) -> 0.244212963 | K6: =SUM(K8:K38) -> 0.2119675926 | L6: =J6+K6 -> 0.4561805556 | N6: =SUM(N8:N16) -> 0.02854166667 | P6: =SUM(P8:P16) -> 0 | Q6: =N6+P6 -> 0.02854166667
A7: 0 | B7: begin | D7: eind | F7: begin | H7: eind
A8: 1 | B8: 2015-09-29T02:40:24 | D8: 2015-09-29T02:45:12 | J8: =IF(D8<>"",IF(D8-B8>TIME(2,0,0),TIME(2,0,0),D8-B8),"") -> 0.003333333334 | K8: =IF(H8<>"",IF((H8-F8)>TIME(2,0,0),TIME(2,0,0),H8-F8),"") ->  | N8: =IF(D8-B8>TIME(2,0,0),D8-B8-TIME(2,0,0),"") ->  | P8: =IF((H8-F8)>TIME(2,0,0),H8-F8-TIME(2,0,0),"") -> 
A9: 2 | F9: 2015-09-29T08:50:42 | H9: 2015-09-29T10:15:50 | J9: =IF(D9<>"",IF(D9-B9>TIME(2,0,0),TIME(2,0,0),D9-B9),"") ->  | K9: 0.05912037037 | N9: =IF(D9-B9>TIME(2,0,0),D9-B9-TIME(2,0,0),"") ->  | P9: =IF((H9-F9)>TIME(2,0,0),H9-F9-TIME(2,0,0),"") -> 
A10: 3 | F10: 2015-09-29T10:16:29 | H10: 2015-09-29T10:33:35 | J10: =IF(D10<>"",IF(D10-B10>TIME(2,0,0),TIME(2,0,0),D10-B10),"") ->  | K10: 0.011875
A11: 4 | B11: 2015-09-30T07:11:00 | D11: 2015-09-30T09:52:06 | J11: =IF(D11<>"",IF(D11-B11>TIME(2,0,0),TIME(2,0,0),D11-B11),"") -> 0.08333333333 | N11: =IF(D11-B11>TIME(2,0,0),D11-B11-TIME(2,0,0),"") -> 0.02854166667 | P11: =IF((H11-F11)>TIME(2,0,0),H11-F11-TIME(2,0,0),"") -> 
A12: 5 | B12: 2015-09-30T11:05:56 | D12: 2015-09-30T11:45:03 | J12: =IF(D12<>"",IF(D12-B12>TIME(2,0,0),TIME(2,0,0),D12-B12),"") -> 0.02716435186 | N12: =IF(D12-B12>TIME(2,0,0),D12-B12-TIME(2,0,0),"") ->  | P12: =IF((H12-F12)>TIME(2,0,0),H12-F12-TIME(2,0,0),"") -> 
A13: 6 | F13: 2015-09-30T12:51:19 | H13: 42277.59441 | K13: 0.05877314815
A14: 7 | F14: 2015-09-30T15:00:30 | H14: 42277.6609 | J14: =IF(D14<>"",IF(D14-B14>TIME(2,0,0),TIME(2,0,0),D14-B14),"") ->  | K14: 0.03555555556
A15: 8 | B15: 2015-10-01T07:33:41 | D15: 42278.37102 | J15: =IF(D15<>"",IF(D15-B15>TIME(2,0,0),TIME(2,0,0),D15-B15),"") -> 0.05596064815
A16: 9 | B16: 2015-10-01T10:50:06 | D16: 42278.49494 | J16: =IF(D16<>"",IF(D16-B16>TIME(2,0,0),TIME(2,0,0),D16-B16),"") -> 0.04348379629
A17: 10 | B17: 2015-10-01T13:46:18 | D17: 2015-10-01T14:30:51 | J17: =IF(D17<>"",D17-B17,"") -> 0.0309375 | K17: =IF(H17<>"",H17-F17,"") ->  | L17: =IF(H17<>"",H17-F17,"") -> 
A18: 11 | F18: 2015-10-02T14:28:02 | H18: 2015-10-02T15:35:12 | K18: 0.04664351852
L19: =IF(H19<>"",H19-F19,"") -> 

Sheet Dag-taken week (40) (hidden)
B1: Dag-taken week 40 | M1: =B1 -> Dag-taken week 40
B2: tanken | D2: aan/afkoppelen | F2: Totaal | G2: =Q2 -> Tijden | M2: wachten instructie | O2: wachten koppelchauffeur | Q2: Tijden
B5: maandag 30-9-2019 | M5: =B5 -> maandag 30-9-2019
B6: Begintijd | C6: Eindtijd | D6: Begintijd | E6: Eindtijd | F6: tanken | G6: aan/afkoppelen | I6: Totaal uren | J6: =J7+J8 -> 0.01814814815 | M6: Begintijd | N6: Eindtijd | O6: Begintijd | P6: Eindtijd | Q6: wachten instructie | R6: wachten koppelchauffeur
A7: =IF(B7,"1",0) -> 1 | B7: 2015-09-29T02:21:06 | C7: 2015-09-29T02:39:53 | D7: 2015-09-29T02:11:27 | E7: 2015-09-29T02:18:48 | F7: =C7-B7 -> 0.01304398148 | G7: =E7-D7 -> 0.005104166667 | I7: tanken | J7: =SUM(F7:F12) -> 0.01304398148 | L7: =IF(M7,"1",0) -> 1 | M7: 2015-09-29T10:34:59 | N7: 2015-09-29T10:52:06 | Q7: =N7-M7 -> 0.01188657407 | R7: =P7-O7 -> 0
A8: 0 | F8: =C8-B8 -> 0 | G8: 0 | I8: aan-afkoppelen | J8: =SUM(G7:G12) -> 0.005104166667 | L8: 0 | Q8: =N8-M8 -> 0 | R8: =P8-O8 -> 0
A9: 0 | F9: 0 | G9: 0 | L9: 0 | Q9: 0 | R9: 0
A10: 0 | F10: 0 | G10: 0 | I10: Totaal uren | J10: =J11+J12 -> 0.01188657407 | L10: 0 | Q10: 0 | R10: 0
A11: 0 | F11: 0 | G11: 0 | I11: wachten instructie | J11: =SUM(Q7:Q16) -> 0.01188657407 | L11: 0 | Q11: 0 | R11: 0
A12: 0 | F12: 0 | G12: 0 | I12: wachten koppelchauffeur | J12: =SUM(R7:R16) -> 0 | L12: 0 | Q12: 0 | R12: 0
A13: 0 | F13: 0 | G13: 0 | L13: 0 | Q13: 0 | R13: 0
A14: 0 | F14: 0 | G14: 0 | L14: 0 | Q14: 0 | R14: 0
A15: 0 | F15: 0 | G15: 0 | L15: 0 | Q15: 0 | R15: 0
A16: 0 | F16: 0 | G16: 0 | L16: 0 | Q16: 0 | R16: 0
B18: dinsdag 01-10-2019 | M18: =B18 -> dinsdag 01-10-2019
B19: Begintijd | C19: Eindtijd | D19: Begintijd | E19: Eindtijd | F19: tanken | G19: aan/afkoppelen | I19: Totaal uren | J19: =J20+J21 -> 0 | M19: Begintijd | N19: Eindtijd | O19: Begintijd | P19: Eindtijd | Q19: wachten instructie | R19: wachten koppelchauffeur
A20: =IF(B20,"1",0) -> 0 | F20: =C20-B20 -> 0 | G20: =E20-D20 -> 0 | I20: tanken | J20: =SUM(F20:F29) -> 0 | L20: =IF(M20,"1",0) -> 1 | M20: 2015-09-30T15:51:57 | N20: 2015-09-30T16:14:47 | Q20: =N20-M20 -> 0.01585648148 | R20: =R7 -> 0
A21: =IF(B21,"1",0) -> 0 | F21: 0 | G21: 0 | I21: aan-afkoppelen | J21: =SUM(G20:G29) -> 0 | L21: 0 | Q21: =N21-M21 -> 0 | R21: 0
A22: 0 | F22: 0 | G22: 0 | L22: 0 | Q22: 0 | R22: 0
A23: 0 | F23: 0 | G23: 0 | I23: Totaal uren | J23: =J24+J25 -> 0.01585648148 | L23: 0 | Q23: 0 | R23: 0
A24: 0 | F24: 0 | G24: 0 | I24: wachten instructie | J24: =SUM(Q20:Q29) -> 0.01585648148 | L24: 0 | Q24: 0 | R24: 0
A25: 0 | F25: 0 | G25: 0 | I25: wachten koppelchauffeur | J25: =SUM(R20:R29) -> 0 | L25: 0 | Q25: 0 | R25: 0
A26: 0 | F26: 0 | G26: 0 | L26: 0 | Q26: 0 | R26: 0
A27: 0 | F27: 0 | G27: 0 | L27: 0 | Q27: 0 | R27: 0
A28: 0 | F28: 0 | G28: 0 | L28: 0 | Q28: 0 | R28: 0
A29: 0 | F29: 0 | G29: 0 | L29: 0 | Q29: =Q16 -> 0 | R29: =R16 -> 0
B31: woensdag 02-10-2019 | M31: =B31 -> woensdag 02-10-2019
B32: Begintijd | C32: Eindtijd | D32: Begintijd | E32: Eindtijd | F32: tanken | G32: aan/afkoppelen | I32: Totaal uren | J32: =J33+J34 -> 0 | M32: Begintijd | N32: Eindtijd | O32: Begintijd | P32: Eindtijd | Q32: wachten instructie | R32: wachten koppelchauffeur
A33: =IF(B33,"1",0) -> 0 | F33: =C33-B33 -> 0 | G33: =E33-D33 -> 0 | I33: tanken | J33: =SUM(F33:F38) -> 0 | L33: 1 | Q33: 0 | R33: 0
A34: 0 | F34: 0 | G34: 0 | I34: aan-afkoppelen | J34: =SUM(G33:G38) -> 0 | L34: =IF(M34,"1",0) -> 0 | Q34: 0 | R34: 0
A35: 0 | F35: 0 | G35: 0 | L35: 0 | Q35: 0 | R35: 0
A36: 0 | F36: 0 | G36: 0 | I36: Totaal uren | J36: =J37+J38 -> 0 | L36: 0 | Q36: 0 | R36: 0
A37: 0 | F37: 0 | G37: 0 | I37: wachten instructie | J37: =SUM(Q33:Q42) -> 0 | L37: 0 | Q37: 0 | R37: 0
A38: 0 | F38: 0 | G38: 0 | I38: wachten koppelchauffeur | J38: =SUM(R33:R42) -> 0 | L38: 0 | Q38: 0 | R38: 0
A39: 0 | F39: 0 | G39: 0 | L39: 0 | Q39: 0 | R39: 0
A40: 0 | F40: 0 | G40: 0 | L40: 0 | Q40: 0 | R40: 0
A41: 0 | F41: 0 | G41: 0 | L41: 0 | Q41: 0 | R41: 0
A42: 0 | F42: 0 | G42: 0 | L42: 0 | Q42: 0 | R42: 0
B44: donderdag 03-10-2019 | M44: =B44 -> donderdag 03-10-2019
B45: Begintijd | C45: Eindtijd | D45: Begintijd | E45: Eindtijd | F45: tanken | G45: aan/afkoppelen | I45: Totaal uren | J45: =J46+J47 -> 0.01041666667 | M45: Begintijd | N45: Eindtijd | O45: Begintijd | P45: Eindtijd | Q45: wachten instructie | R45: wachten koppelchauffeur
A46: =IF(B46,"1",0) -> 0 | D46: 2015-10-02T10:23:05 | E46: 2015-10-02T10:38:05 | F46: =C46-B46 -> 0 | G46: =E46-D46 -> 0.01041666667 | I46: tanken | J46: =SUM(F46:F55) -> 0 | L46: 0 | M46: 2015-10-02T15:35:12 | N46: 2015-10-02T16:40:01 | Q46: =N46-M46 -> 0.04501157408 | R46: =P46-O46 -> 0
A47: =IF(B47,"1",0) -> 0 | F47: =C47-B47 -> 0 | G47: 0 | I47: aan-afkoppelen | J47: =SUM(G46:G55) -> 0.01041666667 | L47: =IF(M46,"1",0) -> 1 | M47: 2015-10-02T16:58:23 | N47: 2015-10-02T17:27:17 | Q47: 0.02006944444 | R47: =P47-O47 -> 0
A48: 0 | F48: 0 | G48: 0 | L48: =IF(M47,"1",0) -> 1 | Q48: 0 | R48: 0
A49: 0 | F49: 0 | G49: 0 | I49: Totaal uren | J49: =J50+J51 -> 0.06508101852 | L49: =IF(M49,"1",0) -> 0 | Q49: 0 | R49: 0
A50: 0 | F50: 0 | G50: 0 | I50: wachten instructie | J50: =SUM(Q46:Q55) -> 0.06508101852 | L50: 0 | Q50: 0 | R50: 0
A51: 0 | F51: 0 | G51: 0 | I51: wachten koppelchauffeur | J51: =SUM(R46:R55) -> 0 | L51: 0 | Q51: 0 | R51: 0
A52: 0 | F52: 0 | G52: 0 | L52: 0 | Q52: 0 | R52: 0
A53: 0 | F53: 0 | G53: 0 | L53: 0 | Q53: 0 | R53: 0
A54: 0 | F54: 0 | G54: 0 | L54: 0 | Q54: 0 | R54: 0
A55: 0 | F55: 0 | G55: 0 | L55: 0 | Q55: 0 | R55: 0
B57: vrijdag 04-10-2019 | M57: =B57 -> vrijdag 04-10-2019
B58: Begintijd | C58: Eindtijd | D58: Begintijd | E58: Eindtijd | F58: tanken | G58: aan/afkoppelen | I58: Totaal uren | J58: =J59+J60 -> 0.01092592593 | M58: Begintijd | N58: Eindtijd | O58: Begintijd | P58: Eindtijd | Q58: wachten instructie | R58: wachten koppelchauffeur
A59: =IF(B59,"1",0) -> 0 | D59: 2015-10-03T10:35:04 | E59: 2015-10-03T10:50:48 | F59: =C59-B59 -> 0 | G59: =E59-D59 -> 0.01092592593 | I59: tanken | J59: =SUM(F59:F64) -> 0 | L59: =IF(M59,"1",0) -> 0 | Q59: =N59-M59 -> 0 | R59: =P59-O59 -> 0
A60: =IF(B60,"1",0) -> 0 | F60: =C60-B60 -> 0 | G60: 0 | I60: aan-afkoppelen | J60: =SUM(G59:G64) -> 0.01092592593 | L60: =IF(M60,"1",0) -> 0 | Q60: 0 | R60: =P60-O60 -> 0
A61: 0 | F61: 0 | G61: 0 | L61: 0 | Q61: 0 | R61: 0
A62: 0 | F62: 0 | G62: 0 | I62: Totaal uren | J62: =J63+J64 -> 0 | L62: 0 | Q62: 0 | R62: 0
A63: 0 | F63: 0 | G63: 0 | I63: wachten instructie | J63: =SUM(Q59:Q68) -> 0 | L63: 0 | Q63: 0 | R63: 0
A64: 0 | F64: 0 | G64: 0 | I64: wachten koppelchauffeur | J64: =SUM(R59:R68) -> 0 | L64: 0 | Q64: 0 | R64: 0
A65: 0 | F65: 0 | G65: 0 | L65: 0 | Q65: 0 | R65: 0
A66: 0 | F66: 0 | G66: 0 | L66: 0 | Q66: 0 | R66: 0
A67: 0 | F67: 0 | G67: 0 | L67: 0 | Q67: 0 | R67: 0
A68: 0 | F68: 0 | G68: 0 | L68: 0 | Q68: 0 | R68: 0
B70: zaterdag 05-10-2019 | M70: =B70 -> zaterdag 05-10-2019
B71: Begintijd | C71: Eindtijd | D71: Begintijd | E71: Eindtijd | F71: tanken | G71: aan/afkoppelen | I71: Totaal uren | J71: =J72+J73 -> 0 | M71: Begintijd | N71: Eindtijd | O71: Begintijd | P71: Eindtijd | Q71: wachten instructie | R71: wachten koppelchauffeur
A72: =IF(B72,"1",0) -> 0 | F72: =C72-B72 -> 0 | G72: =E72-D72 -> 0 | I72: tanken | J72: =SUM(F72:F81) -> 0 | L72: =IF(M72,"1",0) -> 0 | Q72: =N72-M72 -> 0 | R72: =P72-O72 -> 0
A73: =IF(B73,"1",0) -> 0 | F73: =C73-B73 -> 0 | G73: =E73-D73 -> 0 | I73: aan-afkoppelen | J73: =SUM(G72:G81) -> 0 | L73: =IF(M73,"1",0) -> 0 | Q73: =N73-M73 -> 0 | R73: =P73-O73 -> 0
A74: 0 | F74: 0 | G74: 0 | L74: 0 | Q74: 0 | R74: 0
A75: 0 | F75: 0 | G75: 0 | I75: Totaal uren | J75: =J76+J77 -> 0 | L75: 0 | Q75: 0 | R75: 0
A76: 0 | F76: 0 | G76: 0 | I76: wachten instructie | J76: =SUM(Q72:Q81) -> 0 | L76: 0 | Q76: 0 | R76: 0
A77: 0 | F77: 0 | G77: 0 | I77: wachten koppelchauffeur | J77: =SUM(R72:R81) -> 0 | L77: 0 | Q77: 0 | R77: 0
A78: 0 | F78: 0 | G78: 0 | L78: 0 | Q78: 0 | R78: 0
A79: 0 | F79: 0 | G79: 0 | L79: 0 | Q79: 0 | R79: 0
A80: 0 | F80: 0 | G80: 0 | L80: 0 | Q80: 0 | R80: 0
A81: 0 | F81: 0 | G81: 0 | L81: 0 | Q81: 0 | R81: 0
B83: zondag 06-10-2019 | M83: =B83 -> zondag 06-10-2019
B84: Begintijd | C84: Eindtijd | D84: Begintijd | E84: Eindtijd | F84: tanken | G84: aan/afkoppelen | I84: Totaal uren | J84: =J85+J86 -> 0 | M84: Begintijd | N84: Eindtijd | O84: Begintijd | P84: Eindtijd | Q84: wachten instructie | R84: wachten koppelchauffeur
A85: =IF(B85,"1",0) -> 0 | F85: =C85-B85 -> 0 | G85: =E85-D85 -> 0 | I85: tanken | J85: =SUM(F85:F90) -> 0 | L85: =IF(M85,"1",0) -> 0 | Q85: =N85-M85 -> 0 | R85: =P85-O85 -> 0
A86: 0 | F86: =C86-B86 -> 0 | G86: =E86-D86 -> 0 | I86: aan-afkoppelen | J86: =SUM(G85:G90) -> 0 | L86: =IF(M86,"1",0) -> 0 | Q86: 0 | R86: 0
A87: 0 | F87: 0 | G87: 0 | L87: 0 | Q87: 0 | R87: 0
A88: 0 | F88: 0 | G88: 0 | I88: Totaal uren | J88: =J89+J90 -> 0 | L88: 0 | Q88: 0 | R88: 0
A89: 0 | F89: 0 | G89: 0 | I89: wachten instructie | J89: =SUM(Q85:Q94) -> 0 | L89: 0 | Q89: 0 | R89: 0
A90: 0 | F90: 0 | G90: 0 | I90: wachten koppelchauffeur | J90: =SUM(R85:R94) -> 0 | L90: 0 | Q90: 0 | R90: 0
A91: 0 | F91: 0 | G91: 0 | L91: 0 | Q91: 0 | R91: 0
A92: 0 | F92: 0 | G92: 0 | L92: 0 | Q92: 0 | R92: 0
A93: 0 | F93: 0 | G93: 0 | L93: 0 | Q93: 0 | R93: 0
A94: 0 | F94: 0 | G94: 0 | L94: 0 | Q94: 0 | R94: 0
I96: tanken | J96: =J85+J72+J59+J46+J33+J20+J7 -> 0.01304398148
I98: aan-afkoppelen | J98: =J86+J73+J60+J47+J34+J21+J8 -> 0.02644675926
I100: Totaal uren | J100: =J98+J96 -> 0.03949074075
I103: wachten instructie | J103: =J89+J76+J63+J50+J37+J24+J11 -> 0.09282407408
I105: wachten koppelchauffeur | J105: =J90+J77+J64+J51+J38+J25+J12 -> 0
I107: Totaal uren | J107: =J105+J103 -> 0.09282407408
B110: Einde dag-taken week 40

Sheet LadenLossen (39) (hidden)
A1: 02:00:00 | B1: Laden/lossen (beschikbaarheidstijd (behalve bij Rood )) | J1: Week 39 | N1: = zelf laden/lossen
J4: Totaal | N4: Wachturen laden/lossen
B5: Laden | F5: Lossen | J5: Laden | K5: Lossen | L5: Totaal uren | N5: Laden | P5: Lossen | Q5: Totaal uren
A6: Nr. | J6: =SUM(J8:J51) -> 0.3006597222 | K6: =SUM(K8:K51) -> 0.09162037037 | L6: =J6+K6 -> 0.3922800926 | N6: =SUM(N8:N27) -> 0.03991898148 | P6: =SUM(P8:P27) -> 0 | Q6: =N6+P6 -> 0.03991898148
A7: 0 | B7: begin | D7: eind | F7: begin | H7: eind
A8: 1 | B8: 2015-09-22T06:53:54 | D8: 2015-09-22T07:42:09 | J8: =IF(D8<>"",IF(D8-B8>TIME(2,0,0),TIME(2,0,0),D8-B8),"") -> 0.03350694445 | K8: =IF(H8<>"",IF((H8-F8)>TIME(2,0,0),TIME(2,0,0),H8-F8),"") ->  | N8: =IF(D8-B8>TIME(2,0,0),D8-B8-TIME(2,0,0),"") ->  | P8: =IF((H8-F8)>TIME(2,0,0),H8-F8-TIME(2,0,0),"") -> 
A9: 2 | B9: 2015-09-22T08:41:44 | D9: 2015-09-22T11:39:13 | J9: 0.08333333333 | N9: 0.03991898148
A10: 3 | B10: 2015-09-22T12:02:13 | D10: 2015-09-22T13:39:13 | J10: 0.06736111111
A11: 4 | F11: 2015-09-24T08:31:57 | H11: 2015-09-24T09:26:34 | K11: 0.03792824074
A12: 5 | B12: 2015-09-24T09:27:56 | D12: 2015-09-24T10:31:09 | J12: 0.04390046296
A16: 5
A17: 6 | F17: 2015-09-26T09:29:27 | H17: 2015-09-26T10:46:46 | K17: 0.05369212963
A18: 7 | B18: 2015-09-26T11:51:36 | D18: 2015-09-26T13:36:05 | J18: =IF(D18<>"",IF(D18-B18>TIME(2,0,0),TIME(2,0,0),D18-B18),"") -> 0.07255787037 | K18: =IF(H18<>"",IF((H18-F18)>TIME(2,0,0),TIME(2,0,0),H18-F18),"") ->  | N18: =IF(D18-B18>TIME(2,0,0),D18-B18-TIME(2,0,0),"") ->  | P18: =IF((H18-F18)>TIME(2,0,0),H18-F18-TIME(2,0,0),"") -> 
J19: =IF(D19<>"",IF(D19-B19>TIME(2,0,0),TIME(2,0,0),D19-B19),"") ->  | K19: =IF(H19<>"",IF((H19-F19)>TIME(2,0,0),TIME(2,0,0),H19-F19),"") ->  | N19: =IF(D19-H11>TIME(2,0,0),D19-H11-TIME(2,0,0),"") ->  | P19: =IF((H19-F19)>TIME(2,0,0),H19-F19-TIME(2,0,0),"") -> 
J20: =IF(D20<>"",IF(D20-B20>TIME(2,0,0),TIME(2,0,0),D20-B20),"") ->  | K20: =IF(H20<>"",IF((H20-F20)>TIME(2,0,0),TIME(2,0,0),H20-F20),"") ->  | N20: =IF(D20-D12>TIME(2,0,0),D20-D12-TIME(2,0,0),"") ->  | P20: =IF((H20-F20)>TIME(2,0,0),H20-F20-TIME(2,0,0),"") -> 
J21: =IF(D21<>"",IF(D21-B21>TIME(2,0,0),TIME(2,0,0),D21-B21),"") ->  | K21: =IF(H21<>"",IF((H21-F21)>TIME(2,0,0),TIME(2,0,0),H21-F21),"") ->  | N21: =IF(D21-B21>TIME(2,0,0),D21-B21-TIME(2,0,0),"") ->  | P21: =IF((H21-F21)>TIME(2,0,0),H21-F21-TIME(2,0,0),"") -> 
L27: =IF(H27<>"",H27-F27,"") -> 
J28: =IF(D28<>"",D28-B28,"") ->  | K28: =IF(H28<>"",H28-F28,"") -> 

Sheet Dag-taken week (39) (hidden)
B1: Dag-taken week 39 | M1: =B1 -> Dag-taken week 39
B2: tanken | D2: aan/afkoppelen | F2: Totaal | G2: =Q2 -> Tijden | M2: wachten instructie | O2: wachten koppelchauffeur | Q2: Tijden
B5: maandag 23-9-2019 | M5: =B5 -> maandag 23-9-2019
B6: Begintijd | C6: Eindtijd | D6: Begintijd | E6: Eindtijd | F6: tanken | G6: aan/afkoppelen | I6: Totaal uren | J6: =J7+J8 -> 0.01988425926 | M6: Begintijd | N6: Eindtijd | O6: Begintijd | P6: Eindtijd | Q6: wachten instructie | R6: wachten koppelchauffeur
A7: =IF(B7,"1",0) -> 1 | B7: 2015-09-22T05:18:08 | C7: 2015-09-22T05:33:09 | D7: 2015-09-22T04:33:04 | E7: 2015-09-22T04:46:41 | F7: =C7-B7 -> 0.01042824074 | G7: =E7-D7 -> 0.009456018517 | I7: tanken | J7: =SUM(F7:F12) -> 0.01042824074 | Q7: =N7-M7 -> 0 | R7: =P7-O7 -> 0
A8: 0 | F8: =C8-B8 -> 0 | G8: 0 | I8: aan-afkoppelen | J8: =SUM(G7:G12) -> 0.009456018517 | L8: =IF(M8,"1",0) -> 0 | Q8: 0 | R8: =P8-O8 -> 0
A9: 0 | F9: 0 | G9: 0 | L9: 0 | Q9: 0 | R9: 0
A10: 0 | F10: 0 | G10: 0 | I10: Totaal uren | J10: =J11+J12 -> 0 | L10: 0 | Q10: 0 | R10: 0
A11: 0 | F11: 0 | G11: 0 | I11: wachten instructie | J11: =SUM(Q7:Q16) -> 0 | L11: 0 | Q11: 0 | R11: 0
A12: 0 | F12: 0 | G12: 0 | I12: wachten koppelchauffeur | J12: =SUM(R7:R16) -> 0 | L12: 0 | Q12: 0 | R12: 0
A13: 0 | F13: 0 | G13: 0 | L13: 0 | Q13: 0 | R13: 0
A14: 0 | F14: 0 | G14: 0 | L14: 0 | Q14: 0 | R14: 0
A15: 0 | F15: 0 | G15: 0 | L15: 0 | Q15: 0 | R15: 0
A16: 0 | F16: 0 | G16: 0 | L16: 0 | Q16: 0 | R16: 0
B18: dinsdag 24-9-2019 | M18: =B18 -> dinsdag 24-9-2019
B19: Begintijd | C19: Eindtijd | D19: Begintijd | E19: Eindtijd | F19: tanken | G19: aan/afkoppelen | I19: Totaal uren | J19: =J20+J21 -> 0 | M19: Begintijd | N19: Eindtijd | O19: Begintijd | P19: Eindtijd | Q19: wachten instructie | R19: wachten koppelchauffeur
A20: =IF(B20,"1",0) -> 0 | F20: =C20-B20 -> 0 | G20: =E20-D20 -> 0 | I20: tanken | J20: =SUM(F20:F29) -> 0 | L20: 0 | Q20: =N20-M20 -> 0 | R20: =R7 -> 0
A21: =IF(B21,"1",0) -> 0 | F21: =C21-B21 -> 0 | G21: 0 | I21: aan-afkoppelen | J21: =SUM(G20:G29) -> 0 | L21: =IF(M21,"1",0) -> 0 | Q21: 0 | R21: 0
A22: 0 | F22: 0 | G22: 0 | L22: 0 | Q22: 0 | R22: 0
A23: 0 | F23: 0 | G23: 0 | I23: Totaal uren | J23: =J24+J25 -> 0 | L23: 0 | Q23: 0 | R23: 0
A24: 0 | F24: 0 | G24: 0 | I24: wachten instructie | J24: =SUM(Q20:Q29) -> 0 | L24: 0 | Q24: 0 | R24: 0
A25: 0 | F25: 0 | G25: 0 | I25: wachten koppelchauffeur | J25: =SUM(R20:R29) -> 0 | L25: 0 | Q25: 0 | R25: 0
A26: 0 | F26: 0 | G26: 0 | L26: 0 | Q26: 0 | R26: 0
A27: 0 | F27: 0 | G27: 0 | L27: 0 | Q27: 0 | R27: 0
A28: 0 | F28: 0 | G28: 0 | L28: 0 | Q28: 0 | R28: 0
A29: 0 | F29: 0 | G29: 0 | L29: 0 | Q29: =Q16 -> 0 | R29: =R16 -> 0
B31: woensdag 25-9-2019 | M31: =B31 -> woensdag 25-9-2019
B32: Begintijd | C32: Eindtijd | D32: Begintijd | E32: Eindtijd | F32: tanken | G32: aan/afkoppelen | I32: Totaal uren | J32: =J33+J34 -> 0 | M32: Begintijd | N32: Eindtijd | O32: Begintijd | P32: Eindtijd | Q32: wachten instructie | R32: wachten koppelchauffeur
A33: =IF(B33,"1",0) -> 0 | F33: =C33-B33 -> 0 | G33: =E33-D33 -> 0 | I33: tanken | J33: =SUM(F33:F38) -> 0 | L33: 1 | Q33: 0 | R33: 0
A34: 0 | F34: 0 | G34: 0 | I34: aan-afkoppelen | J34: =SUM(G33:G38) -> 0 | L34: =IF(M34,"1",0) -> 0 | Q34: 0 | R34: 0
A35: 0 | F35: 0 | G35: 0 | L35: 0 | Q35: 0 | R35: 0
A36: 0 | F36: 0 | G36: 0 | I36: Totaal uren | J36: =J37+J38 -> 0 | L36: 0 | Q36: 0 | R36: 0
A37: 0 | F37: 0 | G37: 0 | I37: wachten instructie | J37: =SUM(Q33:Q42) -> 0 | L37: 0 | Q37: 0 | R37: 0
A38: 0 | F38: 0 | G38: 0 | I38: wachten koppelchauffeur | J38: =SUM(R33:R42) -> 0 | L38: 0 | Q38: 0 | R38: 0
A39: 0 | F39: 0 | G39: 0 | L39: 0 | Q39: 0 | R39: 0
A40: 0 | F40: 0 | G40: 0 | L40: 0 | Q40: 0 | R40: 0
A41: 0 | F41: 0 | G41: 0 | L41: 0 | Q41: 0 | R41: 0
A42: 0 | F42: 0 | G42: 0 | L42: 0 | Q42: 0 | R42: 0
B44: donderdag 26-9-2019 | M44: =B44 -> donderdag 26-9-2019
B45: Begintijd | C45: Eindtijd | D45: Begintijd | E45: Eindtijd | F45: tanken | G45: aan/afkoppelen | I45: Totaal uren | J45: =J46+J47 -> 0.01042824074 | M45: Begintijd | N45: Eindtijd | O45: Begintijd | P45: Eindtijd | Q45: wachten instructie | R45: wachten koppelchauffeur
A46: =IF(B46,"1",0) -> 1 | B46: 2015-09-25T09:36:31 | C46: 2015-09-25T09:51:32 | F46: =C46-B46 -> 0.01042824074 | G46: =E46-D46 -> 0 | I46: tanken | J46: =SUM(F46:F55) -> 0.01042824074 | L46: 0 | Q46: =N46-M46 -> 0 | R46: =P46-O46 -> 0
A47: =IF(B47,"1",0) -> 0 | F47: =C47-B47 -> 0 | G47: 0 | I47: aan-afkoppelen | J47: =SUM(G46:G55) -> 0 | L47: =IF(M47,"1",0) -> 0 | Q47: 0 | R47: =P47-O47 -> 0
A48: 0 | F48: 0 | G48: 0 | L48: 0 | Q48: 0 | R48: 0
A49: 0 | F49: 0 | G49: 0 | I49: Totaal uren | J49: =J50+J51 -> 0 | L49: 0 | Q49: 0 | R49: 0
A50: 0 | F50: 0 | G50: 0 | I50: wachten instructie | J50: =SUM(Q46:Q55) -> 0 | L50: 0 | Q50: 0 | R50: 0
A51: 0 | F51: 0 | G51: 0 | I51: wachten koppelchauffeur | J51: =SUM(R46:R55) -> 0 | L51: 0 | Q51: 0 | R51: 0
A52: 0 | F52: 0 | G52: 0 | L52: 0 | Q52: 0 | R52: 0
A53: 0 | F53: 0 | G53: 0 | L53: 0 | Q53: 0 | R53: 0
A54: 0 | F54: 0 | G54: 0 | L54: 0 | Q54: 0 | R54: 0
A55: 0 | F55: 0 | G55: 0 | L55: 0 | Q55: 0 | R55: 0
B57: vrijdag 27-9-2019 | M57: =B57 -> vrijdag 27-9-2019
B58: Begintijd | C58: Eindtijd | D58: Begintijd | E58: Eindtijd | F58: tanken | G58: aan/afkoppelen | I58: Totaal uren | J58: =J59+J60 -> 0.0158912037 | M58: Begintijd | N58: Eindtijd | O58: Begintijd | P58: Eindtijd | Q58: wachten instructie | R58: wachten koppelchauffeur
A59: =IF(B59,"1",0) -> 0 | D59: 2015-09-26T14:56:36 | E59: 2015-09-26T15:19:29 | F59: =C59-B59 -> 0 | G59: =E59-D59 -> 0.0158912037 | I59: tanken | J59: =SUM(F59:F64) -> 0 | L59: =IF(M59,"1",0) -> 1 | M59: 2015-09-26T10:49:33 | N59: 2015-09-26T11:00:50 | Q59: =N59-M59 -> 0.007835648146 | R59: =P59-O59 -> 0
A60: =IF(B60,"1",0) -> 0 | F60: =C60-B60 -> 0 | G60: 0 | I60: aan-afkoppelen | J60: =SUM(G59:G64) -> 0.0158912037 | L60: =IF(M60,"1",0) -> 0 | Q60: 0 | R60: =P60-O60 -> 0
A61: 0 | F61: 0 | G61: 0 | L61: 0 | Q61: 0 | R61: 0
A62: 0 | F62: 0 | G62: 0 | I62: Totaal uren | J62: =J63+J64 -> 0.007835648146 | L62: 0 | Q62: 0 | R62: 0
A63: 0 | F63: 0 | G63: 0 | I63: wachten instructie | J63: =SUM(Q59:Q68) -> 0.007835648146 | L63: 0 | Q63: 0 | R63: 0
A64: 0 | F64: 0 | G64: 0 | I64: wachten koppelchauffeur | J64: =SUM(R59:R68) -> 0 | L64: 0 | Q64: 0 | R64: 0
A65: 0 | F65: 0 | G65: 0 | L65: 0 | Q65: 0 | R65: 0
A66: 0 | F66: 0 | G66: 0 | L66: 0 | Q66: 0 | R66: 0
A67: 0 | F67: 0 | G67: 0 | L67: 0 | Q67: 0 | R67: 0
A68: 0 | F68: 0 | G68: 0 | L68: 0 | Q68: 0 | R68: 0
B70: zaterdag 28-9-2019 | M70: =B70 -> zaterdag 28-9-2019
B71: Begintijd | C71: Eindtijd | D71: Begintijd | E71: Eindtijd | F71: tanken | G71: aan/afkoppelen | I71: Totaal uren | J71: =J72+J73 -> 0 | M71: Begintijd | N71: Eindtijd | O71: Begintijd | P71: Eindtijd | Q71: wachten instructie | R71: wachten koppelchauffeur
A72: =IF(B72,"1",0) -> 0 | F72: =C72-B72 -> 0 | G72: =E72-D72 -> 0 | I72: tanken | J72: =SUM(F72:F81) -> 0 | L72: =IF(M72,"1",0) -> 0 | Q72: =N72-M72 -> 0 | R72: =P72-O72 -> 0
A73: =IF(B73,"1",0) -> 0 | F73: =C73-B73 -> 0 | G73: =E73-D73 -> 0 | I73: aan-afkoppelen | J73: =SUM(G72:G81) -> 0 | L73: =IF(M73,"1",0) -> 0 | Q73: =N73-M73 -> 0 | R73: =P73-O73 -> 0
A74: 0 | F74: 0 | G74: 0 | L74: 0 | Q74: 0 | R74: 0
A75: 0 | F75: 0 | G75: 0 | I75: Totaal uren | J75: =J76+J77 -> 0 | L75: 0 | Q75: 0 | R75: 0
A76: 0 | F76: 0 | G76: 0 | I76: wachten instructie | J76: =SUM(Q72:Q81) -> 0 | L76: 0 | Q76: 0 | R76: 0
A77: 0 | F77: 0 | G77: 0 | I77: wachten koppelchauffeur | J77: =SUM(R72:R81) -> 0 | L77: 0 | Q77: 0 | R77: 0
A78: 0 | F78: 0 | G78: 0 | L78: 0 | Q78: 0 | R78: 0
A79: 0 | F79: 0 | G79: 0 | L79: 0 | Q79: 0 | R79: 0
A80: 0 | F80: 0 | G80: 0 | L80: 0 | Q80: 0 | R80: 0
A81: 0 | F81: 0 | G81: 0 | L81: 0 | Q81: 0 | R81: 0
B83: zondag 29-9-2019 | M83: =B83 -> zondag 29-9-2019
B84: Begintijd | C84: Eindtijd | D84: Begintijd | E84: Eindtijd | F84: tanken | G84: aan/afkoppelen | I84: Totaal uren | J84: =J85+J86 -> 0 | M84: Begintijd | N84: Eindtijd | O84: Begintijd | P84: Eindtijd | Q84: wachten instructie | R84: wachten koppelchauffeur
A85: =IF(B85,"1",0) -> 0 | F85: =C85-B85 -> 0 | G85: =E85-D85 -> 0 | I85: tanken | J85: =SUM(F85:F90) -> 0 | L85: =IF(M85,"1",0) -> 0 | Q85: =N85-M85 -> 0 | R85: =P85-O85 -> 0
A86: 0 | F86: =C86-B86 -> 0 | G86: =E86-D86 -> 0 | I86: aan-afkoppelen | J86: =SUM(G85:G90) -> 0 | L86: =IF(M86,"1",0) -> 0 | Q86: 0 | R86: 0
A87: 0 | F87: 0 | G87: 0 | L87: 0 | Q87: 0 | R87: 0
A88: 0 | F88: 0 | G88: 0 | I88: Totaal uren | J88: =J89+J90 -> 0 | L88: 0 | Q88: 0 | R88: 0
A89: 0 | F89: 0 | G89: 0 | I89: wachten instructie | J89: =SUM(Q85:Q94) -> 0 | L89: 0 | Q89: 0 | R89: 0
A90: 0 | F90: 0 | G90: 0 | I90: wachten koppelchauffeur | J90: =SUM(R85:R94) -> 0 | L90: 0 | Q90: 0 | R90: 0
A91: 0 | F91: 0 | G91: 0 | L91: 0 | Q91: 0 | R91: 0
A92: 0 | F92: 0 | G92: 0 | L92: 0 | Q92: 0 | R92: 0
A93: 0 | F93: 0 | G93: 0 | L93: 0 | Q93: 0 | R93: 0
A94: 0 | F94: 0 | G94: 0 | L94: 0 | Q94: 0 | R94: 0
I96: tanken | J96: =J85+J72+J59+J46+J33+J20+J7 -> 0.02085648148
I98: aan-afkoppelen | J98: =J86+J73+J60+J47+J34+J21+J8 -> 0.02534722222
I100: Totaal uren | J100: =J98+J96 -> 0.0462037037
I103: wachten instructie | J103: =J89+J76+J63+J50+J37+J24+J11 -> 0.007835648146
I105: wachten koppelchauffeur | J105: =J90+J77+J64+J51+J38+J25+J12 -> 0
I107: Totaal uren | J107: =J105+J103 -> 0.007835648146
B110: Einde dag-taken week 39

Sheet LadenLossen (38) (hidden)
A1: 02:00:00 | B1: Laden/lossen (beschikbaarheidstijd (behalve bij Rood )) | J1: Week 38 | N1: = zelf laden/lossen
J4: Totaal | N4: Wachturen laden/lossen
B5: Laden | F5: Lossen | J5: Laden | K5: Lossen | L5: Totaal uren | N5: Laden | P5: Lossen | Q5: Totaal uren
A6: Nr. | J6: =SUM(J8:J49) -> 0.1681828704 | K6: =SUM(K8:K49) -> 0.297962963 | L6: =J6+K6 -> 0.4661458333 | N6: =SUM(N8:N25) -> 0 | P6: =SUM(P8:P25) -> 0.1866203704 | Q6: =N6+P6 -> 0.1866203704
A7: 0 | B7: begin | D7: eind | F7: begin | H7: eind
A8: 1 | F8: 2015-09-15T08:55:17 | H8: 2015-09-15T09:47:10 | J8: =IF(D8<>"",IF(D8-B8>TIME(2,0,0),TIME(2,0,0),D8-B8),"") ->  | K8: =IF(H8<>"",IF((H8-F8)>TIME(2,0,0),TIME(2,0,0),H8-F8),"") -> 0.0360300926 | N8: =IF(D8-B8>TIME(2,0,0),D8-B8-TIME(2,0,0),"") ->  | P8: =IF((H8-F8)>TIME(2,0,0),H8-F8-TIME(2,0,0),"") -> 
A9: 2 | F9: 2015-09-15T10:21:52 | H9: 2015-09-15T11:11:47 | K9: 0.03466435186
A10: 3 | F10: 2015-09-15T13:58:45 | H10: 2015-09-15T15:10:28 | K10: 0.04980324073
A11: 4 | F11: 2015-09-15T16:12:05 | H11: 2015-09-15T16:36:43 | K11: 0.01710648148
A12: 5 | B12: 2015-09-16T09:32:59 | D12: 2015-09-16T10:50:15 | J12: 0.05365740741
A13: 6 | F13: 2015-09-17T06:54:42 | H13: 2015-09-17T07:35:37 | K13: 0.02841435185
A14: 7 | B14: 2015-09-17T09:50:40 | D14: 2015-09-17T11:09:13 | J14: 0.05454861111
A15: 8 | F15: 2015-09-18T09:46:46 | H15: 2015-09-18T16:15:30 | K15: 0.08333333333 | P15: 0.1866203704
A16: 9 | F16: 2015-09-19T08:34:57 | H16: 2015-09-19T09:30:53 | K16: 0.03884259259
A17: 10 | B17: 2015-09-19T15:30:42 | D17: 2015-09-19T16:57:04 | J17: 0.05997685185
A18: 11 | F18: 2015-09-19T18:41:51 | H18: 2015-09-19T18:55:55 | K18: 0.009768518517
A19: 12
L25: =IF(H25<>"",H25-F25,"") -> 
J26: =IF(D26<>"",D26-B26,"") ->  | K26: =IF(H26<>"",H26-F26,"") -> 

Sheet Dag-taken week (38) (hidden)
B1: Dag-taken week 38 | M1: =B1 -> Dag-taken week 38
B2: tanken | D2: aan/afkoppelen | F2: Totaal | G2: =Q2 -> Tijden | M2: wachten instructie | O2: wachten koppelchauffeur | Q2: Tijden
B5: maandag 16-9-2019 | M5: =B5 -> maandag 16-9-2019
B6: Begintijd | C6: Eindtijd | D6: Begintijd | E6: Eindtijd | F6: tanken | G6: aan/afkoppelen | I6: Totaal uren | J6: =J7+J8 -> 0.01548611111 | M6: Begintijd | N6: Eindtijd | O6: Begintijd | P6: Eindtijd | Q6: wachten instructie | R6: wachten koppelchauffeur
A7: 1 | B7: 2015-09-15T03:32:21 | C7: 2015-09-15T03:49:32 | D7: 2015-09-15T03:23:06 | E7: 2015-09-15T03:28:13 | F7: =C7-B7 -> 0.01193287037 | G7: =E7-D7 -> 0.003553240735 | I7: tanken | J7: =SUM(F7:F12) -> 0.01193287037 | Q7: =N7-M7 -> 0 | R7: =P7-O7 -> 0
A8: =IF(B8,"1",0) -> 0 | F8: =C8-B8 -> 0 | G8: 0 | I8: aan-afkoppelen | J8: =SUM(G7:G12) -> 0.003553240735 | L8: =IF(M8,"1",0) -> 0 | Q8: 0 | R8: =P8-O8 -> 0
A9: 0 | F9: 0 | G9: 0 | L9: 0 | Q9: 0 | R9: 0
A10: 0 | F10: 0 | G10: 0 | I10: Totaal uren | J10: =J11+J12 -> 0 | L10: 0 | Q10: 0 | R10: 0
A11: 0 | F11: 0 | G11: 0 | I11: wachten instructie | J11: =SUM(Q7:Q16) -> 0 | L11: 0 | Q11: 0 | R11: 0
A12: 0 | F12: 0 | G12: 0 | I12: wachten koppelchauffeur | J12: =SUM(R7:R16) -> 0 | L12: 0 | Q12: 0 | R12: 0
A13: 0 | F13: 0 | G13: 0 | L13: 0 | Q13: 0 | R13: 0
A14: 0 | F14: 0 | G14: 0 | L14: 0 | Q14: 0 | R14: 0
A15: 0 | F15: 0 | G15: 0 | L15: 0 | Q15: 0 | R15: 0
A16: 0 | F16: 0 | G16: 0 | L16: 0 | Q16: 0 | R16: 0
B18: dinsdag 17-9-2019 | M18: =B18 -> dinsdag 17-9-2019
B19: Begintijd | C19: Eindtijd | D19: Begintijd | E19: Eindtijd | F19: tanken | G19: aan/afkoppelen | I19: Totaal uren | J19: =J20+J21 -> 0 | M19: Begintijd | N19: Eindtijd | O19: Begintijd | P19: Eindtijd | Q19: wachten instructie | R19: wachten koppelchauffeur
A20: =IF(B20,"1",0) -> 0 | F20: =C20-B20 -> 0 | G20: =E20-D20 -> 0 | I20: tanken | J20: =SUM(F20:F29) -> 0 | L20: 0 | Q20: =N20-M20 -> 0 | R20: =R7 -> 0
A21: =IF(B21,"1",0) -> 0 | F21: =C21-B21 -> 0 | G21: 0 | I21: aan-afkoppelen | J21: =SUM(G20:G29) -> 0 | L21: =IF(M21,"1",0) -> 0 | Q21: 0 | R21: 0
A22: 0 | F22: 0 | G22: 0 | L22: 0 | Q22: 0 | R22: 0
A23: 0 | F23: 0 | G23: 0 | I23: Totaal uren | J23: =J24+J25 -> 0 | L23: 0 | Q23: 0 | R23: 0
A24: 0 | F24: 0 | G24: 0 | I24: wachten instructie | J24: =SUM(Q20:Q29) -> 0 | L24: 0 | Q24: 0 | R24: 0
A25: 0 | F25: 0 | G25: 0 | I25: wachten koppelchauffeur | J25: =SUM(R20:R29) -> 0 | L25: 0 | Q25: 0 | R25: 0
A26: 0 | F26: 0 | G26: 0 | L26: 0 | Q26: 0 | R26: 0
A27: 0 | F27: 0 | G27: 0 | L27: 0 | Q27: 0 | R27: 0
A28: 0 | F28: 0 | G28: 0 | L28: 0 | Q28: 0 | R28: 0
A29: 0 | F29: 0 | G29: 0 | L29: 0 | Q29: =Q16 -> 0 | R29: =R16 -> 0
B31: woensdag 18-9-2019 | M31: =B31 -> woensdag 18-9-2019
B32: Begintijd | C32: Eindtijd | D32: Begintijd | E32: Eindtijd | F32: tanken | G32: aan/afkoppelen | I32: Totaal uren | J32: =J33+J34 -> 0 | M32: Begintijd | N32: Eindtijd | O32: Begintijd | P32: Eindtijd | Q32: wachten instructie | R32: wachten koppelchauffeur
A33: =IF(B33,"1",0) -> 0 | F33: =C33-B33 -> 0 | G33: =E33-D33 -> 0 | I33: tanken | J33: =SUM(F33:F38) -> 0 | L33: 1 | Q33: 0 | R33: 0
A34: 0 | F34: 0 | G34: 0 | I34: aan-afkoppelen | J34: =SUM(G33:G38) -> 0 | L34: =IF(M34,"1",0) -> 0 | Q34: 0 | R34: 0
A35: 0 | F35: 0 | G35: 0 | L35: 0 | Q35: 0 | R35: 0
A36: 0 | F36: 0 | G36: 0 | I36: Totaal uren | J36: =J37+J38 -> 0 | L36: 0 | Q36: 0 | R36: 0
A37: 0 | F37: 0 | G37: 0 | I37: wachten instructie | J37: =SUM(Q33:Q42) -> 0 | L37: 0 | Q37: 0 | R37: 0
A38: 0 | F38: 0 | G38: 0 | I38: wachten koppelchauffeur | J38: =SUM(R33:R42) -> 0 | L38: 0 | Q38: 0 | R38: 0
A39: 0 | F39: 0 | G39: 0 | L39: 0 | Q39: 0 | R39: 0
A40: 0 | F40: 0 | G40: 0 | L40: 0 | Q40: 0 | R40: 0
A41: 0 | F41: 0 | G41: 0 | L41: 0 | Q41: 0 | R41: 0
A42: 0 | F42: 0 | G42: 0 | L42: 0 | Q42: 0 | R42: 0
B44: donderdag 19-9-2019 | M44: =B44 -> donderdag 19-9-2019
B45: Begintijd | C45: Eindtijd | D45: Begintijd | E45: Eindtijd | F45: tanken | G45: aan/afkoppelen | I45: Totaal uren | J45: =J46+J47 -> 0.01043981482 | M45: Begintijd | N45: Eindtijd | O45: Begintijd | P45: Eindtijd | Q45: wachten instructie | R45: wachten koppelchauffeur
A46: =IF(B46,"1",0) -> 1 | B46: 2015-09-18T04:11:58 | C46: 2015-09-18T04:27:00 | F46: =C46-B46 -> 0.01043981482 | G46: =E46-D46 -> 0 | I46: tanken | J46: =SUM(F46:F55) -> 0.01043981482 | L46: 0 | Q46: =N46-M46 -> 0 | R46: =P46-O46 -> 0
A47: =IF(B47,"1",0) -> 0 | F47: =C47-B47 -> 0 | G47: 0 | I47: aan-afkoppelen | J47: =SUM(G46:G55) -> 0 | L47: =IF(M47,"1",0) -> 0 | Q47: 0 | R47: =P47-O47 -> 0
A48: 0 | F48: 0 | G48: 0 | L48: 0 | Q48: 0 | R48: 0
A49: 0 | F49: 0 | G49: 0 | I49: Totaal uren | J49: =J50+J51 -> 0 | L49: 0 | Q49: 0 | R49: 0
A50: 0 | F50: 0 | G50: 0 | I50: wachten instructie | J50: =SUM(Q46:Q55) -> 0 | L50: 0 | Q50: 0 | R50: 0
A51: 0 | F51: 0 | G51: 0 | I51: wachten koppelchauffeur | J51: =SUM(R46:R55) -> 0 | L51: 0 | Q51: 0 | R51: 0
A52: 0 | F52: 0 | G52: 0 | L52: 0 | Q52: 0 | R52: 0
A53: 0 | F53: 0 | G53: 0 | L53: 0 | Q53: 0 | R53: 0
A54: 0 | F54: 0 | G54: 0 | L54: 0 | Q54: 0 | R54: 0
A55: 0 | F55: 0 | G55: 0 | L55: 0 | Q55: 0 | R55: 0
B57: vrijdag 20-9-2019 | M57: =B57 -> vrijdag 20-9-2019
B58: Begintijd | C58: Eindtijd | D58: Begintijd | E58: Eindtijd | F58: tanken | G58: aan/afkoppelen | I58: Totaal uren | J58: =J59+J60 -> 0.02409722222 | M58: Begintijd | N58: Eindtijd | O58: Begintijd | P58: Eindtijd | Q58: wachten instructie | R58: wachten koppelchauffeur
A59: =IF(B59,"1",0) -> 1 | B59: 2015-09-19T19:10:45 | C59: 2015-09-19T19:25:03 | D59: 2015-09-19T18:56:24 | E59: 2015-09-19T19:10:40 | F59: =C59-B59 -> 0.009930555556 | G59: =E59-D59 -> 0.009907407402 | I59: tanken | J59: =SUM(F59:F64) -> 0.01418981481 | L59: 1 | M59: 2015-09-19T09:36:17 | N59: 2015-09-19T10:03:38 | Q59: =N59-M59 -> 0.01899305556 | R59: =P59-O59 -> 0
A60: =IF(B60,"1",0) -> 1 | B60: 2015-09-19T19:38:32 | C60: 2015-09-19T19:44:40 | F60: =C60-B60 -> 0.004259259258 | G60: 0 | I60: aan-afkoppelen | J60: =SUM(G59:G64) -> 0.009907407402 | L60: =IF(M60,"1",0) -> 0 | Q60: 0 | R60: =P60-O60 -> 0
A61: 0 | F61: 0 | G61: 0 | L61: 0 | Q61: 0 | R61: 0
A62: 0 | F62: 0 | G62: 0 | I62: Totaal uren | J62: =J63+J64 -> 0.01899305556 | L62: 0 | Q62: 0 | R62: 0
A63: 0 | F63: 0 | G63: 0 | I63: wachten instructie | J63: =SUM(Q59:Q68) -> 0.01899305556 | L63: 0 | Q63: 0 | R63: 0
A64: 0 | F64: 0 | G64: 0 | I64: wachten koppelchauffeur | J64: =SUM(R59:R68) -> 0 | L64: 0 | Q64: 0 | R64: 0
A65: 0 | F65: 0 | G65: 0 | L65: 0 | Q65: 0 | R65: 0
A66: 0 | F66: 0 | G66: 0 | L66: 0 | Q66: 0 | R66: 0
A67: 0 | F67: 0 | G67: 0 | L67: 0 | Q67: 0 | R67: 0
A68: 0 | F68: 0 | G68: 0 | L68: 0 | Q68: 0 | R68: 0
B70: zaterdag 21-9-2019 | M70: =B70 -> zaterdag 21-9-2019
B71: Begintijd | C71: Eindtijd | D71: Begintijd | E71: Eindtijd | F71: tanken | G71: aan/afkoppelen | I71: Totaal uren | J71: =J72+J73 -> 0 | M71: Begintijd | N71: Eindtijd | O71: Begintijd | P71: Eindtijd | Q71: wachten instructie | R71: wachten koppelchauffeur
A72: =IF(B72,"1",0) -> 0 | F72: =C72-B72 -> 0 | G72: =E72-D72 -> 0 | I72: tanken | J72: =SUM(F72:F81) -> 0 | L72: =IF(M72,"1",0) -> 0 | Q72: =N72-M72 -> 0 | R72: =P72-O72 -> 0
A73: =IF(B73,"1",0) -> 0 | F73: =C73-B73 -> 0 | G73: =E73-D73 -> 0 | I73: aan-afkoppelen | J73: =SUM(G72:G81) -> 0 | L73: =IF(M73,"1",0) -> 0 | Q73: =N73-M73 -> 0 | R73: =P73-O73 -> 0
A74: 0 | F74: 0 | G74: 0 | L74: 0 | Q74: 0 | R74: 0
A75: 0 | F75: 0 | G75: 0 | I75: Totaal uren | J75: =J76+J77 -> 0 | L75: 0 | Q75: 0 | R75: 0
A76: 0 | F76: 0 | G76: 0 | I76: wachten instructie | J76: =SUM(Q72:Q81) -> 0 | L76: 0 | Q76: 0 | R76: 0
A77: 0 | F77: 0 | G77: 0 | I77: wachten koppelchauffeur | J77: =SUM(R72:R81) -> 0 | L77: 0 | Q77: 0 | R77: 0
A78: 0 | F78: 0 | G78: 0 | L78: 0 | Q78: 0 | R78: 0
A79: 0 | F79: 0 | G79: 0 | L79: 0 | Q79: 0 | R79: 0
A80: 0 | F80: 0 | G80: 0 | L80: 0 | Q80: 0 | R80: 0
A81: 0 | F81: 0 | G81: 0 | L81: 0 | Q81: 0 | R81: 0
B83: zondag 22-9-2019 | M83: =B83 -> zondag 22-9-2019
B84: Begintijd | C84: Eindtijd | D84: Begintijd | E84: Eindtijd | F84: tanken | G84: aan/afkoppelen | I84: Totaal uren | J84: =J85+J86 -> 0 | M84: Begintijd | N84: Eindtijd | O84: Begintijd | P84: Eindtijd | Q84: wachten instructie | R84: wachten koppelchauffeur
A85: =IF(B85,"1",0) -> 0 | F85: =C85-B85 -> 0 | G85: =E85-D85 -> 0 | I85: tanken | J85: =SUM(F85:F90) -> 0 | L85: =IF(M85,"1",0) -> 0 | Q85: =N85-M85 -> 0 | R85: =P85-O85 -> 0
A86: 0 | F86: =C86-B86 -> 0 | G86: =E86-D86 -> 0 | I86: aan-afkoppelen | J86: =SUM(G85:G90) -> 0 | L86: =IF(M86,"1",0) -> 0 | Q86: 0 | R86: 0
A87: 0 | F87: 0 | G87: 0 | L87: 0 | Q87: 0 | R87: 0
A88: 0 | F88: 0 | G88: 0 | I88: Totaal uren | J88: =J89+J90 -> 0 | L88: 0 | Q88: 0 | R88: 0
A89: 0 | F89: 0 | G89: 0 | I89: wachten instructie | J89: =SUM(Q85:Q94) -> 0 | L89: 0 | Q89: 0 | R89: 0
A90: 0 | F90: 0 | G90: 0 | I90: wachten koppelchauffeur | J90: =SUM(R85:R94) -> 0 | L90: 0 | Q90: 0 | R90: 0
A91: 0 | F91: 0 | G91: 0 | L91: 0 | Q91: 0 | R91: 0
A92: 0 | F92: 0 | G92: 0 | L92: 0 | Q92: 0 | R92: 0
A93: 0 | F93: 0 | G93: 0 | L93: 0 | Q93: 0 | R93: 0
A94: 0 | F94: 0 | G94: 0 | L94: 0 | Q94: 0 | R94: 0
I96: tanken | J96: =J85+J72+J59+J46+J33+J20+J7 -> 0.0365625
I98: aan-afkoppelen | J98: =J86+J73+J60+J47+J34+J21+J8 -> 0.01346064814
I100: Totaal uren | J100: =J98+J96 -> 0.05002314814
I103: wachten instructie | J103: =J89+J76+J63+J50+J37+J24+J11 -> 0.01899305556
I105: wachten koppelchauffeur | J105: =J90+J77+J64+J51+J38+J25+J12 -> 0
I107: Totaal uren | J107: =J105+J103 -> 0.01899305556
B110: Einde dag-taken week 38

Sheet LadenLossen (37) (hidden)
A1: 02:00:00 | B1: Laden/lossen (beschikbaarheidstijd (behalve bij Rood )) | J1: Week 37 | N1: = zelf laden/lossen
J4: Totaal | N4: Wachturen laden/lossen
B5: Laden | F5: Lossen | J5: Laden | K5: Lossen | L5: Totaal uren | N5: Laden | P5: Lossen | Q5: Totaal uren
A6: Nr. | J6: =SUM(J8:J49) -> 0.1441203704 | K6: =SUM(K8:K49) -> 0.3297453704 | L6: =J6+K6 -> 0.4738657407 | N6: =SUM(N8:N25) -> 0.07684027778 | P6: =SUM(P8:P25) -> 0.03575231481 | Q6: =N6+P6 -> 0.1125925926
A7: 0 | B7: begin | D7: eind | F7: begin | H7: eind
A8: 1 | F8: 2015-09-09T12:21:19 | H8: 2015-09-09T13:34:16 | J8: =IF(D8<>"",IF(D8-B8>TIME(2,0,0),TIME(2,0,0),D8-B8),"") ->  | K8: =IF(H8<>"",IF((H8-F8)>TIME(2,0,0),TIME(2,0,0),H8-F8),"") -> 0.05065972223 | N8: =IF(D8-B8>TIME(2,0,0),D8-B8-TIME(2,0,0),"") ->  | P8: =IF((H8-F8)>TIME(2,0,0),H8-F8-TIME(2,0,0),"") -> 
A9: 2 | F9: 2015-09-09T14:46:20 | H9: 2015-09-09T15:36:11 | K9: 0.03461805556
A10: 3 | F10: 2015-09-09T15:41:33 | H10: 2015-09-09T16:09:38 | K10: 0.01950231481
A11: 4 | B11: 2015-09-10T07:09:36 | D11: 2015-09-10T11:00:15 | J11: 0.08333333333 | N11: 0.07684027778
A12: 5 | F12: 2015-09-11T10:50:36 | H12: 2015-09-11T12:23:23 | K12: 0.06443287037
A13: 6 | F13: 2015-09-11T18:55:39 | H13: 2015-09-11T19:05:37 | K13: 0.006921296299
A14: 7 | F14: 2015-09-12T07:29:07 | H14: 2015-09-12T08:52:58 | K14: 0.05822916667
A15: 8 | F15: 2015-09-12T09:12:10 | H15: 2015-09-12T12:03:39 | K15: 0.08333333333 | P15: 0.03575231481
A16: 9 | B16: 2015-09-12T13:23:23 | D16: 2015-09-12T14:50:55 | J16: 0.06078703704
A17: 10 | F17: 2015-09-12T17:02:13 | H17: 42259.72192 | K17: 0.01204861111
L25: =IF(H25<>"",H25-F25,"") -> 
J26: =IF(D26<>"",D26-B26,"") ->  | K26: =IF(H26<>"",H26-F26,"") -> 

Sheet Dag-taken week (37) (hidden)
B1: Dag-taken week 37 | M1: =B1 -> Dag-taken week 37
B2: tanken | D2: aan/afkoppelen | F2: Totaal | G2: =Q2 -> Tijden | M2: wachten instructie | O2: wachten koppelchauffeur | Q2: Tijden
B5: maandag 09-9-2019 | M5: =B5 -> maandag 09-9-2019
B6: Begintijd | C6: Eindtijd | D6: Begintijd | E6: Eindtijd | F6: tanken | G6: aan/afkoppelen | I6: Totaal uren | J6: =J7+J8 -> 0 | M6: Begintijd | N6: Eindtijd | O6: Begintijd | P6: Eindtijd | Q6: wachten instructie | R6: wachten koppelchauffeur
A7: 1 | F7: =C7-B7 -> 0 | G7: =E7-D7 -> 0 | I7: tanken | J7: =SUM(F7:F12) -> 0 | Q7: =N7-M7 -> 0 | R7: =P7-O7 -> 0
A8: =IF(B8,"1",0) -> 0 | F8: =C8-B8 -> 0 | G8: 0 | I8: aan-afkoppelen | J8: =SUM(G7:G12) -> 0 | L8: =IF(M8,"1",0) -> 0 | Q8: 0 | R8: =P8-O8 -> 0
A9: 0 | F9: 0 | G9: 0 | L9: 0 | Q9: 0 | R9: 0
A10: 0 | F10: 0 | G10: 0 | I10: Totaal uren | J10: =J11+J12 -> 0 | L10: 0 | Q10: 0 | R10: 0
A11: 0 | F11: 0 | G11: 0 | I11: wachten instructie | J11: =SUM(Q7:Q16) -> 0 | L11: 0 | Q11: 0 | R11: 0
A12: 0 | F12: 0 | G12: 0 | I12: wachten koppelchauffeur | J12: =SUM(R7:R16) -> 0 | L12: 0 | Q12: 0 | R12: 0
A13: 0 | F13: 0 | G13: 0 | L13: 0 | Q13: 0 | R13: 0
A14: 0 | F14: 0 | G14: 0 | L14: 0 | Q14: 0 | R14: 0
A15: 0 | F15: 0 | G15: 0 | L15: 0 | Q15: 0 | R15: 0
A16: 0 | F16: 0 | G16: 0 | L16: 0 | Q16: 0 | R16: 0
B18: dinsdag 10-9-2019 | M18: =B18 -> dinsdag 10-9-2019
B19: Begintijd | C19: Eindtijd | D19: Begintijd | E19: Eindtijd | F19: tanken | G19: aan/afkoppelen | I19: Totaal uren | J19: =J20+J21 -> 0.02002314814 | M19: Begintijd | N19: Eindtijd | O19: Begintijd | P19: Eindtijd | Q19: wachten instructie | R19: wachten koppelchauffeur
A20: =IF(B20,"1",0) -> 1 | B20: 2015-09-09T03:33:34 | C20: 2015-09-09T03:53:01 | D20: 2015-09-09T03:19:25 | E20: 2015-09-09T03:28:48 | F20: =C20-B20 -> 0.01350694444 | G20: =E20-D20 -> 0.006516203699 | I20: tanken | J20: =SUM(F20:F29) -> 0.01350694444 | L20: 0 | Q20: =N20-M20 -> 0 | R20: =R7 -> 0
A21: =IF(B21,"1",0) -> 0 | F21: =C21-B21 -> 0 | G21: 0 | I21: aan-afkoppelen | J21: =SUM(G20:G29) -> 0.006516203699 | L21: =IF(M21,"1",0) -> 0 | Q21: 0 | R21: 0
A22: 0 | F22: 0 | G22: 0 | L22: 0 | Q22: 0 | R22: 0
A23: 0 | F23: 0 | G23: 0 | I23: Totaal uren | J23: =J24+J25 -> 0 | L23: 0 | Q23: 0 | R23: 0
A24: 0 | F24: 0 | G24: 0 | I24: wachten instructie | J24: =SUM(Q20:Q29) -> 0 | L24: 0 | Q24: 0 | R24: 0
A25: 0 | F25: 0 | G25: 0 | I25: wachten koppelchauffeur | J25: =SUM(R20:R29) -> 0 | L25: 0 | Q25: 0 | R25: 0
A26: 0 | F26: 0 | G26: 0 | L26: 0 | Q26: 0 | R26: 0
A27: 0 | F27: 0 | G27: 0 | L27: 0 | Q27: 0 | R27: 0
A28: 0 | F28: 0 | G28: 0 | L28: 0 | Q28: 0 | R28: 0
A29: 0 | F29: 0 | G29: 0 | L29: 0 | Q29: =Q16 -> 0 | R29: =R16 -> 0
B31: woensdag 11-9-2019 | M31: =B31 -> woensdag 11-9-2019
B32: Begintijd | C32: Eindtijd | D32: Begintijd | E32: Eindtijd | F32: tanken | G32: aan/afkoppelen | I32: Totaal uren | J32: =J33+J34 -> 0 | M32: Begintijd | N32: Eindtijd | O32: Begintijd | P32: Eindtijd | Q32: wachten instructie | R32: wachten koppelchauffeur
A33: =IF(B33,"1",0) -> 0 | F33: =C33-B33 -> 0 | G33: =E33-D33 -> 0 | I33: tanken | J33: =SUM(F33:F38) -> 0 | L33: 1 | Q33: =N33-M33 -> 0 | R33: 0
A34: 0 | F34: 0 | G34: 0 | I34: aan-afkoppelen | J34: =SUM(G33:G38) -> 0 | L34: =IF(M34,"1",0) -> 0 | Q34: 0 | R34: 0
A35: 0 | F35: 0 | G35: 0 | L35: 0 | Q35: 0 | R35: 0
A36: 0 | F36: 0 | G36: 0 | I36: Totaal uren | J36: =J37+J38 -> 0 | L36: 0 | Q36: 0 | R36: 0
A37: 0 | F37: 0 | G37: 0 | I37: wachten instructie | J37: =SUM(Q33:Q42) -> 0 | L37: 0 | Q37: 0 | R37: 0
A38: 0 | F38: 0 | G38: 0 | I38: wachten koppelchauffeur | J38: =SUM(R33:R42) -> 0 | L38: 0 | Q38: 0 | R38: 0
A39: 0 | F39: 0 | G39: 0 | L39: 0 | Q39: 0 | R39: 0
A40: 0 | F40: 0 | G40: 0 | L40: 0 | Q40: 0 | R40: 0
A41: 0 | F41: 0 | G41: 0 | L41: 0 | Q41: 0 | R41: 0
A42: 0 | F42: 0 | G42: 0 | L42: 0 | Q42: 0 | R42: 0
B44: donderdag 12-9-2019 | M44: =B44 -> donderdag 12-9-2019
B45: Begintijd | C45: Eindtijd | D45: Begintijd | E45: Eindtijd | F45: tanken | G45: aan/afkoppelen | I45: Totaal uren | J45: =J46+J47 -> 0.01130787037 | M45: Begintijd | N45: Eindtijd | O45: Begintijd | P45: Eindtijd | Q45: wachten instructie | R45: wachten koppelchauffeur
A46: =IF(B46,"1",0) -> 0 | D46: 2015-09-11T19:07:43 | E46: 2015-09-11T19:24:00 | F46: =C46-B46 -> 0 | G46: =E46-D46 -> 0.01130787037 | I46: tanken | J46: =SUM(F46:F55) -> 0 | L46: 0 | M46: 2015-09-11T12:28:31 | N46: 2015-09-11T13:07:30 | Q46: =#REF!-#REF! ->  | R46: =P46-O46 -> 0
A47: =IF(B47,"1",0) -> 0 | F47: =C47-B47 -> 0 | G47: 0 | I47: aan-afkoppelen | J47: =SUM(G46:G55) -> 0.01130787037 | L47: =IF(M47,"1",0) -> 0 | Q47: =N47-M47 -> 0 | R47: =P47-O47 -> 0
A48: 0 | F48: 0 | G48: 0 | L48: 0 | Q48: 0 | R48: 0
A49: 0 | F49: 0 | G49: 0 | I49: Totaal uren | J49: =J50+J51 -> 0.02707175926 | L49: 0 | Q49: 0 | R49: 0
A50: 0 | F50: 0 | G50: 0 | I50: wachten instructie | J50: =SUM(N46-M46) -> 0.02707175926 | L50: 0 | Q50: 0 | R50: 0
A51: 0 | F51: 0 | G51: 0 | I51: wachten koppelchauffeur | J51: =SUM(R46:R55) -> 0 | L51: 0 | Q51: 0 | R51: 0
A52: 0 | F52: 0 | G52: 0 | L52: 0 | Q52: 0 | R52: 0
A53: 0 | F53: 0 | G53: 0 | L53: 0 | Q53: 0 | R53: 0
A54: 0 | F54: 0 | G54: 0 | J54: =J45+J49 -> 0.03837962963 | L54: 0 | Q54: 0 | R54: 0
A55: 0 | F55: 0 | G55: 0 | L55: 0 | Q55: 0 | R55: 0
B57: vrijdag 13-9-2019 | M57: =B57 -> vrijdag 13-9-2019
B58: Begintijd | C58: Eindtijd | D58: Begintijd | E58: Eindtijd | F58: tanken | G58: aan/afkoppelen | I58: Totaal uren | J58: =J59+J60 -> 0.01555555556 | M58: Begintijd | N58: Eindtijd | O58: Begintijd | P58: Eindtijd | Q58: wachten instructie | R58: wachten koppelchauffeur
A59: =IF(B59,"1",0) -> 0 | D59: 2015-09-12T05:48:52 | E59: 2015-09-12T06:09:38 | F59: =C59-B59 -> 0 | G59: =E59-D59 -> 0.0144212963 | I59: tanken | J59: =SUM(F59:F64) -> 0 | L59: 1 | Q59: =N59-M59 -> 0 | R59: =P59-O59 -> 0
A60: =IF(B60,"1",0) -> 0 | D60: 2015-09-12T17:21:45 | E60: 2015-09-12T17:23:23 | F60: =C60-B60 -> 0 | G60: 0.001134259262 | I60: aan-afkoppelen | J60: =SUM(G59:G64) -> 0.01555555556 | L60: =IF(M60,"1",0) -> 0 | Q60: 0 | R60: =P60-O60 -> 0
A61: 0 | F61: 0 | G61: 0 | L61: 0 | Q61: 0 | R61: 0
A62: 0 | F62: 0 | G62: 0 | I62: Totaal uren | J62: =J63+J64 -> 0 | L62: 0 | Q62: 0 | R62: 0
A63: 0 | F63: 0 | G63: 0 | I63: wachten instructie | J63: =SUM(Q59:Q68) -> 0 | L63: 0 | Q63: 0 | R63: 0
A64: 0 | F64: 0 | G64: 0 | I64: wachten koppelchauffeur | J64: =SUM(R59:R68) -> 0 | L64: 0 | Q64: 0 | R64: 0
A65: 0 | F65: 0 | G65: 0 | L65: 0 | Q65: 0 | R65: 0
A66: 0 | F66: 0 | G66: 0 | L66: 0 | Q66: 0 | R66: 0
A67: 0 | F67: 0 | G67: 0 | L67: 0 | Q67: 0 | R67: 0
A68: 0 | F68: 0 | G68: 0 | L68: 0 | Q68: 0 | R68: 0
B70: zaterdag 14-9-2019 | M70: =B70 -> zaterdag 14-9-2019
B71: Begintijd | C71: Eindtijd | D71: Begintijd | E71: Eindtijd | F71: tanken | G71: aan/afkoppelen | I71: Totaal uren | J71: =J72+J73 -> 0 | M71: Begintijd | N71: Eindtijd | O71: Begintijd | P71: Eindtijd | Q71: wachten instructie | R71: wachten koppelchauffeur
A72: =IF(B72,"1",0) -> 0 | F72: =C72-B72 -> 0 | G72: =E72-D72 -> 0 | I72: tanken | J72: =SUM(F72:F81) -> 0 | L72: =IF(M72,"1",0) -> 0 | Q72: =N72-M72 -> 0 | R72: =P72-O72 -> 0
A73: =IF(B73,"1",0) -> 0 | F73: =C73-B73 -> 0 | G73: =E73-D73 -> 0 | I73: aan-afkoppelen | J73: =SUM(G72:G81) -> 0 | L73: =IF(M73,"1",0) -> 0 | Q73: =N73-M73 -> 0 | R73: =P73-O73 -> 0
A74: 0 | F74: 0 | G74: 0 | L74: 0 | Q74: 0 | R74: 0
A75: 0 | F75: 0 | G75: 0 | I75: Totaal uren | J75: =J76+J77 -> 0 | L75: 0 | Q75: 0 | R75: 0
A76: 0 | F76: 0 | G76: 0 | I76: wachten instructie | J76: =SUM(Q72:Q81) -> 0 | L76: 0 | Q76: 0 | R76: 0
A77: 0 | F77: 0 | G77: 0 | I77: wachten koppelchauffeur | J77: =SUM(R72:R81) -> 0 | L77: 0 | Q77: 0 | R77: 0
A78: 0 | F78: 0 | G78: 0 | L78: 0 | Q78: 0 | R78: 0
A79: 0 | F79: 0 | G79: 0 | L79: 0 | Q79: 0 | R79: 0
A80: 0 | F80: 0 | G80: 0 | L80: 0 | Q80: 0 | R80: 0
A81: 0 | F81: 0 | G81: 0 | L81: 0 | Q81: 0 | R81: 0
B83: zondag 15-9-2019 | M83: =B83 -> zondag 15-9-2019
B84: Begintijd | C84: Eindtijd | D84: Begintijd | E84: Eindtijd | F84: tanken | G84: aan/afkoppelen | I84: Totaal uren | J84: =J85+J86 -> 0 | M84: Begintijd | N84: Eindtijd | O84: Begintijd | P84: Eindtijd | Q84: wachten instructie | R84: wachten koppelchauffeur
A85: =IF(B85,"1",0) -> 0 | F85: =C85-B85 -> 0 | G85: =E85-D85 -> 0 | I85: tanken | J85: =SUM(F85:F90) -> 0 | L85: =IF(M85,"1",0) -> 0 | Q85: =N85-M85 -> 0 | R85: =P85-O85 -> 0
A86: 0 | F86: =C86-B86 -> 0 | G86: =E86-D86 -> 0 | I86: aan-afkoppelen | J86: =SUM(G85:G90) -> 0 | L86: =IF(M86,"1",0) -> 0 | Q86: 0 | R86: 0
A87: 0 | F87: 0 | G87: 0 | L87: 0 | Q87: 0 | R87: 0
A88: 0 | F88: 0 | G88: 0 | I88: Totaal uren | J88: =J89+J90 -> 0 | L88: 0 | Q88: 0 | R88: 0
A89: 0 | F89: 0 | G89: 0 | I89: wachten instructie | J89: =SUM(Q85:Q94) -> 0 | L89: 0 | Q89: 0 | R89: 0
A90: 0 | F90: 0 | G90: 0 | I90: wachten koppelchauffeur | J90: =SUM(R85:R94) -> 0 | L90: 0 | Q90: 0 | R90: 0
A91: 0 | F91: 0 | G91: 0 | L91: 0 | Q91: 0 | R91: 0
A92: 0 | F92: 0 | G92: 0 | L92: 0 | Q92: 0 | R92: 0
A93: 0 | F93: 0 | G93: 0 | L93: 0 | Q93: 0 | R93: 0
A94: 0 | F94: 0 | G94: 0 | L94: 0 | Q94: 0 | R94: 0
I96: tanken | J96: =J85+J72+J59+J46+J33+J20+J7 -> 0.01350694444
I98: aan-afkoppelen | J98: =J86+J73+J60+J47+J34+J21+J8 -> 0.03337962963
I100: Totaal uren | J100: =J98+J96 -> 0.04688657408
I103: wachten instructie | J103: =J89+J76+J63+J50+J37+J24+J11 -> 0.02707175926
I105: wachten koppelchauffeur | J105: =J90+J77+J64+J51+J38+J25+J12 -> 0
I107: Totaal uren | J107: =J105+J103 -> 0.02707175926
B110: Einde dag-taken week 37

Sheet LadenLossen (36) (hidden)
A1: 02:00:00 | B1: Laden/lossen (beschikbaarheidstijd (behalve bij Rood )) | J1: Week 36 | N1: = zelf laden/lossen
J4: Totaal | N4: Wachturen laden/lossen
B5: Laden | F5: Lossen | J5: Laden | K5: Lossen | L5: Totaal uren | N5: Laden | P5: Lossen | Q5: Totaal uren
A6: Nr. | J6: =SUM(J8:J49) -> 0.3038657407 | K6: =SUM(K8:K49) -> 0.1993171296 | L6: =J6+K6 -> 0.5031828704 | N6: =SUM(N8:N25) -> 0.0103125 | P6: =SUM(P8:P25) -> 0.04075231482 | Q6: =N6+P6 -> 0.05106481482
A7: 0 | B7: begin | D7: eind | F7: begin | H7: eind
A8: 1 | B8: 2015-09-01T08:27:49 | D8: 2015-09-01T10:19:16 | J8: =IF(D8<>"",IF(D8-B8>TIME(2,0,0),TIME(2,0,0),D8-B8),"") -> 0.07739583333 | K8: =IF(H8<>"",IF((H8-F8)>TIME(2,0,0),TIME(2,0,0),H8-F8),"") ->  | N8: =IF(D8-B8>TIME(2,0,0),D8-B8-TIME(2,0,0),"") ->  | P8: =IF((H8-F8)>TIME(2,0,0),H8-F8-TIME(2,0,0),"") -> 
A9: 2 | F9: 2015-09-02T08:18:00 | H9: 2015-09-02T09:11:58 | K9: 0.03747685185
A10: 3 | B10: 2015-09-02T09:12:06 | D10: 2015-09-02T11:09:18 | J10: 0.08138888889
A11: 4 | F11: 2015-09-03T10:53:14 | H11: 2015-09-03T12:46:17 | K11: 0.07850694444
A12: 5 | B12: 2015-09-03T13:28:02 | D12: 2015-09-03T15:42:53 | J12: 0.08333333333 | N12: 0.0103125
A13: 6 | B13: 2015-09-03T17:10:48 | D13: 2015-09-03T18:39:43 | J13: 0.06174768518
A14: 7 | F14: 2015-09-05T09:58:39 | H14: 2015-09-05T12:57:20 | K14: 0.08333333333 | P14: 0.04075231482
G22: c
L25: =IF(H25<>"",H25-F25,"") -> 
J26: =IF(D26<>"",D26-B26,"") ->  | K26: =IF(H26<>"",H26-F26,"") -> 

Sheet Dag-taken week (36) (hidden)
B1: Dag-taken week 36 | M1: =B1 -> Dag-taken week 36
B2: tanken | D2: aan/afkoppelen | F2: Totaal | G2: =Q2 -> Tijden | M2: wachten instructie | O2: wachten koppelchauffeur | Q2: Tijden
B5: maandag 02-9-2019 | M5: =B5 -> maandag 02-9-2019
B6: Begintijd | C6: Eindtijd | D6: Begintijd | E6: Eindtijd | F6: tanken | G6: aan/afkoppelen | I6: Totaal uren | J6: =J7+J8 -> 0.0110300926 | M6: Begintijd | N6: Eindtijd | O6: Begintijd | P6: Eindtijd | Q6: wachten instructie | R6: wachten koppelchauffeur
A7: 1 | D7: 2015-09-01T06:29:21 | E7: 2015-09-01T06:45:14 | F7: =C7-B7 -> 0 | G7: =E7-D7 -> 0.0110300926 | I7: tanken | J7: =SUM(F7:F12) -> 0 | Q7: =N7-M7 -> 0 | R7: =P7-O7 -> 0
A8: =IF(B8,"1",0) -> 0 | F8: =C8-B8 -> 0 | G8: 0 | I8: aan-afkoppelen | J8: =SUM(G7:G12) -> 0.0110300926 | L8: =IF(M8,"1",0) -> 0 | Q8: 0 | R8: =P8-O8 -> 0
A9: 0 | F9: 0 | G9: 0 | L9: 0 | Q9: 0 | R9: 0
A10: 0 | F10: 0 | G10: 0 | I10: Totaal uren | J10: =J11+J12 -> 0 | L10: 0 | Q10: 0 | R10: 0
A11: 0 | F11: 0 | G11: 0 | I11: wachten instructie | J11: =SUM(Q7:Q16) -> 0 | L11: 0 | Q11: 0 | R11: 0
A12: 0 | F12: 0 | G12: 0 | I12: wachten koppelchauffeur | J12: =SUM(R7:R16) -> 0 | L12: 0 | Q12: 0 | R12: 0
A13: 0 | F13: 0 | G13: 0 | L13: 0 | Q13: 0 | R13: 0
A14: 0 | F14: 0 | G14: 0 | L14: 0 | Q14: 0 | R14: 0
A15: 0 | F15: 0 | G15: 0 | L15: 0 | Q15: 0 | R15: 0
A16: 0 | F16: 0 | G16: 0 | L16: 0 | Q16: 0 | R16: 0
B18: dinsdag 03-9-2019 | M18: =B18 -> dinsdag 03-9-2019
B19: Begintijd | C19: Eindtijd | D19: Begintijd | E19: Eindtijd | F19: tanken | G19: aan/afkoppelen | I19: Totaal uren | J19: =J20+J21 -> 0 | M19: Begintijd | N19: Eindtijd | O19: Begintijd | P19: Eindtijd | Q19: wachten instructie | R19: wachten koppelchauffeur
A20: =IF(B20,"1",0) -> 0 | F20: =C20-B20 -> 0 | G20: =E20-D20 -> 0 | I20: tanken | J20: =SUM(F20:F29) -> 0 | L20: 0 | Q20: =N20-M20 -> 0 | R20: =R7 -> 0
A21: =IF(B21,"1",0) -> 0 | F21: =C21-B21 -> 0 | G21: 0 | I21: aan-afkoppelen | J21: =SUM(G20:G29) -> 0 | L21: =IF(M21,"1",0) -> 0 | Q21: 0 | R21: 0
A22: 0 | F22: 0 | G22: 0 | L22: 0 | Q22: 0 | R22: 0
A23: 0 | F23: 0 | G23: 0 | I23: Totaal uren | J23: =J24+J25 -> 0 | L23: 0 | Q23: 0 | R23: 0
A24: 0 | F24: 0 | G24: 0 | I24: wachten instructie | J24: =SUM(Q20:Q29) -> 0 | L24: 0 | Q24: 0 | R24: 0
A25: 0 | F25: 0 | G25: 0 | I25: wachten koppelchauffeur | J25: =SUM(R20:R29) -> 0 | L25: 0 | Q25: 0 | R25: 0
A26: 0 | F26: 0 | G26: 0 | L26: 0 | Q26: 0 | R26: 0
A27: 0 | F27: 0 | G27: 0 | L27: 0 | Q27: 0 | R27: 0
A28: 0 | F28: 0 | G28: 0 | L28: 0 | Q28: 0 | R28: 0
A29: 0 | F29: 0 | G29: 0 | L29: 0 | Q29: =Q16 -> 0 | R29: =R16 -> 0
B31: woensdag 04-9-2019 | M31: =B31 -> woensdag 04-9-2019
B32: Begintijd | C32: Eindtijd | D32: Begintijd | E32: Eindtijd | F32: tanken | G32: aan/afkoppelen | I32: Totaal uren | J32: =J33+J34 -> 0 | M32: Begintijd | N32: Eindtijd | O32: Begintijd | P32: Eindtijd | Q32: wachten instructie | R32: wachten koppelchauffeur
A33: =IF(B33,"1",0) -> 0 | F33: =C33-B33 -> 0 | G33: =E33-D33 -> 0 | I33: tanken | J33: =SUM(F33:F38) -> 0 | L33: 1 | Q33: =N33-M33 -> 0 | R33: 0
A34: 0 | F34: 0 | G34: 0 | I34: aan-afkoppelen | J34: =SUM(G33:G38) -> 0 | L34: =IF(M34,"1",0) -> 0 | Q34: 0 | R34: 0
A35: 0 | F35: 0 | G35: 0 | L35: 0 | Q35: 0 | R35: 0
A36: 0 | F36: 0 | G36: 0 | I36: Totaal uren | J36: =J37+J38 -> 0 | L36: 0 | Q36: 0 | R36: 0
A37: 0 | F37: 0 | G37: 0 | I37: wachten instructie | J37: =SUM(Q33:Q42) -> 0 | L37: 0 | Q37: 0 | R37: 0
A38: 0 | F38: 0 | G38: 0 | I38: wachten koppelchauffeur | J38: =SUM(R33:R42) -> 0 | L38: 0 | Q38: 0 | R38: 0
A39: 0 | F39: 0 | G39: 0 | L39: 0 | Q39: 0 | R39: 0
A40: 0 | F40: 0 | G40: 0 | L40: 0 | Q40: 0 | R40: 0
A41: 0 | F41: 0 | G41: 0 | L41: 0 | Q41: 0 | R41: 0
A42: 0 | F42: 0 | G42: 0 | L42: 0 | Q42: 0 | R42: 0
B44: donderdag 05-9-2019 | M44: =B44 -> donderdag 05-9-2019
B45: Begintijd | C45: Eindtijd | D45: Begintijd | E45: Eindtijd | F45: tanken | G45: aan/afkoppelen | I45: Totaal uren | J45: =J46+J47 -> 0.04126157406 | M45: Begintijd | N45: Eindtijd | O45: Begintijd | P45: Eindtijd | Q45: wachten instructie | R45: wachten koppelchauffeur
A46: =IF(B46,"1",0) -> 1 | B46: 2015-09-04T05:52:37 | C46: 2015-09-04T06:07:39 | D46: 2015-09-04T07:48:56 | E46: 2015-09-04T08:02:02 | F46: =C46-B46 -> 0.01043981481 | G46: =E46-D46 -> 0.009097222217 | I46: tanken | J46: =SUM(F46:F55) -> 0.01043981481 | L46: 0 | O46: 2015-09-04T08:02:02 | P46: 2015-09-04T08:50:09 | Q46: =N46-M46 -> 0 | R46: =P46-O46 -> 0.03341435186
A47: =IF(B47,"1",0) -> 0 | D47: 2015-09-04T08:50:09 | E47: 2015-09-04T08:57:16 | F47: =C47-B47 -> 0 | G47: 0.004942129628 | I47: aan-afkoppelen | J47: =SUM(G46:G55) -> 0.03082175925 | L47: =IF(M47,"1",0) -> 0 | Q47: 0 | R47: =P47-O47 -> 0
A48: 0 | D48: 2015-09-04T13:01:44 | E48: 2015-09-04T13:11:06 | F48: 0 | G48: 0.006504629629 | L48: 0 | Q48: 0 | R48: 0
A49: 0 | D49: 2015-09-04T13:12:40 | E49: 2015-09-04T13:27:28 | F49: 0 | G49: 0.01027777778 | I49: Totaal uren | J49: =J50+J51 -> 0.03341435186 | L49: 0 | Q49: 0 | R49: 0
A50: 0 | F50: 0 | G50: 0 | I50: wachten instructie | J50: =SUM(Q46:Q55) -> 0 | L50: 0 | Q50: 0 | R50: 0
A51: 0 | F51: 0 | G51: 0 | I51: wachten koppelchauffeur | J51: =SUM(R46:R55) -> 0.03341435186 | L51: 0 | Q51: 0 | R51: 0
A52: 0 | F52: 0 | G52: 0 | L52: 0 | Q52: 0 | R52: 0
A53: 0 | F53: 0 | G53: 0 | L53: 0 | Q53: 0 | R53: 0
A54: 0 | F54: 0 | G54: 0 | L54: 0 | Q54: 0 | R54: 0
A55: 0 | F55: 0 | G55: 0 | L55: 0 | Q55: 0 | R55: 0
B57: vrijdag 06-9-2019 | M57: =B57 -> vrijdag 06-9-2019
B58: Begintijd | C58: Eindtijd | D58: Begintijd | E58: Eindtijd | F58: tanken | G58: aan/afkoppelen | I58: Totaal uren | J58: =J59+J60 -> 0.03072916666 | M58: Begintijd | N58: Eindtijd | O58: Begintijd | P58: Eindtijd | Q58: wachten instructie | R58: wachten koppelchauffeur
A59: =IF(B59,"1",0) -> 1 | B59: 2015-09-05T19:02:30 | C59: 2015-09-05T19:17:44 | D59: 2015-09-05T14:57:49 | E59: 2015-09-05T15:01:51 | F59: =C59-B59 -> 0.0105787037 | G59: =E59-D59 -> 0.002800925926 | I59: tanken | J59: =SUM(F59:F64) -> 0.0105787037 | L59: 1 | M59: 2015-09-05T12:59:15 | N59: 2015-09-05T13:22:01 | Q59: =N59-M59 -> 0.01581018518 | R59: =P59-O59 -> 0
A60: =IF(B60,"1",0) -> 0 | D60: 2015-09-05T15:04:38 | E60: 2015-09-05T15:24:05 | F60: =C60-B60 -> 0 | G60: 0.01350694444 | I60: aan-afkoppelen | J60: =SUM(G59:G64) -> 0.02015046296 | L60: =IF(M60,"1",0) -> 0 | Q60: 0 | R60: =P60-O60 -> 0
A61: 0 | D61: 2015-09-05T15:26:33 | E61: 2015-09-05T15:32:05 | F61: 0 | G61: 0.003842592589 | L61: 0 | Q61: 0 | R61: 0
A62: 0 | F62: 0 | G62: 0 | I62: Totaal uren | J62: =J63+J64 -> 0.01581018518 | L62: 0 | Q62: 0 | R62: 0
A63: 0 | F63: 0 | G63: 0 | I63: wachten instructie | J63: =SUM(Q59:Q68) -> 0.01581018518 | L63: 0 | Q63: 0 | R63: 0
A64: 0 | F64: 0 | G64: 0 | I64: wachten koppelchauffeur | J64: =SUM(R59:R68) -> 0 | L64: 0 | Q64: 0 | R64: 0
A65: 0 | F65: 0 | G65: 0 | L65: 0 | Q65: 0 | R65: 0
A66: 0 | F66: 0 | G66: 0 | L66: 0 | Q66: 0 | R66: 0
A67: 0 | F67: 0 | G67: 0 | L67: 0 | Q67: 0 | R67: 0
A68: 0 | F68: 0 | G68: 0 | L68: 0 | Q68: 0 | R68: 0
B70: zaterdag 07-9-2019 | M70: =B70 -> zaterdag 07-9-2019
B71: Begintijd | C71: Eindtijd | D71: Begintijd | E71: Eindtijd | F71: tanken | G71: aan/afkoppelen | I71: Totaal uren | J71: =J72+J73 -> 0 | M71: Begintijd | N71: Eindtijd | O71: Begintijd | P71: Eindtijd | Q71: wachten instructie | R71: wachten koppelchauffeur
A72: =IF(B72,"1",0) -> 0 | F72: =C72-B72 -> 0 | G72: =E72-D72 -> 0 | I72: tanken | J72: =SUM(F72:F81) -> 0 | L72: =IF(M72,"1",0) -> 0 | Q72: =N72-M72 -> 0 | R72: =P72-O72 -> 0
A73: =IF(B73,"1",0) -> 0 | F73: =C73-B73 -> 0 | G73: =E73-D73 -> 0 | I73: aan-afkoppelen | J73: =SUM(G72:G81) -> 0 | L73: =IF(M73,"1",0) -> 0 | Q73: =N73-M73 -> 0 | R73: =P73-O73 -> 0
A74: 0 | F74: 0 | G74: 0 | L74: 0 | Q74: 0 | R74: 0
A75: 0 | F75: 0 | G75: 0 | I75: Totaal uren | J75: =J76+J77 -> 0 | L75: 0 | Q75: 0 | R75: 0
A76: 0 | F76: 0 | G76: 0 | I76: wachten instructie | J76: =SUM(Q72:Q81) -> 0 | L76: 0 | Q76: 0 | R76: 0
A77: 0 | F77: 0 | G77: 0 | I77: wachten koppelchauffeur | J77: =SUM(R72:R81) -> 0 | L77: 0 | Q77: 0 | R77: 0
A78: 0 | F78: 0 | G78: 0 | L78: 0 | Q78: 0 | R78: 0
A79: 0 | F79: 0 | G79: 0 | L79: 0 | Q79: 0 | R79: 0
A80: 0 | F80: 0 | G80: 0 | L80: 0 | Q80: 0 | R80: 0
A81: 0 | F81: 0 | G81: 0 | L81: 0 | Q81: 0 | R81: 0
B83: zondag 08-9-2019 | M83: =B83 -> zondag 08-9-2019
B84: Begintijd | C84: Eindtijd | D84: Begintijd | E84: Eindtijd | F84: tanken | G84: aan/afkoppelen | I84: Totaal uren | J84: =J85+J86 -> 0 | M84: Begintijd | N84: Eindtijd | O84: Begintijd | P84: Eindtijd | Q84: wachten instructie | R84: wachten koppelchauffeur
A85: =IF(B85,"1",0) -> 0 | F85: =C85-B85 -> 0 | G85: =E85-D85 -> 0 | I85: tanken | J85: =SUM(F85:F90) -> 0 | L85: =IF(M85,"1",0) -> 0 | Q85: =N85-M85 -> 0 | R85: =P85-O85 -> 0
A86: 0 | F86: =C86-B86 -> 0 | G86: =E86-D86 -> 0 | I86: aan-afkoppelen | J86: =SUM(G85:G90) -> 0 | L86: =IF(M86,"1",0) -> 0 | Q86: 0 | R86: 0
A87: 0 | F87: 0 | G87: 0 | L87: 0 | Q87: 0 | R87: 0
A88: 0 | F88: 0 | G88: 0 | I88: Totaal uren | J88: =J89+J90 -> 0 | L88: 0 | Q88: 0 | R88: 0
A89: 0 | F89: 0 | G89: 0 | I89: wachten instructie | J89: =SUM(Q85:Q94) -> 0 | L89: 0 | Q89: 0 | R89: 0
A90: 0 | F90: 0 | G90: 0 | I90: wachten koppelchauffeur | J90: =SUM(R85:R94) -> 0 | L90: 0 | Q90: 0 | R90: 0
A91: 0 | F91: 0 | G91: 0 | L91: 0 | Q91: 0 | R91: 0
A92: 0 | F92: 0 | G92: 0 | L92: 0 | Q92: 0 | R92: 0
A93: 0 | F93: 0 | G93: 0 | L93: 0 | Q93: 0 | R93: 0
A94: 0 | F94: 0 | G94: 0 | L94: 0 | Q94: 0 | R94: 0
I96: tanken | J96: =J85+J72+J59+J46+J33+J20+J7 -> 0.02101851851
I98: aan-afkoppelen | J98: =J86+J73+J60+J47+J34+J21+J8 -> 0.06200231481
I100: Totaal uren | J100: =J98+J96 -> 0.08302083332
I103: wachten instructie | J103: =J89+J76+J63+J50+J37+J24+J11 -> 0.01581018518
I105: wachten koppelchauffeur | J105: =J90+J77+J64+J51+J38+J25+J12 -> 0.03341435186
I107: Totaal uren | J107: =J105+J103 -> 0.04922453704
B110: Einde dag-taken week 36

Sheet LadenLossen (35) (hidden)
A1: 02:00:00 | B1: Laden/lossen (beschikbaarheidstijd (behalve bij Rood )) | J1: Week 35 | N1: = zelf laden/lossen
J4: Totaal | N4: Wachturen laden/lossen
B5: Laden | F5: Lossen | J5: Laden | K5: Lossen | L5: Totaal uren | N5: Laden | P5: Lossen | Q5: Totaal uren
A6: Nr. | J6: =SUM(J8:J49) -> 0.3171643519 | K6: =SUM(K8:K49) -> 0.1171990741 | L6: =J6+K6 -> 0.4343634259 | N6: =SUM(N8:N25) -> 0.2028125 | P6: =SUM(P8:P25) -> 0 | Q6: =N6+P6 -> 0.2028125
A7: 0 | B7: begin | D7: eind | F7: begin | H7: eind
A8: 1 | F8: 2015-08-25T12:26:17 | H8: 2015-08-25T13:17:45 | J8: =IF(D8<>"",IF(D8-B8>TIME(2,0,0),TIME(2,0,0),D8-B8),"") ->  | K8: =IF(H8<>"",IF((H8-F8)>TIME(2,0,0),TIME(2,0,0),H8-F8),"") -> 0.03574074074 | N8: =IF(D8-B8>TIME(2,0,0),D8-B8-TIME(2,0,0),"") ->  | P8: =IF((H8-F8)>TIME(2,0,0),H8-F8-TIME(2,0,0),"") -> 
A9: 2 | B9: 2015-08-26T06:31:15 | D9: 2015-08-26T11:20:19 | J9: 0.08333333333 | N9: 0.1174074074
A10: 3 | F10: 2015-08-26T11:34:18 | H10: 2015-08-26T12:14:14 | K10: 0.02773148148
A11: 4 | B11: 2015-08-26T12:31:25 | D11: 2015-08-26T12:40:39 | J11: 0.006412037037
A12: 5 | F12: 2015-08-27T06:56:45 | H12: 2015-08-27T08:14:07 | K12: 0.05372685185
A13: 6 | B13: 2015-08-27T13:26:14 | D13: 2015-08-27T14:32:19 | J13: 0.04589120371
A14: 7 | B14: 2015-08-28T07:00:58 | D14: 2015-08-28T07:44:26 | J14: 0.03018518518
A15: 8 | B15: 2015-08-28T08:06:07 | D15: 2015-08-28T12:09:06 | J15: 0.08333333333 | N15: 0.08540509259
A16: 9 | B16: 2015-08-29T07:27:54 | D16: 2015-08-29T09:05:50 | J16: 0.06800925926
L25: =IF(H25<>"",H25-F25,"") -> 
J26: =IF(D26<>"",D26-B26,"") ->  | K26: =IF(H26<>"",H26-F26,"") -> 

Sheet Dag-taken week (35) (hidden)
B1: Dag-taken week 35 | M1: =B1 -> Dag-taken week 35
B2: tanken | D2: aan/afkoppelen | F2: Totaal | G2: =Q2 -> Tijden | M2: wachten instructie | O2: wachten koppelchauffeur | Q2: Tijden
B5: maandag 26-8-2019 | M5: =B5 -> maandag 26-8-2019
B6: Begintijd | C6: Eindtijd | D6: Begintijd | E6: Eindtijd | F6: tanken | G6: aan/afkoppelen | I6: Totaal uren | J6: =J7+J8 -> 0.01616898148 | M6: Begintijd | N6: Eindtijd | O6: Begintijd | P6: Eindtijd | Q6: wachten instructie | R6: wachten koppelchauffeur
A7: 1 | B7: 2015-08-25T06:36:59 | C7: 2015-08-25T06:47:40 | D7: 2015-08-25T06:19:54 | E7: 2015-08-25T06:32:30 | F7: =C7-B7 -> 0.007418981484 | G7: =E7-D7 -> 0.008750000001 | I7: tanken | J7: =SUM(F7:F12) -> 0.007418981484 | Q7: =N7-M7 -> 0 | R7: =P7-O7 -> 0
A8: =IF(B8,"1",0) -> 0 | F8: =C8-B8 -> 0 | G8: =E8-D8 -> 0 | I8: aan-afkoppelen | J8: =SUM(G7:G12) -> 0.008750000001 | L8: =IF(M8,"1",0) -> 0 | Q8: 0 | R8: =P8-O8 -> 0
A9: 0 | F9: 0 | G9: 0 | L9: 0 | Q9: 0 | R9: 0
A10: 0 | F10: 0 | G10: 0 | I10: Totaal uren | J10: =J11+J12 -> 0 | L10: 0 | Q10: 0 | R10: 0
A11: 0 | F11: 0 | G11: 0 | I11: wachten instructie | J11: =SUM(Q7:Q16) -> 0 | L11: 0 | Q11: 0 | R11: 0
A12: 0 | F12: 0 | G12: 0 | I12: wachten koppelchauffeur | J12: =SUM(R7:R16) -> 0 | L12: 0 | Q12: 0 | R12: 0
A13: 0 | F13: 0 | G13: 0 | L13: 0 | Q13: 0 | R13: 0
A14: 0 | F14: 0 | G14: 0 | L14: 0 | Q14: 0 | R14: 0
A15: 0 | F15: 0 | G15: 0 | L15: 0 | Q15: 0 | R15: 0
A16: 0 | F16: 0 | G16: 0 | L16: 0 | Q16: 0 | R16: 0
B18: dinsdag 27-8-2019 | M18: =B18 -> dinsdag 27-8-2019
B19: Begintijd | C19: Eindtijd | D19: Begintijd | E19: Eindtijd | F19: tanken | G19: aan/afkoppelen | I19: Totaal uren | J19: =J20+J21 -> 0 | M19: Begintijd | N19: Eindtijd | O19: Begintijd | P19: Eindtijd | Q19: wachten instructie | R19: wachten koppelchauffeur
A20: =IF(B20,"1",0) -> 0 | F20: =C20-B20 -> 0 | G20: =E20-D20 -> 0 | I20: tanken | J20: =SUM(F20:F29) -> 0 | L20: 0 | Q20: =N20-M20 -> 0 | R20: =R7 -> 0
A21: =IF(B21,"1",0) -> 0 | F21: =C21-B21 -> 0 | G21: 0 | I21: aan-afkoppelen | J21: =SUM(G20:G29) -> 0 | L21: =IF(M21,"1",0) -> 0 | Q21: 0 | R21: 0
A22: 0 | F22: 0 | G22: 0 | L22: 0 | Q22: 0 | R22: 0
A23: 0 | F23: 0 | G23: 0 | I23: Totaal uren | J23: =J24+J25 -> 0 | L23: 0 | Q23: 0 | R23: 0
A24: 0 | F24: 0 | G24: 0 | I24: wachten instructie | J24: =SUM(Q20:Q29) -> 0 | L24: 0 | Q24: 0 | R24: 0
A25: 0 | F25: 0 | G25: 0 | I25: wachten koppelchauffeur | J25: =SUM(R20:R29) -> 0 | L25: 0 | Q25: 0 | R25: 0
A26: 0 | F26: 0 | G26: 0 | L26: 0 | Q26: 0 | R26: 0
A27: 0 | F27: 0 | G27: 0 | L27: 0 | Q27: 0 | R27: 0
A28: 0 | F28: 0 | G28: 0 | L28: 0 | Q28: 0 | R28: 0
A29: 0 | F29: 0 | G29: 0 | L29: 0 | Q29: =Q16 -> 0 | R29: =R16 -> 0
B31: woensdag 28-8-2019 | M31: =B31 -> woensdag 28-8-2019
B32: Begintijd | C32: Eindtijd | D32: Begintijd | E32: Eindtijd | F32: tanken | G32: aan/afkoppelen | I32: Totaal uren | J32: =J33+J34 -> 0 | M32: Begintijd | N32: Eindtijd | O32: Begintijd | P32: Eindtijd | Q32: wachten instructie | R32: wachten koppelchauffeur
A33: =IF(B33,"1",0) -> 0 | F33: =C33-B33 -> 0 | G33: =E33-D33 -> 0 | I33: tanken | J33: =SUM(F33:F38) -> 0 | L33: 1 | M33: 2015-08-27T08:21:20 | N33: 2015-08-27T08:59:54 | Q33: =N33-M33 -> 0.0267824074 | R33: 0
A34: 0 | F34: 0 | G34: 0 | I34: aan-afkoppelen | J34: =SUM(G33:G38) -> 0 | L34: =IF(M34,"1",0) -> 0 | Q34: 0 | R34: 0
A35: 0 | F35: 0 | G35: 0 | L35: 0 | Q35: 0 | R35: 0
A36: 0 | F36: 0 | G36: 0 | I36: Totaal uren | J36: =J37+J38 -> 0.0267824074 | L36: 0 | Q36: 0 | R36: 0
A37: 0 | F37: 0 | G37: 0 | I37: wachten instructie | J37: =SUM(Q33:Q42) -> 0.0267824074 | L37: 0 | Q37: 0 | R37: 0
A38: 0 | F38: 0 | G38: 0 | I38: wachten koppelchauffeur | J38: =SUM(R33:R42) -> 0 | L38: 0 | Q38: 0 | R38: 0
A39: 0 | F39: 0 | G39: 0 | L39: 0 | Q39: 0 | R39: 0
A40: 0 | F40: 0 | G40: 0 | L40: 0 | Q40: 0 | R40: 0
A41: 0 | F41: 0 | G41: 0 | L41: 0 | Q41: 0 | R41: 0
A42: 0 | F42: 0 | G42: 0 | L42: 0 | Q42: 0 | R42: 0
B44: donderdag 29-8-2019 | M44: =B44 -> donderdag 29-8-2019
B45: Begintijd | C45: Eindtijd | D45: Begintijd | E45: Eindtijd | F45: tanken | G45: aan/afkoppelen | I45: Totaal uren | J45: =J46+J47 -> 0 | M45: Begintijd | N45: Eindtijd | O45: Begintijd | P45: Eindtijd | Q45: wachten instructie | R45: wachten koppelchauffeur
A46: =IF(B46,"1",0) -> 0 | F46: =C46-B46 -> 0 | G46: =E46-D46 -> 0 | I46: tanken | J46: =SUM(F46:F55) -> 0 | L46: 0 | Q46: =N46-#REF! ->  | R46: =P46-O46 -> 0
A47: =IF(B47,"1",0) -> 0 | F47: =C47-B47 -> 0 | G47: 0 | I47: aan-afkoppelen | J47: =SUM(G46:G55) -> 0 | L47: =IF(M47,"1",0) -> 0 | Q47: =N47-M47 -> 0 | R47: =P47-O47 -> 0
A48: 0 | F48: 0 | G48: 0 | L48: 0 | Q48: 0 | R48: 0
A49: 0 | F49: 0 | G49: 0 | I49: Totaal uren | J49: =J50+J51 ->  | L49: 0 | Q49: 0 | R49: 0
A50: 0 | F50: 0 | G50: 0 | I50: wachten instructie | J50: =SUM(Q46:Q55) ->  | L50: 0 | Q50: 0 | R50: 0
A51: 0 | F51: 0 | G51: 0 | I51: wachten koppelchauffeur | J51: =SUM(R46:R55) -> 0 | L51: 0 | Q51: 0 | R51: 0
A52: 0 | F52: 0 | G52: 0 | L52: 0 | Q52: 0 | R52: 0
A53: 0 | F53: 0 | G53: 0 | L53: 0 | Q53: 0 | R53: 0
A54: 0 | F54: 0 | G54: 0 | L54: 0 | Q54: 0 | R54: 0
A55: 0 | F55: 0 | G55: 0 | L55: 0 | Q55: 0 | R55: 0
B57: vrijdag 30-8-2019 | M57: =B57 -> vrijdag 30-8-2019
B58: Begintijd | C58: Eindtijd | D58: Begintijd | E58: Eindtijd | F58: tanken | G58: aan/afkoppelen | I58: Totaal uren | J58: =J59+J60 -> 0 | M58: Begintijd | N58: Eindtijd | O58: Begintijd | P58: Eindtijd | Q58: wachten instructie | R58: wachten koppelchauffeur
A59: =IF(B59,"1",0) -> 0 | F59: =C59-B59 -> 0 | G59: =E59-D59 -> 0 | I59: tanken | J59: =SUM(F59:F64) -> 0 | L59: =IF(M59,"1",0) -> 0 | Q59: =N59-M59 -> 0 | R59: =P59-O59 -> 0
A60: =IF(B60,"1",0) -> 0 | F60: =C60-B60 -> 0 | G60: =E60-D60 -> 0 | I60: aan-afkoppelen | J60: =SUM(G59:G64) -> 0 | L60: =IF(M60,"1",0) -> 0 | Q60: =N60-M60 -> 0 | R60: =P60-O60 -> 0
A61: 0 | F61: 0 | G61: 0 | L61: 0 | Q61: 0 | R61: 0
A62: 0 | F62: 0 | G62: 0 | I62: Totaal uren | J62: =J63+J64 -> 0 | L62: 0 | Q62: 0 | R62: 0
A63: 0 | F63: 0 | G63: 0 | I63: wachten instructie | J63: =SUM(Q59:Q68) -> 0 | L63: 0 | Q63: 0 | R63: 0
A64: 0 | F64: 0 | G64: 0 | I64: wachten koppelchauffeur | J64: =SUM(R59:R68) -> 0 | L64: 0 | Q64: 0 | R64: 0
A65: 0 | F65: 0 | G65: 0 | L65: 0 | Q65: 0 | R65: 0
A66: 0 | F66: 0 | G66: 0 | L66: 0 | Q66: 0 | R66: 0
A67: 0 | F67: 0 | G67: 0 | L67: 0 | Q67: 0 | R67: 0
A68: 0 | F68: 0 | G68: 0 | L68: 0 | Q68: 0 | R68: 0
B70: zaterdag 31-8-2019 | M70: =B70 -> zaterdag 31-8-2019
B71: Begintijd | C71: Eindtijd | D71: Begintijd | E71: Eindtijd | F71: tanken | G71: aan/afkoppelen | I71: Totaal uren | J71: =J72+J73 -> 0 | M71: Begintijd | N71: Eindtijd | O71: Begintijd | P71: Eindtijd | Q71: wachten instructie | R71: wachten koppelchauffeur
A72: =IF(B72,"1",0) -> 0 | F72: =C72-B72 -> 0 | G72: =E72-D72 -> 0 | I72: tanken | J72: =SUM(F72:F81) -> 0 | L72: =IF(M72,"1",0) -> 0 | Q72: =N72-M72 -> 0 | R72: =P72-O72 -> 0
A73: =IF(B73,"1",0) -> 0 | F73: =C73-B73 -> 0 | G73: =E73-D73 -> 0 | I73: aan-afkoppelen | J73: =SUM(G72:G81) -> 0 | L73: =IF(M73,"1",0) -> 0 | Q73: =N73-M73 -> 0 | R73: =P73-O73 -> 0
A74: 0 | F74: 0 | G74: 0 | L74: 0 | Q74: 0 | R74: 0
A75: 0 | F75: 0 | G75: 0 | I75: Totaal uren | J75: =J76+J77 -> 0 | L75: 0 | Q75: 0 | R75: 0
A76: 0 | F76: 0 | G76: 0 | I76: wachten instructie | J76: =SUM(Q72:Q81) -> 0 | L76: 0 | Q76: 0 | R76: 0
A77: 0 | F77: 0 | G77: 0 | I77: wachten koppelchauffeur | J77: =SUM(R72:R81) -> 0 | L77: 0 | Q77: 0 | R77: 0
A78: 0 | F78: 0 | G78: 0 | L78: 0 | Q78: 0 | R78: 0
A79: 0 | F79: 0 | G79: 0 | L79: 0 | Q79: 0 | R79: 0
A80: 0 | F80: 0 | G80: 0 | L80: 0 | Q80: 0 | R80: 0
A81: 0 | F81: 0 | G81: 0 | L81: 0 | Q81: 0 | R81: 0
B83: zondag 01-9-2019 | M83: =B83 -> zondag 01-9-2019
B84: Begintijd | C84: Eindtijd | D84: Begintijd | E84: Eindtijd | F84: tanken | G84: aan/afkoppelen | I84: Totaal uren | J84: =J85+J86 -> 0 | M84: Begintijd | N84: Eindtijd | O84: Begintijd | P84: Eindtijd | Q84: wachten instructie | R84: wachten koppelchauffeur
A85: =IF(B85,"1",0) -> 0 | F85: =C85-B85 -> 0 | G85: =E85-D85 -> 0 | I85: tanken | J85: =SUM(F85:F90) -> 0 | L85: =IF(M85,"1",0) -> 0 | Q85: =N85-M85 -> 0 | R85: =P85-O85 -> 0
A86: 0 | F86: =C86-B86 -> 0 | G86: =E86-D86 -> 0 | I86: aan-afkoppelen | J86: =SUM(G85:G90) -> 0 | L86: =IF(M86,"1",0) -> 0 | Q86: 0 | R86: 0
A87: 0 | F87: 0 | G87: 0 | L87: 0 | Q87: 0 | R87: 0
A88: 0 | F88: 0 | G88: 0 | I88: Totaal uren | J88: =J89+J90 -> 0 | L88: 0 | Q88: 0 | R88: 0
A89: 0 | F89: 0 | G89: 0 | I89: wachten instructie | J89: =SUM(Q85:Q94) -> 0 | L89: 0 | Q89: 0 | R89: 0
A90: 0 | F90: 0 | G90: 0 | I90: wachten koppelchauffeur | J90: =SUM(R85:R94) -> 0 | L90: 0 | Q90: 0 | R90: 0
A91: 0 | F91: 0 | G91: 0 | L91: 0 | Q91: 0 | R91: 0
A92: 0 | F92: 0 | G92: 0 | L92: 0 | Q92: 0 | R92: 0
A93: 0 | F93: 0 | G93: 0 | L93: 0 | Q93: 0 | R93: 0
A94: 0 | F94: 0 | G94: 0 | L94: 0 | Q94: 0 | R94: 0
I96: tanken | J96: =J85+J72+J59+J46+J33+J20+J7 -> 0.007418981484
I98: aan-afkoppelen | J98: =J86+J73+J60+J47+J34+J21+J8 -> 0.008750000001
I100: Totaal uren | J100: =J98+J96 -> 0.01616898148
I103: wachten instructie | J103: =J89+J76+J63+J50+J37+J24+J11 -> 
I105: wachten koppelchauffeur | J105: =J90+J77+J64+J51+J38+J25+J12 -> 0
I107: Totaal uren | J107: =J105+J103 -> 
B110: Einde dag-taken week 35

Sheet Dag-taken week (23) (hidden)
B1: Dag-taken week 23 | M1: Dag-taken week 23
B2: tanken | D2: aan/afkoppelen | F2: Tijden | M2: wachten instructie | O2: wachten koppelchauffeur | Q2: Tijden
B5: maandag 03-6-2019 | M5: maandag 03-6-2019
B6: Begintijd | C6: Eindtijd | D6: Begintijd | E6: Eindtijd | F6: tanken | G6: aan/afkoppelen | I6: Totaal uren | J6: =J7+J8+J9+J10 -> 0.01342592592 | M6: Begintijd | N6: Eindtijd | O6: Begintijd | P6: Eindtijd | Q6: wachten instructie | R6: wachten koppelchauffeur
A7: =IF(B7,"1",0) -> 1 | B7: 2015-06-02T16:27:52 | C7: 2015-06-02T16:44:30 | D7: 2015-06-02T17:07:53 | E7: 2015-06-02T17:10:35 | F7: =C7-B7 -> 0.01155092592 | G7: =E7-D7 -> 0.001875000002 | I7: tanken | J7: =SUM(F7:F12) -> 0.01155092592 | L7: =IF(M7,"1",0) -> 0 | Q7: =N7-M7 -> 0 | R7: =P7-O7 -> 0
A8: =IF(B8,"1",0) -> 0 | F8: =C8-B8 -> 0 | G8: =E8-D8 -> 0 | I8: aan-afkoppelen | J8: =SUM(G7:G12) -> 0.001875000002 | L8: =IF(M8,"1",0) -> 0 | Q8: =N8-M8 -> 0 | R8: =P8-O8 -> 0
A9: 0 | F9: 0 | G9: 0 | I9: wachten instructie | J9: =SUM(Q7:Q16) -> 0 | L9: 0 | Q9: 0 | R9: 0
A10: 0 | F10: 0 | G10: 0 | I10: wachten koppelchauffeur | J10: =SUM(R7:R16) -> 0 | L10: 0 | Q10: 0 | R10: 0
A11: 0 | F11: 0 | G11: 0 | L11: 0 | Q11: 0 | R11: 0
A12: 0 | F12: 0 | G12: 0 | L12: 0 | Q12: 0 | R12: 0
A13: 0 | F13: 0 | G13: 0 | L13: 0 | Q13: 0 | R13: 0
A14: 0 | F14: 0 | G14: 0 | L14: 0 | Q14: 0 | R14: 0
A15: 0 | F15: 0 | G15: 0 | L15: 0 | Q15: 0 | R15: 0
A16: 0 | F16: 0 | G16: 0 | L16: 0 | Q16: 0 | R16: 0
B18: dinsdag 04-6-2019 | M18: dinsdag 04-6-2019
B19: Begintijd | C19: Eindtijd | D19: Begintijd | E19: Eindtijd | F19: tanken | G19: aan/afkoppelen | I19: Totaal uren | J19: =J20+J21+J22+J23 -> 0.02663194444 | M19: Begintijd | N19: Eindtijd | O19: Begintijd | P19: Eindtijd | Q19: wachten instructie | R19: wachten koppelchauffeur
A20: =IF(B20,"1",0) -> 1 | B20: 2015-06-03T03:20:16 | C20: 2015-06-03T03:47:42 | D20: 2015-06-03T03:00:57 | E20: 2015-06-03T03:11:52 | F20: =C20-B20 -> 0.01905092593 | G20: =E20-D20 -> 0.007581018515 | I20: tanken | J20: =SUM(F20:F29) -> 0.01905092593 | L20: =IF(M20,"1",0) -> 0 | Q20: =N20-M20 -> 0 | R20: =R7 -> 0
A21: =IF(B21,"1",0) -> 0 | F21: =C21-B21 -> 0 | G21: =E21-D21 -> 0 | I21: aan-afkoppelen | J21: =SUM(G20:G29) -> 0.007581018515 | L21: =IF(M21,"1",0) -> 0 | Q21: 0 | R21: 0
A22: 0 | F22: 0 | G22: 0 | I22: wachten instructie | J22: =SUM(Q20:Q29) -> 0 | L22: 0 | Q22: 0 | R22: 0
A23: 0 | F23: 0 | G23: 0 | I23: wachten koppelchauffeur | J23: =SUM(R20:R29) -> 0 | L23: 0 | Q23: 0 | R23: 0
A24: 0 | F24: 0 | G24: 0 | L24: 0 | Q24: 0 | R24: 0
A25: 0 | F25: 0 | G25: 0 | L25: 0 | Q25: 0 | R25: 0
A26: 0 | F26: 0 | G26: 0 | L26: 0 | Q26: 0 | R26: 0
A27: 0 | F27: 0 | G27: 0 | L27: 0 | Q27: 0 | R27: 0
A28: 0 | F28: 0 | G28: 0 | L28: 0 | Q28: 0 | R28: 0
A29: 0 | F29: 0 | G29: 0 | L29: 0 | Q29: =Q16 -> 0 | R29: 0
B31: woensdag 05-6-2019 | M31: woensdag 05-6-2019
B32: Begintijd | C32: Eindtijd | D32: Begintijd | E32: Eindtijd | F32: tanken | G32: aan/afkoppelen | I32: Totaal uren | J32: =J33+J34+J35+J36 -> 0 | M32: Begintijd | N32: Eindtijd | O32: Begintijd | P32: Eindtijd | Q32: wachten instructie | R32: wachten koppelchauffeur
A33: =IF(B33,"1",0) -> 0 | F33: =C33-B33 -> 0 | G33: =E33-D33 -> 0 | I33: tanken | J33: =SUM(F33:F38) -> 0 | L33: 1 | M33: 2015-06-04T13:03:42 | N33: 2015-06-04T13:13:28 | Q33: 0 | R33: 0
A34: 0 | F34: 0 | G34: =E34-D34 -> 0 | I34: aan-afkoppelen | J34: =SUM(G33:G38) -> 0 | L34: =IF(M34,"1",0) -> 0 | Q34: 0 | R34: 0
A35: 0 | F35: 0 | G35: 0 | I35: wachten instructie | J35: 0 | L35: 0 | Q35: 0 | R35: 0
A36: 0 | F36: 0 | G36: 0 | I36: wachten koppelchauffeur | J36: =SUM(R33:R42) -> 0 | L36: 0 | Q36: 0 | R36: 0
A37: 0 | F37: 0 | G37: 0 | L37: 0 | Q37: 0 | R37: 0
A38: 0 | F38: 0 | G38: 0 | L38: 0 | Q38: 0 | R38: 0
A39: 0 | F39: 0 | G39: 0 | L39: 0 | Q39: 0 | R39: 0
A40: 0 | F40: 0 | G40: 0 | L40: 0 | Q40: 0 | R40: 0
A41: 0 | F41: 0 | G41: 0 | L41: 0 | Q41: 0 | R41: 0
A42: 0 | F42: 0 | G42: 0 | L42: 0 | Q42: 0 | R42: 0
B44: donderdag 06-6-2019 | M44: donderdag 06-6-2019
B45: Begintijd | C45: Eindtijd | D45: Begintijd | E45: Eindtijd | F45: tanken | G45: aan/afkoppelen | I45: Totaal uren | J45: =J46+J47+J48+J49 -> 0 | M45: Begintijd | N45: Eindtijd | O45: Begintijd | P45: Eindtijd | Q45: wachten instructie | R45: wachten koppelchauffeur
A46: =IF(B46,"1",0) -> 0 | F46: =C46-B46 -> 0 | G46: =E46-D46 -> 0 | I46: tanken | J46: =SUM(F46:F51) -> 0 | L46: =IF(M46,"1",0) -> 0 | Q46: =N46-M46 -> 0 | R46: =P46-O46 -> 0
A47: =IF(B47,"1",0) -> 0 | F47: =C47-B47 -> 0 | G47: =E47-D47 -> 0 | I47: aan-afkoppelen | J47: =SUM(G46:G51) -> 0 | L47: =IF(M47,"1",0) -> 0 | Q47: =N47-M47 -> 0 | R47: =P47-O47 -> 0
A48: 0 | F48: 0 | G48: 0 | I48: wachten instructie | J48: =N46-M46 -> 0 | L48: 0 | Q48: 0 | R48: 0
A49: 0 | F49: 0 | G49: 0 | I49: wachten koppelchauffeur | J49: =SUM(R46:R55) -> 0 | L49: 0 | Q49: 0 | R49: 0
A50: 0 | F50: 0 | G50: 0 | L50: 0 | Q50: 0 | R50: 0
A51: 0 | F51: 0 | G51: 0 | L51: 0 | Q51: 0 | R51: 0
A52: 0 | F52: 0 | G52: 0 | L52: 0 | Q52: 0 | R52: 0
A53: 0 | F53: 0 | G53: 0 | L53: 0 | Q53: 0 | R53: 0
A54: 0 | F54: 0 | G54: 0 | L54: 0 | Q54: 0 | R54: 0
A55: 0 | F55: 0 | G55: 0 | L55: 0 | Q55: 0 | R55: 0
B57: vrijdag 07-6-2019 | M57: vrijdag 07-6-2019
B58: Begintijd | C58: Eindtijd | D58: Begintijd | E58: Eindtijd | F58: tanken | G58: aan/afkoppelen | I58: Totaal uren | J58: =J59+J60+J61+J62 -> 0.01826388889 | M58: Begintijd | N58: Eindtijd | O58: Begintijd | P58: Eindtijd | Q58: wachten instructie | R58: wachten koppelchauffeur
A59: =IF(B59,"1",0) -> 1 | B59: 2015-06-06T17:24:36 | C59: 2015-06-06T17:35:03 | D59: 2015-06-06T18:01:33 | E59: 2015-06-06T18:17:24 | F59: =C59-B59 -> 0.007256944446 | G59: =E59-D59 -> 0.01100694445 | I59: tanken | J59: =SUM(F59:F64) -> 0.007256944446 | L59: =IF(M59,"1",0) -> 0 | Q59: =N59-M59 -> 0 | R59: =P59-O59 -> 0
A60: =IF(B60,"1",0) -> 0 | F60: =C60-B60 -> 0 | G60: =E60-D60 -> 0 | I60: aan-afkoppelen | J60: =SUM(G59:G64) -> 0.01100694445 | L60: =IF(M60,"1",0) -> 0 | Q60: =N60-M60 -> 0 | R60: =P60-O60 -> 0
A61: 0 | F61: 0 | G61: 0 | I61: wachten instructie | J61: =N59-M59 -> 0 | L61: 0 | Q61: 0 | R61: 0
A62: 0 | F62: 0 | G62: 0 | I62: wachten koppelchauffeur | J62: =SUM(R59:R68) -> 0 | L62: 0 | Q62: 0 | R62: 0
A63: 0 | F63: 0 | G63: 0 | L63: 0 | Q63: 0 | R63: 0
A64: 0 | F64: 0 | G64: 0 | L64: 0 | Q64: 0 | R64: 0
A65: 0 | F65: 0 | G65: 0 | L65: 0 | Q65: 0 | R65: 0
A66: 0 | F66: 0 | G66: 0 | L66: 0 | Q66: 0 | R66: 0
A67: 0 | F67: 0 | G67: 0 | L67: 0 | Q67: 0 | R67: 0
A68: 0 | F68: 0 | G68: 0 | L68: 0 | Q68: 0 | R68: 0
B70: zaterdag 08-6-2019 | M70: zaterdag 08-6-2019
B71: Begintijd | C71: Eindtijd | D71: Begintijd | E71: Eindtijd | F71: tanken | G71: aan/afkoppelen | I71: Totaal uren | J71: =J72+J73+J74+J75 -> 0 | M71: Begintijd | N71: Eindtijd | O71: Begintijd | P71: Eindtijd | Q71: wachten instructie | R71: wachten koppelchauffeur
A72: =IF(B72,"1",0) -> 0 | F72: =C72-B72 -> 0 | G72: =E72-D72 -> 0 | I72: tanken | J72: =SUM(F72:F77) -> 0 | L72: =IF(M72,"1",0) -> 0 | Q72: =N72-M72 -> 0 | R72: =P72-O72 -> 0
A73: =IF(B73,"1",0) -> 0 | F73: =C73-B73 -> 0 | G73: =E73-D73 -> 0 | I73: aan-afkoppelen | J73: =SUM(G72:G77) -> 0 | L73: =IF(M73,"1",0) -> 0 | Q73: =N73-M73 -> 0 | R73: =P73-O73 -> 0
A74: 0 | F74: 0 | G74: 0 | I74: wachten instructie | J74: =N72-M72 -> 0 | L74: 0 | Q74: 0 | R74: 0
A75: 0 | F75: 0 | G75: 0 | I75: wachten koppelchauffeur | J75: =SUM(R72:R81) -> 0 | L75: 0 | Q75: 0 | R75: 0
A76: 0 | F76: 0 | G76: 0 | L76: 0 | Q76: 0 | R76: 0
A77: 0 | F77: 0 | G77: 0 | L77: 0 | Q77: 0 | R77: 0
A78: 0 | F78: 0 | G78: 0 | L78: 0 | Q78: 0 | R78: 0
A79: 0 | F79: 0 | G79: 0 | L79: 0 | Q79: 0 | R79: 0
A80: 0 | F80: 0 | G80: 0 | L80: 0 | Q80: 0 | R80: 0
A81: 0 | F81: 0 | G81: 0 | L81: 0 | Q81: 0 | R81: 0
B83: zondag 09-6-2019 | M83: zondag 09-6-2019
B84: Begintijd | C84: Eindtijd | D84: Begintijd | E84: Eindtijd | F84: tanken | G84: aan/afkoppelen | I84: Totaal uren | J84: =J85+J86+J87+J88 -> 0 | M84: Begintijd | N84: Eindtijd | O84: Begintijd | P84: Eindtijd | Q84: wachten instructie | R84: wachten koppelchauffeur
A85: =IF(B85,"1",0) -> 0 | F85: =C85-B85 -> 0 | G85: =E85-D85 -> 0 | I85: tanken | J85: =SUM(F85:F90) -> 0 | L85: =IF(M85,"1",0) -> 0 | Q85: =N85-M85 -> 0 | R85: =P85-O85 -> 0
A86: =IF(B86,"1",0) -> 0 | F86: =C86-B86 -> 0 | G86: =E86-D86 -> 0 | I86: aan-afkoppelen | J86: =SUM(G85:G90) -> 0 | L86: =IF(M86,"1",0) -> 0 | Q86: 0 | R86: 0
A87: 0 | F87: 0 | G87: 0 | I87: wachten instructie | J87: =N85-M85 -> 0 | L87: 0 | Q87: 0 | R87: 0
A88: 0 | F88: 0 | G88: 0 | I88: wachten koppelchauffeur | J88: =SUM(R85:R94) -> 0 | L88: 0 | Q88: 0 | R88: 0
A89: 0 | F89: 0 | G89: 0 | L89: 0 | Q89: 0 | R89: 0
A90: 0 | F90: 0 | G90: 0 | L90: 0 | Q90: 0 | R90: 0
A91: 0 | F91: 0 | G91: 0 | L91: 0 | Q91: 0 | R91: 0
A92: 0 | F92: 0 | G92: 0 | L92: 0 | Q92: 0 | R92: 0
A93: 0 | F93: 0 | G93: 0 | L93: 0 | Q93: 0 | R93: 0
A94: 0 | F94: 0 | G94: 0 | L94: 0 | Q94: 0 | R94: 0
I96: tanken | J96: =J85+J72+J59+J46+J33+J20+J7 -> 0.03785879629
I98: aan-afkoppelen | J98: =J86+J73+J60+J47+J34+J21+J8 -> 0.02046296297
I100: wachten instructie | J100: =J87+J74+J61+J48+J35+J22+J9 -> 0
I102: wachten koppelchauffeur | J102: =J90+J77+J64+J51+J36+J23+J10 -> 0
I104: Totaal uren | J104: =J98+J96+J100+J102 -> 0.05832175926
I111: Totaal uren | J111: =J102+J100 -> 0
B114: Einde dag-taken week 23

Sheet Dag-taken week (24) (hidden)
B1: Dag-taken week 24 | M1: =B1 -> Dag-taken week 24
B2: tanken | D2: aan/afkoppelen | F2: Tijden | M2: wachten instructie | O2: wachten koppelchauffeur | Q2: Tijden
B5: maandag 10-6-2019 | M5: =B5 -> maandag 10-6-2019
A6: 0 | B6: Begintijd | C6: Eindtijd | D6: Begintijd | E6: Eindtijd | F6: tanken | G6: aan/afkoppelen | I6: Totaal uren | J6: =J7+J8 -> 0.02782407407 | L6: 0 | M6: Begintijd | N6: Eindtijd | O6: Begintijd | P6: Eindtijd | Q6: wachten instructie | R6: wachten koppelchauffeur
A7: =IF(B7,"1",0) -> 1 | B7: 2015-06-09T05:34:47 | C7: 2015-06-09T06:07:05 | D7: 2015-06-09T05:22:08 | E7: 2015-06-09T05:29:54 | F7: =C7-B7 -> 0.02243055555 | G7: =E7-D7 -> 0.005393518521 | I7: tanken | J7: =SUM(F7:F12) -> 0.02243055555 | L7: =IF(M7,"1",0) -> 0 | Q7: =N7-M7 -> 0 | R7: =P7-O7 -> 0
A8: 0 | F8: =C8-B8 -> 0 | G8: =E8-D8 -> 0 | I8: aan-afkoppelen | J8: =SUM(G7:G12) -> 0.005393518521 | L8: =IF(M8,"1",0) -> 0 | Q8: =N8-M8 -> 0 | R8: =P8-O8 -> 0
A9: 0 | F9: 0 | G9: 0 | L9: 0 | Q9: 0 | R9: 0
A10: 0 | F10: 0 | G10: 0 | I10: Totaal uren | J10: =J11+J12 -> 0 | L10: 0 | Q10: 0 | R10: 0
A11: 0 | F11: 0 | G11: 0 | I11: wachten instructie | J11: =SUM(Q7:Q16) -> 0 | L11: 0 | Q11: 0 | R11: 0
A12: 0 | F12: 0 | G12: 0 | I12: wachten koppelchauffeur | J12: =SUM(R7:R16) -> 0 | L12: 0 | Q12: 0 | R12: 0
A13: 0 | F13: 0 | G13: 0 | L13: 0 | Q13: 0 | R13: 0
A14: 0 | F14: 0 | G14: 0 | L14: 0 | Q14: 0 | R14: 0
A15: 0 | F15: 0 | G15: 0 | L15: 0 | Q15: 0 | R15: 0
A16: 0 | F16: 0 | G16: 0 | L16: 0 | Q16: 0 | R16: 0
B18: dinsdag 11-6-2019 | M18: =B18 -> dinsdag 11-6-2019
B19: Begintijd | C19: Eindtijd | D19: Begintijd | E19: Eindtijd | F19: tanken | G19: aan/afkoppelen | I19: Totaal uren | J19: =J20+J21 -> 0.0207175926 | M19: Begintijd | N19: Eindtijd | O19: Begintijd | P19: Eindtijd | Q19: wachten instructie | R19: wachten koppelchauffeur
A20: =IF(B20,"1",0) -> 0 | D20: 2015-06-10T10:37:55 | E20: 2015-06-10T11:07:45 | F20: =C20-B20 -> 0 | G20: =E20-D20 -> 0.0207175926 | I20: tanken | J20: =SUM(F20:F29) -> 0 | L20: =IF(M20,"1",0) -> 0 | Q20: =N20-M20 -> 0 | R20: =R7 -> 0
A21: =IF(B21,"1",0) -> 0 | F21: =C21-B21 -> 0 | G21: =E21-D21 -> 0 | I21: aan-afkoppelen | J21: =SUM(G20:G29) -> 0.0207175926 | L21: =IF(M21,"1",0) -> 0 | Q21: 0 | R21: 0
A22: 0 | F22: 0 | G22: 0 | L22: 0 | Q22: 0 | R22: 0
A23: 0 | F23: 0 | G23: 0 | I23: Totaal uren | J23: =J24+J25 -> 0 | L23: 0 | Q23: 0 | R23: 0
A24: 0 | F24: 0 | G24: 0 | I24: wachten instructie | J24: =SUM(Q20:Q29) -> 0 | L24: 0 | Q24: 0 | R24: 0
A25: 0 | F25: 0 | G25: 0 | I25: wachten koppelchauffeur | J25: =SUM(R20:R29) -> 0 | L25: 0 | Q25: 0 | R25: 0
A26: 0 | F26: 0 | G26: 0 | L26: 0 | Q26: 0 | R26: 0
A27: 0 | F27: 0 | G27: 0 | L27: 0 | Q27: 0 | R27: 0
A28: 0 | F28: 0 | G28: 0 | L28: 0 | Q28: 0 | R28: 0
A29: 0 | F29: 0 | G29: 0 | L29: 0 | Q29: =Q16 -> 0 | R29: =R16 -> 0
B31: woensdag 12-6-2019 | M31: =B31 -> woensdag 12-6-2019
B32: Begintijd | C32: Eindtijd | D32: Begintijd | E32: Eindtijd | F32: tanken | G32: aan/afkoppelen | I32: Totaal uren | J32: =J33+J34 -> 0 | M32: Begintijd | N32: Eindtijd | O32: Begintijd | P32: Eindtijd | Q32: wachten instructie | R32: wachten koppelchauffeur
A33: =IF(B33,"1",0) -> 0 | F33: =C33-B33 -> 0 | G33: =E33-D33 -> 0 | I33: tanken | J33: =SUM(F33:F38) -> 0 | L33: =IF(M33,"1",0) -> 0 | Q33: 0 | R33: 0
A34: =IF(B34,"1",0) -> 0 | F34: =C34-B34 -> 0 | G34: =E34-D34 -> 0 | I34: aan-afkoppelen | J34: =SUM(G33:G38) -> 0 | L34: =IF(M34,"1",0) -> 0 | Q34: 0 | R34: 0
A35: 0 | F35: 0 | G35: 0 | L35: 0 | Q35: 0 | R35: 0
A36: 0 | F36: 0 | G36: 0 | I36: Totaal uren | J36: =J37+J38 -> 0 | L36: 0 | Q36: 0 | R36: 0
A37: 0 | F37: 0 | G37: 0 | I37: wachten instructie | J37: =SUM(Q33:Q42) -> 0 | L37: 0 | Q37: 0 | R37: 0
A38: 0 | F38: 0 | G38: 0 | I38: wachten koppelchauffeur | J38: =SUM(R33:R42) -> 0 | L38: 0 | Q38: 0 | R38: 0
A39: 0 | F39: 0 | G39: 0 | L39: 0 | Q39: 0 | R39: 0
A40: 0 | F40: 0 | G40: 0 | L40: 0 | Q40: 0 | R40: 0
A41: 0 | F41: 0 | G41: 0 | L41: 0 | Q41: 0 | R41: 0
A42: 0 | F42: 0 | G42: 0 | L42: 0 | Q42: 0 | R42: 0
B44: donderdag 13-6-2019 | M44: =B44 -> donderdag 13-6-2019
B45: Begintijd | C45: Eindtijd | D45: Begintijd | E45: Eindtijd | F45: tanken | G45: aan/afkoppelen | I45: Totaal uren | J45: =J46+J47 -> 0.02386574073 | M45: Begintijd | N45: Eindtijd | O45: Begintijd | P45: Eindtijd | Q45: wachten instructie | R45: wachten koppelchauffeur
A46: =IF(B46,"1",0) -> 1 | B46: 2015-06-12T14:48:57 | C46: 2015-06-12T15:06:10 | D46: 2015-06-12T15:28:25 | E46: 2015-06-12T15:45:34 | F46: =C46-B46 -> 0.01195601851 | G46: =E46-D46 -> 0.01190972222 | I46: tanken | J46: =SUM(F46:F55) -> 0.01195601851 | L46: =IF(M46,"1",0) -> 0 | Q46: =N46-M46 -> 0 | R46: =P46-O46 -> 0
A47: =IF(B47,"1",0) -> 0 | F47: =C47-B47 -> 0 | G47: =E47-D47 -> 0 | I47: aan-afkoppelen | J47: =SUM(G46:G55) -> 0.01190972222 | L47: =IF(M47,"1",0) -> 0 | Q47: =N47-M47 -> 0 | R47: =P47-O47 -> 0
A48: 0 | F48: 0 | G48: 0 | L48: 0 | Q48: 0 | R48: 0
A49: 0 | F49: 0 | G49: 0 | I49: Totaal uren | J49: =J50+J51 -> 0 | L49: 0 | Q49: 0 | R49: 0
A50: 0 | F50: 0 | G50: 0 | I50: wachten instructie | J50: =SUM(Q46:Q55) -> 0 | L50: 0 | Q50: 0 | R50: 0
A51: 0 | F51: 0 | G51: 0 | I51: wachten koppelchauffeur | J51: =SUM(R46:R55) -> 0 | L51: 0 | Q51: 0 | R51: 0
A52: 0 | F52: 0 | G52: 0 | L52: 0 | Q52: 0 | R52: 0
A53: 0 | F53: 0 | G53: 0 | L53: 0 | Q53: 0 | R53: 0
A54: 0 | F54: 0 | G54: 0 | L54: 0 | Q54: 0 | R54: 0
A55: 0 | F55: 0 | G55: 0 | L55: 0 | Q55: 0 | R55: 0
B57: vrijdag 14-6-2019 | M57: =B57 -> vrijdag 14-6-2019
B58: Begintijd | C58: Eindtijd | D58: Begintijd | E58: Eindtijd | F58: tanken | G58: aan/afkoppelen | I58: Totaal uren | J58: =J59+J60 -> 0.040625 | M58: Begintijd | N58: Eindtijd | O58: Begintijd | P58: Eindtijd | Q58: wachten instructie | R58: wachten koppelchauffeur
A59: =IF(B59,"1",0) -> 0 | D59: 2015-06-13T11:15:05 | E59: 2015-06-13T12:06:12 | F59: =C59-B59 -> 0 | G59: =E59-D59 -> 0.03549768519 | I59: tanken | J59: =SUM(F59:F64) -> 0 | L59: =IF(M59,"1",0) -> 1 | M59: 2015-06-13T09:21:46 | N59: 2015-06-13T09:40:50 | Q59: =N59-M59 -> 0.01324074074 | R59: =P59-O59 -> 0
A60: =IF(B60,"1",0) -> 0 | D60: 2015-06-13T18:41:38 | E60: 2015-06-13T18:49:01 | F60: =C60-B60 -> 0 | G60: =E60-D60 -> 0.005127314813 | I60: aan-afkoppelen | J60: =SUM(G59:G64) -> 0.040625 | L60: 0 | Q60: =N60-M60 -> 0 | R60: =P60-O60 -> 0
A61: 0 | F61: 0 | G61: 0 | L61: 0 | Q61: 0 | R61: 0
A62: 0 | F62: 0 | G62: 0 | I62: Totaal uren | J62: =J63+J64 -> 0.01324074074 | L62: 0 | Q62: 0 | R62: 0
A63: 0 | F63: 0 | G63: 0 | I63: wachten instructie | J63: =SUM(Q59:Q68) -> 0.01324074074 | L63: 0 | Q63: 0 | R63: 0
A64: 0 | F64: 0 | G64: 0 | I64: wachten koppelchauffeur | J64: =SUM(R59:R68) -> 0 | L64: 0 | Q64: 0 | R64: 0
A65: 0 | F65: 0 | G65: 0 | L65: 0 | Q65: 0 | R65: 0
A66: 0 | F66: 0 | G66: 0 | L66: 0 | Q66: 0 | R66: 0
A67: 0 | F67: 0 | G67: 0 | L67: 0 | Q67: 0 | R67: 0
A68: 0 | F68: 0 | G68: 0 | L68: 0 | Q68: 0 | R68: 0
B70: zaterdag 15-6-2019 | M70: =B70 -> zaterdag 15-6-2019
B71: Begintijd | C71: Eindtijd | D71: Begintijd | E71: Eindtijd | F71: tanken | G71: aan/afkoppelen | I71: Totaal uren | J71: =J72+J73 -> 0 | M71: Begintijd | N71: Eindtijd | O71: Begintijd | P71: Eindtijd | Q71: wachten instructie | R71: wachten koppelchauffeur
A72: =IF(B72,"1",0) -> 0 | F72: =C72-B72 -> 0 | G72: =E72-D72 -> 0 | I72: tanken | J72: =SUM(F72:F81) -> 0 | L72: =IF(M72,"1",0) -> 0 | Q72: =N72-M72 -> 0 | R72: =P72-O72 -> 0
A73: =IF(B73,"1",0) -> 0 | F73: =C73-B73 -> 0 | G73: =E73-D73 -> 0 | I73: aan-afkoppelen | J73: =SUM(G72:G81) -> 0 | L73: =IF(M73,"1",0) -> 0 | Q73: =N73-M73 -> 0 | R73: =P73-O73 -> 0
A74: 0 | F74: 0 | G74: 0 | L74: 0 | Q74: 0 | R74: 0
A75: 0 | F75: 0 | G75: 0 | I75: Totaal uren | J75: =J76+J77 -> 0 | L75: 0 | Q75: 0 | R75: 0
A76: 0 | F76: 0 | G76: 0 | I76: wachten instructie | J76: =SUM(Q72:Q81) -> 0 | L76: 0 | Q76: 0 | R76: 0
A77: 0 | F77: 0 | G77: 0 | I77: wachten koppelchauffeur | J77: =SUM(R72:R81) -> 0 | L77: 0 | Q77: 0 | R77: 0
A78: 0 | F78: 0 | G78: 0 | L78: 0 | Q78: 0 | R78: 0
A79: 0 | F79: 0 | G79: 0 | L79: 0 | Q79: 0 | R79: 0
A80: 0 | F80: 0 | G80: 0 | L80: 0 | Q80: 0 | R80: 0
A81: 0 | F81: 0 | G81: 0 | L81: 0 | Q81: 0 | R81: 0
B83: zondag 16-6-2019 | M83: =B83 -> zondag 16-6-2019
B84: Begintijd | C84: Eindtijd | D84: Begintijd | E84: Eindtijd | F84: tanken | G84: aan/afkoppelen | I84: Totaal uren | J84: =J85+J86 -> 0 | M84: Begintijd | N84: Eindtijd | O84: Begintijd | P84: Eindtijd | Q84: wachten instructie | R84: wachten koppelchauffeur
A85: =IF(B85,"1",0) -> 0 | F85: =C85-B85 -> 0 | G85: =E85-D85 -> 0 | I85: tanken | J85: =SUM(F85:F90) -> 0 | L85: =IF(M85,"1",0) -> 0 | Q85: =N85-M85 -> 0 | R85: =P85-O85 -> 0
A86: =IF(B86,"1",0) -> 0 | F86: =C86-B86 -> 0 | G86: =E86-D86 -> 0 | I86: aan-afkoppelen | J86: =SUM(G85:G90) -> 0 | L86: =IF(M86,"1",0) -> 0 | Q86: 0 | R86: 0
A87: 0 | F87: 0 | G87: 0 | L87: 0 | Q87: 0 | R87: 0
A88: 0 | F88: 0 | G88: 0 | I88: Totaal uren | J88: =J89+J90 -> 0 | L88: 0 | Q88: 0 | R88: 0
A89: 0 | F89: 0 | G89: 0 | I89: wachten instructie | J89: =SUM(Q85:Q94) -> 0 | L89: 0 | Q89: 0 | R89: 0
A90: 0 | F90: 0 | G90: 0 | I90: wachten koppelchauffeur | J90: =SUM(R85:R94) -> 0 | L90: 0 | Q90: 0 | R90: 0
A91: 0 | F91: 0 | G91: 0 | L91: 0 | Q91: 0 | R91: 0
A92: 0 | F92: 0 | G92: 0 | L92: 0 | Q92: 0 | R92: 0
A93: 0 | F93: 0 | G93: 0 | L93: 0 | Q93: 0 | R93: 0
A94: 0 | F94: 0 | G94: 0 | L94: 0 | Q94: 0 | R94: 0
I96: tanken | J96: =J85+J72+J59+J46+J33+J20+J7 -> 0.03438657407
I98: aan-afkoppelen | J98: =J86+J73+J60+J47+J34+J21+J8 -> 0.07864583334
I100: Totaal uren | J100: =J98+J96 -> 0.1130324074
I103: wachten instructie | J103: =J89+J76+J63+J50+J37+J24+J11 -> 0.01324074074
I105: wachten koppelchauffeur | J105: =J90+J77+J64+J51+J38+J25+J12 -> 0
I107: Totaal uren | J107: =J105+J103 -> 0.01324074074
B110: Einde dag-taken week 24

Sheet Dag-taken week (25) (hidden)
B1: Dag-taken week 25 | M1: =B1 -> Dag-taken week 25
B2: tanken | D2: aan/afkoppelen | F2: Tijden | M2: wachten instructie | O2: wachten koppelchauffeur | Q2: Tijden
B5: maandag 17-6-2019 | M5: =B5 -> maandag 17-6-2019
B6: Begintijd | C6: Eindtijd | D6: Begintijd | E6: Eindtijd | F6: tanken | G6: aan/afkoppelen | I6: Totaal uren | J6: =J7+J8 -> 0.03452546296 | M6: Begintijd | N6: Eindtijd | O6: Begintijd | P6: Eindtijd | Q6: wachten instructie | R6: wachten koppelchauffeur
A7: =IF(B7,"1",0) -> 1 | B7: 2015-06-16T13:48:06 | C7: 2015-06-16T14:02:08 | D7: 2015-06-16T02:31:36 | E7: 2015-06-16T02:46:11 | F7: =C7-B7 -> 0.009745370371 | G7: =E7-D7 -> 0.01012731481 | I7: tanken | J7: =SUM(F7:F12) -> 0.009745370371 | L7: =IF(M7,"1",0) -> 0 | Q7: =N7-M7 -> 0 | R7: =P7-O7 -> 0
A8: =IF(B8,"1",0) -> 0 | D8: 2015-06-16T12:00:17 | E8: 2015-06-16T12:10:51 | F8: =C8-B8 -> 0 | G8: =E8-D8 -> 0.007337962961 | I8: aan-afkoppelen | J8: =SUM(G7:G12) -> 0.02478009259 | L8: =IF(M8,"1",0) -> 0 | Q8: =N8-M8 -> 0 | R8: =P8-O8 -> 0
A9: 0 | D9: 2015-06-16T12:30:54 | E9: 2015-06-16T12:41:26 | F9: 0 | G9: 0.007314814815 | L9: 0 | Q9: 0 | R9: 0
A10: 0 | F10: 0 | G10: 0 | I10: Totaal uren | J10: =J11+J12 -> 0 | L10: 0 | Q10: 0 | R10: 0
A11: 0 | F11: 0 | G11: 0 | I11: wachten instructie | J11: =SUM(Q7:Q16) -> 0 | L11: 0 | Q11: 0 | R11: 0
A12: 0 | F12: 0 | G12: 0 | I12: wachten koppelchauffeur | J12: =SUM(R7:R16) -> 0 | L12: 0 | Q12: 0 | R12: 0
A13: 0 | F13: 0 | G13: 0 | L13: 0 | Q13: 0 | R13: 0
A14: 0 | F14: 0 | G14: 0 | L14: 0 | Q14: 0 | R14: 0
A15: 0 | F15: 0 | G15: 0 | L15: 0 | Q15: 0 | R15: 0
A16: 0 | F16: 0 | G16: 0 | L16: 0 | Q16: 0 | R16: 0
B18: dinsdag 18-6-2019 | M18: =B18 -> dinsdag 18-6-2019
B19: Begintijd | C19: Eindtijd | D19: Begintijd | E19: Eindtijd | F19: tanken | G19: aan/afkoppelen | I19: Totaal uren | J19: =J20+J21 -> 0 | M19: Begintijd | N19: Eindtijd | O19: Begintijd | P19: Eindtijd | Q19: wachten instructie | R19: wachten koppelchauffeur
A20: =IF(B20,"1",0) -> 0 | F20: =C20-B20 -> 0 | G20: =E20-D20 -> 0 | I20: tanken | J20: =SUM(F20:F29) -> 0 | L20: =IF(M20,"1",0) -> 0 | Q20: =N20-M20 -> 0 | R20: =R7 -> 0
A21: =IF(B21,"1",0) -> 0 | F21: =C21-B21 -> 0 | G21: =E21-D21 -> 0 | I21: aan-afkoppelen | J21: =SUM(G20:G29) -> 0 | L21: =IF(M21,"1",0) -> 0 | Q21: 0 | R21: 0
A22: 0 | F22: 0 | G22: 0 | L22: 0 | Q22: 0 | R22: 0
A23: 0 | F23: 0 | G23: 0 | I23: Totaal uren | J23: =J24+J25 -> 0 | L23: 0 | Q23: 0 | R23: 0
A24: 0 | F24: 0 | G24: 0 | I24: wachten instructie | J24: =SUM(Q20:Q29) -> 0 | L24: 0 | Q24: 0 | R24: 0
A25: 0 | F25: 0 | G25: 0 | I25: wachten koppelchauffeur | J25: =SUM(R20:R29) -> 0 | L25: 0 | Q25: 0 | R25: 0
A26: 0 | F26: 0 | G26: 0 | L26: 0 | Q26: 0 | R26: 0
A27: 0 | F27: 0 | G27: 0 | L27: 0 | Q27: 0 | R27: 0
A28: 0 | F28: 0 | G28: 0 | L28: 0 | Q28: 0 | R28: 0
A29: 0 | F29: 0 | G29: 0 | L29: 0 | Q29: =Q16 -> 0 | R29: =R16 -> 0
B31: woensdag 19-6-2019 | M31: =B31 -> woensdag 19-6-2019
B32: Begintijd | C32: Eindtijd | D32: Begintijd | E32: Eindtijd | F32: tanken | G32: aan/afkoppelen | I32: Totaal uren | J32: =J33+J34 -> 0 | M32: Begintijd | N32: Eindtijd | O32: Begintijd | P32: Eindtijd | Q32: wachten instructie | R32: wachten koppelchauffeur
A33: =IF(B33,"1",0) -> 0 | F33: =C33-B33 -> 0 | G33: =E33-D33 -> 0 | I33: tanken | J33: =SUM(F33:F38) -> 0 | L33: =IF(M33,"1",0) -> 0 | Q33: 0 | R33: 0
A34: =IF(B34,"1",0) -> 0 | F34: =C34-B34 -> 0 | G34: =E34-D34 -> 0 | I34: aan-afkoppelen | J34: =SUM(G33:G38) -> 0 | L34: =IF(M34,"1",0) -> 0 | Q34: 0 | R34: 0
A35: 0 | F35: 0 | G35: 0 | L35: 0 | Q35: 0 | R35: 0
A36: 0 | F36: 0 | G36: 0 | I36: Totaal uren | J36: =J37+J38 -> 0 | L36: 0 | Q36: 0 | R36: 0
A37: 0 | F37: 0 | G37: 0 | I37: wachten instructie | J37: =SUM(Q33:Q42) -> 0 | L37: 0 | Q37: 0 | R37: 0
A38: 0 | F38: 0 | G38: 0 | I38: wachten koppelchauffeur | J38: =SUM(R33:R42) -> 0 | L38: 0 | Q38: 0 | R38: 0
A39: 0 | F39: 0 | G39: 0 | L39: 0 | Q39: 0 | R39: 0
A40: 0 | F40: 0 | G40: 0 | L40: 0 | Q40: 0 | R40: 0
A41: 0 | F41: 0 | G41: 0 | L41: 0 | Q41: 0 | R41: 0
A42: 0 | F42: 0 | G42: 0 | L42: 0 | Q42: 0 | R42: 0
B44: donderdag 20-6-2019 | M44: =B44 -> donderdag 20-6-2019
B45: Begintijd | C45: Eindtijd | D45: Begintijd | E45: Eindtijd | F45: tanken | G45: aan/afkoppelen | I45: Totaal uren | J45: =J46+J47 -> 0 | M45: Begintijd | N45: Eindtijd | O45: Begintijd | P45: Eindtijd | Q45: wachten instructie | R45: wachten koppelchauffeur
A46: =IF(B46,"1",0) -> 0 | F46: =C46-B46 -> 0 | G46: =E46-D46 -> 0 | I46: tanken | J46: =SUM(F46:F55) -> 0 | L46: =IF(M46,"1",0) -> 0 | Q46: =N46-M46 -> 0 | R46: =P46-O46 -> 0
A47: =IF(B47,"1",0) -> 0 | F47: =C47-B47 -> 0 | G47: =E47-D47 -> 0 | I47: aan-afkoppelen | J47: =SUM(G46:G55) -> 0 | L47: =IF(M47,"1",0) -> 0 | Q47: =N47-M47 -> 0 | R47: =P47-O47 -> 0
A48: 0 | F48: 0 | G48: 0 | L48: 0 | Q48: 0 | R48: 0
A49: 0 | F49: 0 | G49: 0 | I49: Totaal uren | J49: =J50+J51 -> 0 | L49: 0 | Q49: 0 | R49: 0
A50: 0 | F50: 0 | G50: 0 | I50: wachten instructie | J50: =SUM(Q46:Q55) -> 0 | L50: 0 | Q50: 0 | R50: 0
A51: 0 | F51: 0 | G51: 0 | I51: wachten koppelchauffeur | J51: =SUM(R46:R55) -> 0 | L51: 0 | Q51: 0 | R51: 0
A52: 0 | F52: 0 | G52: 0 | L52: 0 | Q52: 0 | R52: 0
A53: 0 | F53: 0 | G53: 0 | L53: 0 | Q53: 0 | R53: 0
A54: 0 | F54: 0 | G54: 0 | L54: 0 | Q54: 0 | R54: 0
A55: 0 | F55: 0 | G55: 0 | L55: 0 | Q55: 0 | R55: 0
B57: vrijdag 21-6-2019 | M57: =B57 -> vrijdag 21-6-2019
B58: Begintijd | C58: Eindtijd | D58: Begintijd | E58: Eindtijd | F58: tanken | G58: aan/afkoppelen | I58: Totaal uren | J58: =J59+J60 -> 0.01028935186 | M58: Begintijd | N58: Eindtijd | O58: Begintijd | P58: Eindtijd | Q58: wachten instructie | R58: wachten koppelchauffeur
A59: =IF(B59,"1",0) -> 1 | B59: 2015-06-20T07:01:23 | C59: 2015-06-20T07:16:12 | F59: =C59-B59 -> 0.01028935186 | G59: =E59-D59 -> 0 | I59: tanken | J59: =SUM(F59:F64) -> 0.01028935186 | L59: =IF(M59,"1",0) -> 0 | Q59: =N59-M59 -> 0 | R59: =P59-O59 -> 0
A60: =IF(B60,"1",0) -> 0 | F60: =C60-B60 -> 0 | G60: =E60-D60 -> 0 | I60: aan-afkoppelen | J60: =SUM(G59:G64) -> 0 | L60: =IF(M60,"1",0) -> 0 | Q60: =N60-M60 -> 0 | R60: =P60-O60 -> 0
A61: 0 | F61: 0 | G61: 0 | L61: 0 | Q61: 0 | R61: 0
A62: 0 | F62: 0 | G62: 0 | I62: Totaal uren | J62: =J63+J64 -> 0 | L62: 0 | Q62: 0 | R62: 0
A63: 0 | F63: 0 | G63: 0 | I63: wachten instructie | J63: =SUM(Q59:Q68) -> 0 | L63: 0 | Q63: 0 | R63: 0
A64: 0 | F64: 0 | G64: 0 | I64: wachten koppelchauffeur | J64: =SUM(R59:R68) -> 0 | L64: 0 | Q64: 0 | R64: 0
A65: 0 | F65: 0 | G65: 0 | L65: 0 | Q65: 0 | R65: 0
A66: 0 | F66: 0 | G66: 0 | L66: 0 | Q66: 0 | R66: 0
A67: 0 | F67: 0 | G67: 0 | L67: 0 | Q67: 0 | R67: 0
A68: 0 | F68: 0 | G68: 0 | L68: 0 | Q68: 0 | R68: 0
B70: zaterdag 22-6-2019 | M70: =B70 -> zaterdag 22-6-2019
B71: Begintijd | C71: Eindtijd | D71: Begintijd | E71: Eindtijd | F71: tanken | G71: aan/afkoppelen | I71: Totaal uren | J71: =J72+J73 -> 0.02081018518 | M71: Begintijd | N71: Eindtijd | O71: Begintijd | P71: Eindtijd | Q71: wachten instructie | R71: wachten koppelchauffeur
A72: 1 | B72: 2015-06-21T02:15:38 | C72: 2015-06-21T02:30:38 | D72: 2015-06-21T01:50:59 | E72: 2015-06-21T02:05:57 | F72: =C72-B72 -> 0.01041666666 | G72: =E72-D72 -> 0.01039351852 | I72: tanken | J72: =SUM(F72:F81) -> 0.01041666666 | L72: =IF(M72,"1",0) -> 0 | Q72: =N72-M72 -> 0 | R72: =P72-O72 -> 0
A73: =IF(B73,"1",0) -> 0 | F73: =C73-B73 -> 0 | G73: =E73-D73 -> 0 | I73: aan-afkoppelen | J73: =SUM(G72:G81) -> 0.01039351852 | L73: =IF(M73,"1",0) -> 0 | Q73: =N73-M73 -> 0 | R73: =P73-O73 -> 0
A74: 0 | F74: 0 | G74: 0 | L74: 0 | Q74: 0 | R74: 0
A75: 0 | F75: =C75-B75 -> 0 | G75: =E75-D75 -> 0 | I75: Totaal uren | J75: =J76+J77 -> 0 | L75: 0 | Q75: 0 | R75: 0
A76: 0 | F76: 0 | G76: 0 | I76: wachten instructie | J76: =SUM(Q72:Q81) -> 0 | L76: 0 | Q76: 0 | R76: 0
A77: 0 | F77: 0 | G77: 0 | I77: wachten koppelchauffeur | J77: =SUM(R72:R81) -> 0 | L77: 0 | Q77: 0 | R77: 0
A78: 0 | F78: 0 | G78: 0 | L78: 0 | Q78: 0 | R78: 0
A79: 0 | F79: 0 | G79: 0 | L79: 0 | Q79: 0 | R79: 0
A80: 0 | F80: 0 | G80: 0 | L80: 0 | Q80: 0 | R80: 0
A81: 0 | F81: 0 | G81: 0 | L81: 0 | Q81: 0 | R81: 0
B83: zondag 23-6-2019 | M83: =B83 -> zondag 23-6-2019
B84: Begintijd | C84: Eindtijd | D84: Begintijd | E84: Eindtijd | F84: tanken | G84: aan/afkoppelen | I84: Totaal uren | J84: =J85+J86 -> 0.02081018518 | M84: Begintijd | N84: Eindtijd | O84: Begintijd | P84: Eindtijd | Q84: wachten instructie | R84: wachten koppelchauffeur
A85: =IF(B72,"1",0) -> 1 | I85: tanken | J85: =SUM(F72:F90) -> 0.01041666666 | L85: =IF(M85,"1",0) -> 0 | Q85: =N85-M85 -> 0 | R85: =P85-O85 -> 0
A86: =IF(B86,"1",0) -> 0 | F86: =C86-B86 -> 0 | G86: =E86-D86 -> 0 | I86: aan-afkoppelen | J86: =SUM(G72:G90) -> 0.01039351852 | L86: =IF(M86,"1",0) -> 0 | Q86: 0 | R86: 0
A87: 0 | F87: 0 | G87: 0 | L87: 0 | Q87: 0 | R87: 0
A88: 0 | F88: 0 | G88: 0 | I88: Totaal uren | J88: =J89+J90 -> 0 | L88: 0 | Q88: 0 | R88: 0
A89: 0 | F89: 0 | G89: 0 | I89: wachten instructie | J89: =SUM(Q85:Q94) -> 0 | L89: 0 | Q89: 0 | R89: 0
A90: 0 | F90: 0 | G90: 0 | I90: wachten koppelchauffeur | J90: =SUM(R85:R94) -> 0 | L90: 0 | Q90: 0 | R90: 0
A91: 0 | F91: 0 | G91: 0 | L91: 0 | Q91: 0 | R91: 0
A92: 0 | F92: 0 | G92: 0 | L92: 0 | Q92: 0 | R92: 0
A93: 0 | F93: 0 | G93: 0 | L93: 0 | Q93: 0 | R93: 0
A94: 0 | F94: 0 | G94: 0 | L94: 0 | Q94: 0 | R94: 0
I96: tanken | J96: =J85+J72+J59+J46+J33+J20+J7 -> 0.04086805556
I98: aan-afkoppelen | J98: =J86+J73+J60+J47+J34+J21+J8 -> 0.04556712962
I100: Totaal uren week 25 | J100: =J98+J96 -> 0.08643518518
I103: wachten instructie | J103: =J89+J76+J63+J50+J37+J24+J11 -> 0
I105: wachten koppelchauffeur | J105: =J90+J77+J64+J51+J38+J25+J12 -> 0
I107: Totaal uren | J107: =J105+J103 -> 0
B110: Einde dag-taken week 25

Sheet LadenLossen (33) (hidden)
A1: 02:00:00 | B1: Laden/lossen (beschikbaarheidstijd (behalve bij Rood )) | J1: Week 33 | N1: = zelf laden/lossen
J4: Totaal | N4: Wachturen laden/lossen
B5: Laden | F5: Lossen | J5: Laden | K5: Lossen | L5: Totaal uren | N5: Laden | P5: Lossen | Q5: Totaal uren
A6: Nr. | J6: =SUM(J8:J49) -> 0.005254629636 | K6: =SUM(K8:K49) -> 0.2361111111 | L6: =J6+K6 -> 0.2413657407 | N6: =SUM(N8:N25) -> 0 | P6: =SUM(P8:P25) -> 0.05136574074 | Q6: =N6+P6 -> 0.05136574074
A7: 0 | B7: begin | D7: eind | F7: begin | H7: eind
A8: 1 | F8: 2015-08-11T12:23:05 | H8: 2015-08-11T12:35:32 | J8: =IF(D8<>"",IF(D8-B8>TIME(2,0,0),TIME(2,0,0),D8-B8),"") ->  | K8: =IF(H8<>"",IF((H8-F8)>TIME(2,0,0),TIME(2,0,0),H8-F8),"") -> 0.008645833332 | N8: =IF(D8-B8>TIME(2,0,0),D8-B8-TIME(2,0,0),"") ->  | P8: =IF((H8-F8)>TIME(2,0,0),H8-F8-TIME(2,0,0),"") -> 
A9: 2 | B9: 2015-08-12T08:05:02 | D9: 2015-08-12T08:12:36 | J9: 0.005254629636
A10: 3 | F10: 2015-08-13T06:17:55 | H10: 2015-08-13T06:41:32 | K10: 0.01640046296
A11: 4 | F11: 2015-08-13T14:23:37 | H11: 2015-08-13T17:37:35 | K11: 0.08333333333 | P11: 0.05136574074
A12: 5 | F12: 2015-08-15T06:53:05 | H12: 2015-08-15T08:34:57 | K12: 0.07074074074
A13: 6 | F13: 2015-08-15T08:58:11 | H13: 2015-08-15T10:20:15 | K13: 0.05699074074
J16: =IF(D16<>"",IF(D16-B16>TIME(2,0,0),TIME(2,0,0),D16-B16),"") -> 
L25: =IF(H25<>"",H25-F25,"") -> 
J26: =IF(D26<>"",D26-B26,"") ->  | K26: =IF(H26<>"",H26-F26,"") -> 

Sheet Dag-taken week (34) (hidden)
B1: Dag-taken week 34 | M1: =B1 -> Dag-taken week 34
B2: tanken | D2: aan/afkoppelen | F2: Totaal | G2: =Q2 -> Tijden | M2: wachten instructie | O2: wachten koppelchauffeur | Q2: Tijden
B5: maandag 19-8-2019 | M5: =B5 -> maandag 19-8-2019
B6: Begintijd | C6: Eindtijd | D6: Begintijd | E6: Eindtijd | F6: tanken | G6: aan/afkoppelen | I6: Totaal uren | J6: =J7+J8 -> 0 | M6: Begintijd | N6: Eindtijd | O6: Begintijd | P6: Eindtijd | Q6: wachten instructie | R6: wachten koppelchauffeur
A7: 1 | F7: =C7-B7 -> 0 | G7: =E7-D7 -> 0 | I7: tanken | J7: =SUM(F7:F12) -> 0 | L7: =IF(M7,"1",0) -> 0 | Q7: =N7-M7 -> 0 | R7: =P7-O7 -> 0
A8: =IF(B8,"1",0) -> 0 | F8: =C8-B8 -> 0 | G8: =E8-D8 -> 0 | I8: aan-afkoppelen | J8: =SUM(G7:G12) -> 0 | L8: 0 | Q8: =N8-M8 -> 0 | R8: =P8-O8 -> 0
A9: 0 | F9: 0 | G9: 0 | L9: 0 | Q9: 0 | R9: 0
A10: 0 | F10: 0 | G10: 0 | I10: Totaal uren | J10: =J11+J12 -> 0 | L10: 0 | Q10: 0 | R10: 0
A11: 0 | F11: 0 | G11: 0 | I11: wachten instructie | J11: =SUM(Q7:Q16) -> 0 | L11: 0 | Q11: 0 | R11: 0
A12: 0 | F12: 0 | G12: 0 | I12: wachten koppelchauffeur | J12: =SUM(R7:R16) -> 0 | L12: 0 | Q12: 0 | R12: 0
A13: 0 | F13: 0 | G13: 0 | L13: 0 | Q13: 0 | R13: 0
A14: 0 | F14: 0 | G14: 0 | L14: 0 | Q14: 0 | R14: 0
A15: 0 | F15: 0 | G15: 0 | L15: 0 | Q15: 0 | R15: 0
A16: 0 | F16: 0 | G16: 0 | L16: 0 | Q16: 0 | R16: 0
B18: dinsdag 20-8-2019 | M18: =B18 -> dinsdag 20-8-2019
B19: Begintijd | C19: Eindtijd | D19: Begintijd | E19: Eindtijd | F19: tanken | G19: aan/afkoppelen | I19: Totaal uren | J19: =J20+J21 -> 0.01667824074 | M19: Begintijd | N19: Eindtijd | O19: Begintijd | P19: Eindtijd | Q19: wachten instructie | R19: wachten koppelchauffeur
A20: =IF(B20,"1",0) -> 1 | B20: 2015-08-19T13:11:57 | C20: 2015-08-19T13:35:58 | F20: =C20-B20 -> 0.01667824074 | G20: =E20-D20 -> 0 | I20: tanken | J20: =SUM(F20:F29) -> 0.01667824074 | L20: 0 | Q20: =N20-M20 -> 0 | R20: =R7 -> 0
A21: =IF(B21,"1",0) -> 0 | F21: =C21-B21 -> 0 | G21: 0 | I21: aan-afkoppelen | J21: =SUM(G20:G29) -> 0 | L21: =IF(M21,"1",0) -> 0 | Q21: 0 | R21: 0
A22: 0 | F22: 0 | G22: 0 | L22: 0 | Q22: 0 | R22: 0
A23: 0 | F23: 0 | G23: 0 | I23: Totaal uren | J23: =J24+J25 -> 0 | L23: 0 | Q23: 0 | R23: 0
A24: 0 | F24: 0 | G24: 0 | I24: wachten instructie | J24: =SUM(Q20:Q29) -> 0 | L24: 0 | Q24: 0 | R24: 0
A25: 0 | F25: 0 | G25: 0 | I25: wachten koppelchauffeur | J25: =SUM(R20:R29) -> 0 | L25: 0 | Q25: 0 | R25: 0
A26: 0 | F26: 0 | G26: 0 | L26: 0 | Q26: 0 | R26: 0
A27: 0 | F27: 0 | G27: 0 | L27: 0 | Q27: 0 | R27: 0
A28: 0 | F28: 0 | G28: 0 | L28: 0 | Q28: 0 | R28: 0
A29: 0 | F29: 0 | G29: 0 | L29: 0 | Q29: =Q16 -> 0 | R29: =R16 -> 0
B31: woensdag 21-8-2019 | M31: =B31 -> woensdag 21-8-2019
B32: Begintijd | C32: Eindtijd | D32: Begintijd | E32: Eindtijd | F32: tanken | G32: aan/afkoppelen | I32: Totaal uren | J32: =J33+J34 -> 0.02778935185 | M32: Begintijd | N32: Eindtijd | O32: Begintijd | P32: Eindtijd | Q32: wachten instructie | R32: wachten koppelchauffeur
A33: =IF(B33,"1",0) -> 0 | F33: =C33-B33 -> 0 | G33: =N33-M33 -> 0.02778935185 | I33: tanken | J33: =SUM(F33:F38) -> 0 | L33: 0 | M33: 2015-08-20T08:00:39 | N33: 2015-08-20T08:40:40 | Q33: 0 | R33: 0
A34: 0 | F34: 0 | G34: =E34-D34 -> 0 | I34: aan-afkoppelen | J34: =SUM(G33:G38) -> 0.02778935185 | L34: =IF(M34,"1",0) -> 0 | Q34: 0 | R34: 0
A35: 0 | F35: 0 | G35: 0 | L35: 0 | Q35: 0 | R35: 0
A36: 0 | F36: 0 | G36: 0 | I36: Totaal uren | J36: =J37+J38 -> 0 | L36: 0 | Q36: 0 | R36: 0
A37: 0 | F37: 0 | G37: 0 | I37: wachten instructie | J37: =SUM(Q33:Q42) -> 0 | L37: 0 | Q37: 0 | R37: 0
A38: 0 | F38: 0 | G38: 0 | I38: wachten koppelchauffeur | J38: =SUM(R33:R42) -> 0 | L38: 0 | Q38: 0 | R38: 0
A39: 0 | F39: 0 | G39: 0 | L39: 0 | Q39: 0 | R39: 0
A40: 0 | F40: 0 | G40: 0 | L40: 0 | Q40: 0 | R40: 0
A41: 0 | F41: 0 | G41: 0 | L41: 0 | Q41: 0 | R41: 0
A42: 0 | F42: 0 | G42: 0 | L42: 0 | Q42: 0 | R42: 0
B44: donderdag 22-8-2019 | M44: =B44 -> donderdag 22-8-2019
B45: Begintijd | C45: Eindtijd | D45: Begintijd | E45: Eindtijd | F45: tanken | G45: aan/afkoppelen | I45: Totaal uren | J45: =J46+J47 -> 0 | M45: Begintijd | N45: Eindtijd | O45: Begintijd | P45: Eindtijd | Q45: wachten instructie | R45: wachten koppelchauffeur
A46: =IF(B46,"1",0) -> 0 | F46: =C46-B46 -> 0 | G46: =N46-M46 -> 0 | I46: tanken | J46: =SUM(F46:F55) -> 0 | L46: 0 | Q46: =N46-M46 -> 0 | R46: =P46-O46 -> 0
A47: =IF(B47,"1",0) -> 0 | F47: =C47-B47 -> 0 | G47: =E47-D47 -> 0 | I47: aan-afkoppelen | J47: =SUM(G46:G55) -> 0 | L47: =IF(M47,"1",0) -> 0 | Q47: 0 | R47: =P47-O47 -> 0
A48: 0 | F48: 0 | G48: 0 | L48: 0 | Q48: 0 | R48: 0
A49: 0 | F49: 0 | G49: 0 | I49: Totaal uren | J49: =J50+J51 -> 0 | L49: 0 | Q49: 0 | R49: 0
A50: 0 | F50: 0 | G50: 0 | I50: wachten instructie | J50: =SUM(Q46:Q55) -> 0 | L50: 0 | Q50: 0 | R50: 0
A51: 0 | F51: 0 | G51: 0 | I51: wachten koppelchauffeur | J51: =SUM(R46:R55) -> 0 | L51: 0 | Q51: 0 | R51: 0
A52: 0 | F52: 0 | G52: 0 | L52: 0 | Q52: 0 | R52: 0
A53: 0 | F53: 0 | G53: 0 | L53: 0 | Q53: 0 | R53: 0
A54: 0 | F54: 0 | G54: 0 | L54: 0 | Q54: 0 | R54: 0
A55: 0 | F55: 0 | G55: 0 | L55: 0 | Q55: 0 | R55: 0
B57: vrijdag 23-8-2019 | M57: =B57 -> vrijdag 23-8-2019
B58: Begintijd | C58: Eindtijd | D58: Begintijd | E58: Eindtijd | F58: tanken | G58: aan/afkoppelen | I58: Totaal uren | J58: =J59+J60 -> 0 | M58: Begintijd | N58: Eindtijd | O58: Begintijd | P58: Eindtijd | Q58: wachten instructie | R58: wachten koppelchauffeur
A59: =IF(B59,"1",0) -> 0 | F59: =C59-B59 -> 0 | G59: =E59-D59 -> 0 | I59: tanken | J59: =SUM(F59:F64) -> 0 | L59: =IF(M59,"1",0) -> 0 | Q59: =N59-M59 -> 0 | R59: =P59-O59 -> 0
A60: =IF(B60,"1",0) -> 0 | F60: =C60-B60 -> 0 | G60: =E60-D60 -> 0 | I60: aan-afkoppelen | J60: =SUM(G59:G64) -> 0 | L60: =IF(M60,"1",0) -> 0 | Q60: =N60-M60 -> 0 | R60: =P60-O60 -> 0
A61: 0 | F61: 0 | G61: 0 | L61: 0 | Q61: 0 | R61: 0
A62: 0 | F62: 0 | G62: 0 | I62: Totaal uren | J62: =J63+J64 -> 0 | L62: 0 | Q62: 0 | R62: 0
A63: 0 | F63: 0 | G63: 0 | I63: wachten instructie | J63: =SUM(Q59:Q68) -> 0 | L63: 0 | Q63: 0 | R63: 0
A64: 0 | F64: 0 | G64: 0 | I64: wachten koppelchauffeur | J64: =SUM(R59:R68) -> 0 | L64: 0 | Q64: 0 | R64: 0
A65: 0 | F65: 0 | G65: 0 | L65: 0 | Q65: 0 | R65: 0
A66: 0 | F66: 0 | G66: 0 | L66: 0 | Q66: 0 | R66: 0
A67: 0 | F67: 0 | G67: 0 | L67: 0 | Q67: 0 | R67: 0
A68: 0 | F68: 0 | G68: 0 | L68: 0 | Q68: 0 | R68: 0
B70: zaterdag 24-8-2019 | M70: =B70 -> zaterdag 24-8-2019
B71: Begintijd | C71: Eindtijd | D71: Begintijd | E71: Eindtijd | F71: tanken | G71: aan/afkoppelen | I71: Totaal uren | J71: =J72+J73 -> 0.03060185186 | M71: Begintijd | N71: Eindtijd | O71: Begintijd | P71: Eindtijd | Q71: wachten instructie | R71: wachten koppelchauffeur
A72: =IF(B72,"1",0) -> 1 | B72: 2015-08-23T05:36:38 | C72: 2015-08-23T06:01:40 | D72: 2015-08-23T06:04:50 | E72: 2015-08-23T06:23:52 | F72: =C72-B72 -> 0.01738425926 | G72: =E72-D72 -> 0.0132175926 | I72: tanken | J72: =SUM(F72:F81) -> 0.01738425926 | L72: =IF(M72,"1",0) -> 0 | Q72: =N72-M72 -> 0 | R72: =P72-O72 -> 0
A73: =IF(B73,"1",0) -> 0 | F73: =C73-B73 -> 0 | G73: =E73-D73 -> 0 | I73: aan-afkoppelen | J73: =SUM(G72:G81) -> 0.0132175926 | L73: =IF(M73,"1",0) -> 0 | Q73: =N73-M73 -> 0 | R73: =P73-O73 -> 0
A74: 0 | F74: 0 | G74: 0 | L74: 0 | Q74: 0 | R74: 0
A75: 0 | F75: 0 | G75: 0 | I75: Totaal uren | J75: =J76+J77 -> 0 | L75: 0 | Q75: 0 | R75: 0
A76: 0 | F76: 0 | G76: 0 | I76: wachten instructie | J76: =SUM(Q72:Q81) -> 0 | L76: 0 | Q76: 0 | R76: 0
A77: 0 | F77: 0 | G77: 0 | I77: wachten koppelchauffeur | J77: =SUM(R72:R81) -> 0 | L77: 0 | Q77: 0 | R77: 0
A78: 0 | F78: 0 | G78: 0 | L78: 0 | Q78: 0 | R78: 0
A79: 0 | F79: 0 | G79: 0 | L79: 0 | Q79: 0 | R79: 0
A80: 0 | F80: 0 | G80: 0 | L80: 0 | Q80: 0 | R80: 0
A81: 0 | F81: 0 | G81: 0 | L81: 0 | Q81: 0 | R81: 0
B83: zondag 25-8-2019 | M83: =B83 -> zondag 25-8-2019
B84: Begintijd | C84: Eindtijd | D84: Begintijd | E84: Eindtijd | F84: tanken | G84: aan/afkoppelen | I84: Totaal uren | J84: =J85+J86 -> 0 | M84: Begintijd | N84: Eindtijd | O84: Begintijd | P84: Eindtijd | Q84: wachten instructie | R84: wachten koppelchauffeur
A85: =IF(B85,"1",0) -> 0 | F85: =C85-B85 -> 0 | G85: =E85-D85 -> 0 | I85: tanken | J85: =SUM(F85:F90) -> 0 | L85: =IF(M85,"1",0) -> 0 | Q85: =N85-M85 -> 0 | R85: =P85-O85 -> 0
A86: 0 | F86: =C86-B86 -> 0 | G86: =E86-D86 -> 0 | I86: aan-afkoppelen | J86: =SUM(G85:G90) -> 0 | L86: =IF(M86,"1",0) -> 0 | Q86: 0 | R86: 0
A87: 0 | F87: 0 | G87: 0 | L87: 0 | Q87: 0 | R87: 0
A88: 0 | F88: 0 | G88: 0 | I88: Totaal uren | J88: =J89+J90 -> 0 | L88: 0 | Q88: 0 | R88: 0
A89: 0 | F89: 0 | G89: 0 | I89: wachten instructie | J89: =SUM(Q85:Q94) -> 0 | L89: 0 | Q89: 0 | R89: 0
A90: 0 | F90: 0 | G90: 0 | I90: wachten koppelchauffeur | J90: =SUM(R85:R94) -> 0 | L90: 0 | Q90: 0 | R90: 0
A91: 0 | F91: 0 | G91: 0 | L91: 0 | Q91: 0 | R91: 0
A92: 0 | F92: 0 | G92: 0 | L92: 0 | Q92: 0 | R92: 0
A93: 0 | F93: 0 | G93: 0 | L93: 0 | Q93: 0 | R93: 0
A94: 0 | F94: 0 | G94: 0 | L94: 0 | Q94: 0 | R94: 0
I96: tanken | J96: =J85+J72+J59+J46+J33+J20+J7 -> 0.0340625
I98: aan-afkoppelen | J98: =J86+J73+J60+J47+J34+J21+J8 -> 0.04100694445
I100: Totaal uren | J100: =J98+J96 -> 0.07506944445
I103: wachten instructie | J103: =J89+J76+J63+J50+J37+J24+J11 -> 0
I105: wachten koppelchauffeur | J105: =J90+J77+J64+J51+J38+J25+J12 -> 0
I107: Totaal uren | J107: =J105+J103 -> 0
B110: Einde dag-taken week 34

Sheet Dag-taken week (33) (hidden)
B1: Dag-taken week 33 | M1: =B1 -> Dag-taken week 33
B2: tanken | D2: aan/afkoppelen | F2: Totaal | G2: =Q2 -> Tijden | M2: wachten instructie | O2: wachten koppelchauffeur | Q2: Tijden
B5: maandag 12-8-2019 | M5: =B5 -> maandag 12-8-2019
B6: Begintijd | C6: Eindtijd | D6: Begintijd | E6: Eindtijd | F6: tanken | G6: aan/afkoppelen | I6: Totaal uren | J6: =J7+J8 -> 0.02164351852 | M6: Begintijd | N6: Eindtijd | O6: Begintijd | P6: Eindtijd | Q6: wachten instructie | R6: wachten koppelchauffeur
A7: 1 | B7: 2015-08-11T11:56:10 | C7: 2015-08-11T12:22:28 | D7: 2015-08-11T12:35:48 | E7: 2015-08-11T12:40:40 | F7: =C7-B7 -> 0.01826388889 | G7: =E7-D7 -> 0.003379629634 | I7: tanken | J7: =SUM(F7:F12) -> 0.01826388889 | L7: =IF(M7,"1",0) -> 0 | Q7: =N7-M7 -> 0 | R7: =P7-O7 -> 0
A8: =IF(B8,"1",0) -> 0 | F8: =C8-B8 -> 0 | G8: =E8-D8 -> 0 | I8: aan-afkoppelen | J8: =SUM(G7:G12) -> 0.003379629634 | L8: 0 | Q8: =N8-M8 -> 0 | R8: =P8-O8 -> 0
A9: 0 | F9: 0 | G9: 0 | L9: 0 | Q9: 0 | R9: 0
A10: 0 | F10: 0 | G10: 0 | I10: Totaal uren | J10: =J11+J12 -> 0 | L10: 0 | Q10: 0 | R10: 0
A11: 0 | F11: 0 | G11: 0 | I11: wachten instructie | J11: =SUM(Q7:Q16) -> 0 | L11: 0 | Q11: 0 | R11: 0
A12: 0 | F12: 0 | G12: 0 | I12: wachten koppelchauffeur | J12: =SUM(R7:R16) -> 0 | L12: 0 | Q12: 0 | R12: 0
A13: 0 | F13: 0 | G13: 0 | L13: 0 | Q13: 0 | R13: 0
A14: 0 | F14: 0 | G14: 0 | L14: 0 | Q14: 0 | R14: 0
A15: 0 | F15: 0 | G15: 0 | L15: 0 | Q15: 0 | R15: 0
A16: 0 | F16: 0 | G16: 0 | L16: 0 | Q16: 0 | R16: 0
B18: dinsdag 13-8-2019 | M18: =B18 -> dinsdag 13-8-2019
B19: Begintijd | C19: Eindtijd | D19: Begintijd | E19: Eindtijd | F19: tanken | G19: aan/afkoppelen | I19: Totaal uren | J19: =J20+J21 -> 0.02438657408 | M19: Begintijd | N19: Eindtijd | O19: Begintijd | P19: Eindtijd | Q19: wachten instructie | R19: wachten koppelchauffeur
A20: =IF(B20,"1",0) -> 1 | B20: 2015-08-12T07:39:22 | C20: 2015-08-12T07:53:08 | D20: 2015-08-12T07:55:27 | E20: 2015-08-12T08:03:48 | F20: =C20-B20 -> 0.009560185186 | G20: =E20-D20 -> 0.005798611113 | I20: tanken | J20: =SUM(F20:F29) -> 0.01858796296 | L20: 0 | Q20: =N20-M20 -> 0 | R20: =R7 -> 0
A21: =IF(B21,"1",0) -> 1 | B21: 2015-08-12T08:17:02 | C21: 2015-08-12T08:30:02 | F21: =C21-B21 -> 0.009027777778 | G21: 0 | I21: aan-afkoppelen | J21: =SUM(G20:G29) -> 0.005798611113 | L21: =IF(M21,"1",0) -> 0 | Q21: 0 | R21: 0
A22: 0 | F22: 0 | G22: 0 | L22: 0 | Q22: 0 | R22: 0
A23: 0 | F23: 0 | G23: 0 | I23: Totaal uren | J23: =J24+J25 -> 0 | L23: 0 | Q23: 0 | R23: 0
A24: 0 | F24: 0 | G24: 0 | I24: wachten instructie | J24: =SUM(Q20:Q29) -> 0 | L24: 0 | Q24: 0 | R24: 0
A25: 0 | F25: 0 | G25: 0 | I25: wachten koppelchauffeur | J25: =SUM(R20:R29) -> 0 | L25: 0 | Q25: 0 | R25: 0
A26: 0 | F26: 0 | G26: 0 | L26: 0 | Q26: 0 | R26: 0
A27: 0 | F27: 0 | G27: 0 | L27: 0 | Q27: 0 | R27: 0
A28: 0 | F28: 0 | G28: 0 | J28: =J19+J23 -> 0.02438657408 | L28: 0 | Q28: 0 | R28: 0
A29: 0 | F29: 0 | G29: 0 | L29: 0 | Q29: =Q16 -> 0 | R29: =R16 -> 0
B31: woensdag 14-8-2019 | M31: =B31 -> woensdag 14-8-2019
B32: Begintijd | C32: Eindtijd | D32: Begintijd | E32: Eindtijd | F32: tanken | G32: aan/afkoppelen | I32: Totaal uren | J32: =J33+J34 -> 0 | M32: Begintijd | N32: Eindtijd | O32: Begintijd | P32: Eindtijd | Q32: wachten instructie | R32: wachten koppelchauffeur
A33: =IF(B33,"1",0) -> 0 | F33: =C33-B33 -> 0 | G33: =E33-D33 -> 0 | I33: tanken | J33: =SUM(F33:F38) -> 0 | L33: 0 | Q33: 0 | R33: 0
A34: 0 | F34: 0 | G34: =E34-D34 -> 0 | I34: aan-afkoppelen | J34: =SUM(G33:G38) -> 0 | L34: =IF(M34,"1",0) -> 0 | Q34: 0 | R34: 0
A35: 0 | F35: 0 | G35: 0 | L35: 0 | Q35: 0 | R35: 0
A36: 0 | F36: 0 | G36: 0 | I36: Totaal uren | J36: =J37+J38 -> 0 | L36: 0 | Q36: 0 | R36: 0
A37: 0 | F37: 0 | G37: 0 | I37: wachten instructie | J37: =SUM(Q33:Q42) -> 0 | L37: 0 | Q37: 0 | R37: 0
A38: 0 | F38: 0 | G38: 0 | I38: wachten koppelchauffeur | J38: =SUM(R33:R42) -> 0 | L38: 0 | Q38: 0 | R38: 0
A39: 0 | F39: 0 | G39: 0 | L39: 0 | Q39: 0 | R39: 0
A40: 0 | F40: 0 | G40: 0 | L40: 0 | Q40: 0 | R40: 0
A41: 0 | F41: 0 | G41: 0 | L41: 0 | Q41: 0 | R41: 0
A42: 0 | F42: 0 | G42: 0 | L42: 0 | Q42: 0 | R42: 0
B44: donderdag 15-8-2019 | M44: =B44 -> donderdag 15-8-2019
B45: Begintijd | C45: Eindtijd | D45: Begintijd | E45: Eindtijd | F45: tanken | G45: aan/afkoppelen | I45: Totaal uren | J45: =J46+J47 -> 0 | M45: Begintijd | N45: Eindtijd | O45: Begintijd | P45: Eindtijd | Q45: wachten instructie | R45: wachten koppelchauffeur
A46: =IF(B46,"1",0) -> 0 | F46: =C46-B46 -> 0 | G46: =N46-M46 -> 0 | I46: tanken | J46: =SUM(F46:F55) -> 0 | L46: 0 | Q46: =N46-M46 -> 0 | R46: =P46-O46 -> 0
A47: =IF(B47,"1",0) -> 0 | F47: =C47-B47 -> 0 | G47: =E47-D47 -> 0 | I47: aan-afkoppelen | J47: =SUM(G46:G55) -> 0 | L47: =IF(M47,"1",0) -> 0 | Q47: 0 | R47: =P47-O47 -> 0
A48: 0 | F48: 0 | G48: 0 | L48: 0 | Q48: 0 | R48: 0
A49: 0 | F49: 0 | G49: 0 | I49: Totaal uren | J49: =J50+J51 -> 0 | L49: 0 | Q49: 0 | R49: 0
A50: 0 | F50: 0 | G50: 0 | I50: wachten instructie | J50: =SUM(Q46:Q55) -> 0 | L50: 0 | Q50: 0 | R50: 0
A51: 0 | F51: 0 | G51: 0 | I51: wachten koppelchauffeur | J51: =SUM(R46:R55) -> 0 | L51: 0 | Q51: 0 | R51: 0
A52: 0 | F52: 0 | G52: 0 | L52: 0 | Q52: 0 | R52: 0
A53: 0 | F53: 0 | G53: 0 | L53: 0 | Q53: 0 | R53: 0
A54: 0 | F54: 0 | G54: 0 | L54: 0 | Q54: 0 | R54: 0
A55: 0 | F55: 0 | G55: 0 | L55: 0 | Q55: 0 | R55: 0
B57: vrijdag 16-8-2019 | M57: =B57 -> vrijdag 16-8-2019
B58: Begintijd | C58: Eindtijd | D58: Begintijd | E58: Eindtijd | F58: tanken | G58: aan/afkoppelen | I58: Totaal uren | J58: =J59+J60 -> 0.006284722222 | M58: Begintijd | N58: Eindtijd | O58: Begintijd | P58: Eindtijd | Q58: wachten instructie | R58: wachten koppelchauffeur
A59: =IF(B59,"1",0) -> 1 | B59: 2015-08-15T10:26:35 | C59: 2015-08-15T10:35:38 | F59: =C59-B59 -> 0.006284722222 | G59: =E59-D59 -> 0 | I59: tanken | J59: =SUM(F59:F64) -> 0.006284722222 | L59: =IF(M59,"1",0) -> 0 | Q59: =N59-M59 -> 0 | R59: =P59-O59 -> 0
A60: =IF(B60,"1",0) -> 0 | F60: =C60-B60 -> 0 | G60: =E60-D60 -> 0 | I60: aan-afkoppelen | J60: =SUM(G59:G64) -> 0 | L60: =IF(M60,"1",0) -> 0 | Q60: =N60-M60 -> 0 | R60: =P60-O60 -> 0
A61: 0 | F61: 0 | G61: 0 | L61: 0 | Q61: 0 | R61: 0
A62: 0 | F62: 0 | G62: 0 | I62: Totaal uren | J62: =J63+J64 -> 0 | L62: 0 | Q62: 0 | R62: 0
A63: 0 | F63: 0 | G63: 0 | I63: wachten instructie | J63: =SUM(Q59:Q68) -> 0 | L63: 0 | Q63: 0 | R63: 0
A64: 0 | F64: 0 | G64: 0 | I64: wachten koppelchauffeur | J64: =SUM(R59:R68) -> 0 | L64: 0 | Q64: 0 | R64: 0
A65: 0 | F65: 0 | G65: 0 | L65: 0 | Q65: 0 | R65: 0
A66: 0 | F66: 0 | G66: 0 | L66: 0 | Q66: 0 | R66: 0
A67: 0 | F67: 0 | G67: 0 | L67: 0 | Q67: 0 | R67: 0
A68: 0 | F68: 0 | G68: 0 | L68: 0 | Q68: 0 | R68: 0
B70: zaterdag 17-8-2019 | M70: =B70 -> zaterdag 17-8-2019
B71: Begintijd | C71: Eindtijd | D71: Begintijd | E71: Eindtijd | F71: tanken | G71: aan/afkoppelen | I71: Totaal uren | J71: =J72+J73 -> 0 | M71: Begintijd | N71: Eindtijd | O71: Begintijd | P71: Eindtijd | Q71: wachten instructie | R71: wachten koppelchauffeur
A72: =IF(B72,"1",0) -> 0 | F72: =C72-B72 -> 0 | G72: =E72-D72 -> 0 | I72: tanken | J72: =SUM(F72:F81) -> 0 | L72: =IF(M72,"1",0) -> 0 | Q72: =N72-M72 -> 0 | R72: =P72-O72 -> 0
A73: =IF(B73,"1",0) -> 0 | F73: =C73-B73 -> 0 | G73: =E73-D73 -> 0 | I73: aan-afkoppelen | J73: =SUM(G72:G81) -> 0 | L73: =IF(M73,"1",0) -> 0 | Q73: =N73-M73 -> 0 | R73: =P73-O73 -> 0
A74: 0 | F74: 0 | G74: 0 | L74: 0 | Q74: 0 | R74: 0
A75: 0 | F75: 0 | G75: 0 | I75: Totaal uren | J75: =J76+J77 -> 0 | L75: 0 | Q75: 0 | R75: 0
A76: 0 | F76: 0 | G76: 0 | I76: wachten instructie | J76: =SUM(Q72:Q81) -> 0 | L76: 0 | Q76: 0 | R76: 0
A77: 0 | F77: 0 | G77: 0 | I77: wachten koppelchauffeur | J77: =SUM(R72:R81) -> 0 | L77: 0 | Q77: 0 | R77: 0
A78: 0 | F78: 0 | G78: 0 | L78: 0 | Q78: 0 | R78: 0
A79: 0 | F79: 0 | G79: 0 | L79: 0 | Q79: 0 | R79: 0
A80: 0 | F80: 0 | G80: 0 | L80: 0 | Q80: 0 | R80: 0
A81: 0 | F81: 0 | G81: 0 | L81: 0 | Q81: 0 | R81: 0
B83: zondag 18-8-2019 | M83: =B83 -> zondag 18-8-2019
B84: Begintijd | C84: Eindtijd | D84: Begintijd | E84: Eindtijd | F84: tanken | G84: aan/afkoppelen | I84: Totaal uren | J84: =J85+J86 -> 0 | M84: Begintijd | N84: Eindtijd | O84: Begintijd | P84: Eindtijd | Q84: wachten instructie | R84: wachten koppelchauffeur
A85: =IF(B85,"1",0) -> 0 | F85: =C85-B85 -> 0 | G85: =E85-D85 -> 0 | I85: tanken | J85: =SUM(F85:F90) -> 0 | L85: =IF(M85,"1",0) -> 0 | Q85: =N85-M85 -> 0 | R85: =P85-O85 -> 0
A86: 0 | F86: =C86-B86 -> 0 | G86: =E86-D86 -> 0 | I86: aan-afkoppelen | J86: =SUM(G85:G90) -> 0 | L86: =IF(M86,"1",0) -> 0 | Q86: 0 | R86: 0
A87: 0 | F87: 0 | G87: 0 | L87: 0 | Q87: 0 | R87: 0
A88: 0 | F88: 0 | G88: 0 | I88: Totaal uren | J88: =J89+J90 -> 0 | L88: 0 | Q88: 0 | R88: 0
A89: 0 | F89: 0 | G89: 0 | I89: wachten instructie | J89: =SUM(Q85:Q94) -> 0 | L89: 0 | Q89: 0 | R89: 0
A90: 0 | F90: 0 | G90: 0 | I90: wachten koppelchauffeur | J90: =SUM(R85:R94) -> 0 | L90: 0 | Q90: 0 | R90: 0
A91: 0 | F91: 0 | G91: 0 | L91: 0 | Q91: 0 | R91: 0
A92: 0 | F92: 0 | G92: 0 | L92: 0 | Q92: 0 | R92: 0
A93: 0 | F93: 0 | G93: 0 | L93: 0 | Q93: 0 | R93: 0
A94: 0 | F94: 0 | G94: 0 | L94: 0 | Q94: 0 | R94: 0
I96: tanken | J96: =J85+J72+J59+J46+J33+J20+J7 -> 0.04313657407
I98: aan-afkoppelen | J98: =J86+J73+J60+J47+J34+J21+J8 -> 0.009178240747
I100: Totaal uren | J100: =J98+J96 -> 0.05231481482
I103: wachten instructie | J103: =J89+J76+J63+J50+J37+J24+J11 -> 0
I105: wachten koppelchauffeur | J105: =J90+J77+J64+J51+J38+J25+J12 -> 0
I107: Totaal uren | J107: =J105+J103 -> 0
B110: Einde dag-taken week 33

Sheet Dag-taken week (32) (hidden)
B1: Dag-taken week 32 | M1: =B1 -> Dag-taken week 32
B2: tanken | D2: aan/afkoppelen | F2: Totaal | G2: =Q2 -> Tijden | M2: wachten instructie | O2: wachten koppelchauffeur | Q2: Tijden
B5: maandag 05-8-2019 | M5: =B5 -> maandag 05-8-2019
B6: Begintijd | C6: Eindtijd | D6: Begintijd | E6: Eindtijd | F6: tanken | G6: aan/afkoppelen | I6: Totaal uren | J6: =J7+J8 -> 0.0187037037 | M6: Begintijd | N6: Eindtijd | O6: Begintijd | P6: Eindtijd | Q6: wachten instructie | R6: wachten koppelchauffeur
A7: 1 | B7: 2015-08-04T04:32:44 | C7: 2015-08-04T04:52:06 | D7: 2015-08-04T04:13:07 | E7: 2015-08-04T04:20:41 | F7: =C7-B7 -> 0.01344907407 | G7: =E7-D7 -> 0.005254629628 | I7: tanken | J7: =SUM(F7:F12) -> 0.01344907407 | L7: =IF(M7,"1",0) -> 0 | Q7: =N7-M7 -> 0 | R7: =P7-O7 -> 0
A8: =IF(B8,"1",0) -> 0 | F8: 0 | G8: 0 | I8: aan-afkoppelen | J8: =SUM(G7:G12) -> 0.005254629628 | L8: 0 | Q8: =N8-M8 -> 0 | R8: =P8-O8 -> 0
A9: 0 | F9: 0 | G9: 0 | L9: 0 | Q9: 0 | R9: 0
A10: 0 | F10: 0 | G10: 0 | I10: Totaal uren | J10: =J11+J12 -> 0 | L10: 0 | Q10: 0 | R10: 0
A11: 0 | F11: 0 | G11: 0 | I11: wachten instructie | J11: =SUM(Q7:Q16) -> 0 | L11: 0 | Q11: 0 | R11: 0
A12: 0 | F12: 0 | G12: 0 | I12: wachten koppelchauffeur | J12: =SUM(R7:R16) -> 0 | L12: 0 | Q12: 0 | R12: 0
A13: 0 | F13: 0 | G13: 0 | L13: 0 | Q13: 0 | R13: 0
A14: 0 | F14: 0 | G14: 0 | L14: 0 | Q14: 0 | R14: 0
A15: 0 | F15: 0 | G15: 0 | L15: 0 | Q15: 0 | R15: 0
A16: 0 | F16: 0 | G16: 0 | L16: 0 | Q16: 0 | R16: 0
B18: dinsdag 06-8-2019 | M18: =B18 -> dinsdag 06-8-2019
B19: Begintijd | C19: Eindtijd | D19: Begintijd | E19: Eindtijd | F19: tanken | G19: aan/afkoppelen | I19: Totaal uren | J19: =J20+J21 -> 0.005740740744 | M19: Begintijd | N19: Eindtijd | O19: Begintijd | P19: Eindtijd | Q19: wachten instructie | R19: wachten koppelchauffeur
A20: =IF(B20,"1",0) -> 0 | D20: 2015-08-05T15:13:37 | E20: 2015-08-05T15:21:53 | F20: =C20-B20 -> 0 | G20: =E20-D20 -> 0.005740740744 | I20: tanken | J20: =SUM(F20:F29) -> 0 | L20: 0 | Q20: =N20-M20 -> 0 | R20: =R7 -> 0
A21: =IF(B21,"1",0) -> 0 | F21: =C21-B21 -> 0 | G21: 0 | I21: aan-afkoppelen | J21: =SUM(G20:G29) -> 0.005740740744 | L21: =IF(M21,"1",0) -> 0 | Q21: 0 | R21: 0
A22: 0 | F22: 0 | G22: 0 | L22: 0 | Q22: 0 | R22: 0
A23: 0 | F23: 0 | G23: 0 | I23: Totaal uren | J23: =J24+J25 -> 0 | L23: 0 | Q23: 0 | R23: 0
A24: 0 | F24: 0 | G24: 0 | I24: wachten instructie | J24: =SUM(Q20:Q29) -> 0 | L24: 0 | Q24: 0 | R24: 0
A25: 0 | F25: 0 | G25: 0 | I25: wachten koppelchauffeur | J25: =SUM(R20:R29) -> 0 | L25: 0 | Q25: 0 | R25: 0
A26: 0 | F26: 0 | G26: 0 | L26: 0 | Q26: 0 | R26: 0
A27: 0 | F27: 0 | G27: 0 | L27: 0 | Q27: 0 | R27: 0
A28: 0 | F28: 0 | G28: 0 | J28: =J19+J23 -> 0.005740740744 | L28: 0 | Q28: 0 | R28: 0
A29: 0 | F29: 0 | G29: 0 | L29: 0 | Q29: =Q16 -> 0 | R29: =R16 -> 0
B31: woensdag 07-8-2019 | M31: =B31 -> woensdag 07-8-2019
B32: Begintijd | C32: Eindtijd | D32: Begintijd | E32: Eindtijd | F32: tanken | G32: aan/afkoppelen | I32: Totaal uren | J32: =J33+J34 -> 0.01472222222 | M32: Begintijd | N32: Eindtijd | O32: Begintijd | P32: Eindtijd | Q32: wachten instructie | R32: wachten koppelchauffeur
A33: =IF(B33,"1",0) -> 1 | B33: 2015-08-06T04:03:04 | C33: 2015-08-06T04:16:25 | D33: 2015-08-06T04:20:48 | E33: 2015-08-06T04:28:39 | F33: =C33-B33 -> 0.009270833332 | G33: =E33-D33 -> 0.00545138889 | I33: tanken | J33: =SUM(F33:F38) -> 0.009270833332 | L33: 0 | Q33: 0 | R33: 0
A34: 0 | F34: 0 | G34: =E34-D34 -> 0 | I34: aan-afkoppelen | J34: =SUM(G33:G38) -> 0.00545138889 | L34: =IF(M34,"1",0) -> 0 | Q34: 0 | R34: 0
A35: 0 | F35: 0 | G35: 0 | L35: 0 | Q35: 0 | R35: 0
A36: 0 | F36: 0 | G36: 0 | I36: Totaal uren | J36: =J37+J38 -> 0 | L36: 0 | Q36: 0 | R36: 0
A37: 0 | F37: 0 | G37: 0 | I37: wachten instructie | J37: =SUM(Q33:Q42) -> 0 | L37: 0 | Q37: 0 | R37: 0
A38: 0 | F38: 0 | G38: 0 | I38: wachten koppelchauffeur | J38: =SUM(R33:R42) -> 0 | L38: 0 | Q38: 0 | R38: 0
A39: 0 | F39: 0 | G39: 0 | L39: 0 | Q39: 0 | R39: 0
A40: 0 | F40: 0 | G40: 0 | L40: 0 | Q40: 0 | R40: 0
A41: 0 | F41: 0 | G41: 0 | L41: 0 | Q41: 0 | R41: 0
A42: 0 | F42: 0 | G42: 0 | L42: 0 | Q42: 0 | R42: 0
B44: donderdag 08-8-2019 | M44: =B44 -> donderdag 08-8-2019
B45: Begintijd | C45: Eindtijd | D45: Begintijd | E45: Eindtijd | F45: tanken | G45: aan/afkoppelen | I45: Totaal uren | J45: =J46+J47 -> 0 | M45: Begintijd | N45: Eindtijd | O45: Begintijd | P45: Eindtijd | Q45: wachten instructie | R45: wachten koppelchauffeur
A46: =IF(B46,"1",0) -> 0 | F46: =C46-B46 -> 0 | G46: =N46-M46 -> 0 | I46: tanken | J46: =SUM(F46:F55) -> 0 | L46: 0 | Q46: =N46-M46 -> 0 | R46: =P46-O46 -> 0
A47: =IF(B47,"1",0) -> 0 | F47: =C47-B47 -> 0 | G47: =E47-D47 -> 0 | I47: aan-afkoppelen | J47: =SUM(G46:G55) -> 0 | L47: =IF(M47,"1",0) -> 0 | Q47: 0 | R47: =P47-O47 -> 0
A48: 0 | F48: 0 | G48: 0 | L48: 0 | Q48: 0 | R48: 0
A49: 0 | F49: 0 | G49: 0 | I49: Totaal uren | J49: =J50+J51 -> 0 | L49: 0 | Q49: 0 | R49: 0
A50: 0 | F50: 0 | G50: 0 | I50: wachten instructie | J50: =SUM(Q46:Q55) -> 0 | L50: 0 | Q50: 0 | R50: 0
A51: 0 | F51: 0 | G51: 0 | I51: wachten koppelchauffeur | J51: =SUM(R46:R55) -> 0 | L51: 0 | Q51: 0 | R51: 0
A52: 0 | F52: 0 | G52: 0 | L52: 0 | Q52: 0 | R52: 0
A53: 0 | F53: 0 | G53: 0 | L53: 0 | Q53: 0 | R53: 0
A54: 0 | F54: 0 | G54: 0 | L54: 0 | Q54: 0 | R54: 0
A55: 0 | F55: 0 | G55: 0 | L55: 0 | Q55: 0 | R55: 0
B57: vrijdag 09-8-2019 | M57: =B57 -> vrijdag 09-8-2019
B58: Begintijd | C58: Eindtijd | D58: Begintijd | E58: Eindtijd | F58: tanken | G58: aan/afkoppelen | I58: Totaal uren | J58: =J59+J60 -> 0 | M58: Begintijd | N58: Eindtijd | O58: Begintijd | P58: Eindtijd | Q58: wachten instructie | R58: wachten koppelchauffeur
A59: =IF(B59,"1",0) -> 0 | F59: =C59-B59 -> 0 | G59: =E59-D59 -> 0 | I59: tanken | J59: =SUM(F59:F64) -> 0 | L59: =IF(M59,"1",0) -> 0 | Q59: =N59-M59 -> 0 | R59: =P59-O59 -> 0
A60: =IF(B60,"1",0) -> 0 | F60: =C60-B60 -> 0 | G60: =E60-D60 -> 0 | I60: aan-afkoppelen | J60: =SUM(G59:G64) -> 0 | L60: =IF(M60,"1",0) -> 0 | Q60: =N60-M60 -> 0 | R60: =P60-O60 -> 0
A61: 0 | F61: 0 | G61: 0 | L61: 0 | Q61: 0 | R61: 0
A62: 0 | F62: 0 | G62: 0 | I62: Totaal uren | J62: =J63+J64 -> 0 | L62: 0 | Q62: 0 | R62: 0
A63: 0 | F63: 0 | G63: 0 | I63: wachten instructie | J63: =SUM(Q59:Q68) -> 0 | L63: 0 | Q63: 0 | R63: 0
A64: 0 | F64: 0 | G64: 0 | I64: wachten koppelchauffeur | J64: =SUM(R59:R68) -> 0 | L64: 0 | Q64: 0 | R64: 0
A65: 0 | F65: 0 | G65: 0 | L65: 0 | Q65: 0 | R65: 0
A66: 0 | F66: 0 | G66: 0 | L66: 0 | Q66: 0 | R66: 0
A67: 0 | F67: 0 | G67: 0 | L67: 0 | Q67: 0 | R67: 0
A68: 0 | F68: 0 | G68: 0 | L68: 0 | Q68: 0 | R68: 0
B70: zaterdag 10-8-2019 | M70: =B70 -> zaterdag 10-8-2019
B71: Begintijd | C71: Eindtijd | D71: Begintijd | E71: Eindtijd | F71: tanken | G71: aan/afkoppelen | I71: Totaal uren | J71: =J72+J73 -> 0.01081018518 | M71: Begintijd | N71: Eindtijd | O71: Begintijd | P71: Eindtijd | Q71: wachten instructie | R71: wachten koppelchauffeur
A72: =IF(B72,"1",0) -> 1 | B72: 2015-08-09T07:05:35 | C72: 2015-08-09T07:21:09 | F72: =C72-B72 -> 0.01081018518 | G72: =E72-D72 -> 0 | I72: tanken | J72: =SUM(F72:F81) -> 0.01081018518 | L72: =IF(M72,"1",0) -> 0 | Q72: =N72-M72 -> 0 | R72: =P72-O72 -> 0
A73: =IF(B73,"1",0) -> 0 | F73: =C73-B73 -> 0 | G73: =E73-D73 -> 0 | I73: aan-afkoppelen | J73: =SUM(G72:G81) -> 0 | L73: =IF(M73,"1",0) -> 0 | Q73: =N73-M73 -> 0 | R73: =P73-O73 -> 0
A74: 0 | F74: 0 | G74: 0 | L74: 0 | Q74: 0 | R74: 0
A75: 0 | F75: 0 | G75: 0 | I75: Totaal uren | J75: =J76+J77 -> 0 | L75: 0 | Q75: 0 | R75: 0
A76: 0 | F76: 0 | G76: 0 | I76: wachten instructie | J76: =SUM(Q72:Q81) -> 0 | L76: 0 | Q76: 0 | R76: 0
A77: 0 | F77: 0 | G77: 0 | I77: wachten koppelchauffeur | J77: =SUM(R72:R81) -> 0 | L77: 0 | Q77: 0 | R77: 0
A78: 0 | F78: 0 | G78: 0 | L78: 0 | Q78: 0 | R78: 0
A79: 0 | F79: 0 | G79: 0 | L79: 0 | Q79: 0 | R79: 0
A80: 0 | F80: 0 | G80: 0 | L80: 0 | Q80: 0 | R80: 0
A81: 0 | F81: 0 | G81: 0 | L81: 0 | Q81: 0 | R81: 0
B83: zondag 11-8-2019 | M83: =B83 -> zondag 11-8-2019
B84: Begintijd | C84: Eindtijd | D84: Begintijd | E84: Eindtijd | F84: tanken | G84: aan/afkoppelen | I84: Totaal uren | J84: =J85+J86 -> 0 | M84: Begintijd | N84: Eindtijd | O84: Begintijd | P84: Eindtijd | Q84: wachten instructie | R84: wachten koppelchauffeur
A85: =IF(B85,"1",0) -> 0 | F85: =C85-B85 -> 0 | G85: =E85-D85 -> 0 | I85: tanken | J85: =SUM(F85:F90) -> 0 | L85: =IF(M85,"1",0) -> 0 | Q85: =N85-M85 -> 0 | R85: =P85-O85 -> 0
A86: =IF(B86,"1",0) -> 0 | F86: =C86-B86 -> 0 | G86: =E86-D86 -> 0 | I86: aan-afkoppelen | J86: =SUM(G85:G90) -> 0 | L86: =IF(M86,"1",0) -> 0 | Q86: 0 | R86: 0
A87: 0 | F87: 0 | G87: 0 | L87: 0 | Q87: 0 | R87: 0
A88: 0 | F88: 0 | G88: 0 | I88: Totaal uren | J88: =J89+J90 -> 0 | L88: 0 | Q88: 0 | R88: 0
A89: 0 | F89: 0 | G89: 0 | I89: wachten instructie | J89: =SUM(Q85:Q94) -> 0 | L89: 0 | Q89: 0 | R89: 0
A90: 0 | F90: 0 | G90: 0 | I90: wachten koppelchauffeur | J90: =SUM(R85:R94) -> 0 | L90: 0 | Q90: 0 | R90: 0
A91: 0 | F91: 0 | G91: 0 | L91: 0 | Q91: 0 | R91: 0
A92: 0 | F92: 0 | G92: 0 | L92: 0 | Q92: 0 | R92: 0
A93: 0 | F93: 0 | G93: 0 | L93: 0 | Q93: 0 | R93: 0
A94: 0 | F94: 0 | G94: 0 | L94: 0 | Q94: 0 | R94: 0
I96: tanken | J96: =J85+J72+J59+J46+J33+J20+J7 -> 0.03353009259
I98: aan-afkoppelen | J98: =J86+J73+J60+J47+J34+J21+J8 -> 0.01644675926
I100: Totaal uren | J100: =J98+J96 -> 0.04997685185
I103: wachten instructie | J103: =J89+J76+J63+J50+J37+J24+J11 -> 0
I105: wachten koppelchauffeur | J105: =J90+J77+J64+J51+J38+J25+J12 -> 0
I107: Totaal uren | J107: =J105+J103 -> 0
B110: Einde dag-taken week 32

Sheet Dag-taken week (31) (hidden)
B1: Dag-taken week 31 | M1: =B1 -> Dag-taken week 31
B2: tanken | D2: aan/afkoppelen | F2: Totaal | G2: =Q2 -> Tijden | M2: wachten instructie | O2: wachten koppelchauffeur | Q2: Tijden
B5: maandag 29-7-2019 | M5: =B5 -> maandag 29-7-2019
B6: Begintijd | C6: Eindtijd | D6: Begintijd | E6: Eindtijd | F6: tanken | G6: aan/afkoppelen | I6: Totaal uren | J6: =J7+J8 -> 0.02039351853 | M6: Begintijd | N6: Eindtijd | O6: Begintijd | P6: Eindtijd | Q6: wachten instructie | R6: wachten koppelchauffeur
A7: 1 | B7: 2015-07-28T05:01:40 | C7: 2015-07-28T05:12:28 | D7: 2015-07-28T04:41:36 | E7: 2015-07-28T05:00:10 | F7: =C7-B7 -> 0.007500000007 | G7: =E7-D7 -> 0.01289351852 | I7: tanken | J7: =SUM(F7:F12) -> 0.007500000007 | L7: =IF(M7,"1",0) -> 0 | Q7: =N7-M7 -> 0 | R7: =P7-O7 -> 0
A8: =IF(B8,"1",0) -> 0 | F8: 0 | G8: 0 | I8: aan-afkoppelen | J8: =SUM(G7:G12) -> 0.01289351852 | L8: 0 | Q8: =N8-M8 -> 0 | R8: =P8-O8 -> 0
A9: 0 | F9: 0 | G9: 0 | L9: 0 | Q9: 0 | R9: 0
A10: 0 | F10: 0 | G10: 0 | I10: Totaal uren | J10: =J11+J12 -> 0 | L10: 0 | Q10: 0 | R10: 0
A11: 0 | F11: 0 | G11: 0 | I11: wachten instructie | J11: =SUM(Q7:Q16) -> 0 | L11: 0 | Q11: 0 | R11: 0
A12: 0 | F12: 0 | G12: 0 | I12: wachten koppelchauffeur | J12: =SUM(R7:R16) -> 0 | L12: 0 | Q12: 0 | R12: 0
A13: 0 | F13: 0 | G13: 0 | L13: 0 | Q13: 0 | R13: 0
A14: 0 | F14: 0 | G14: 0 | L14: 0 | Q14: 0 | R14: 0
A15: 0 | F15: 0 | G15: 0 | L15: 0 | Q15: 0 | R15: 0
A16: 0 | F16: 0 | G16: 0 | L16: 0 | Q16: 0 | R16: 0
B18: dinsdag 30-7-2019 | M18: =B18 -> dinsdag 30-7-2019
B19: Begintijd | C19: Eindtijd | D19: Begintijd | E19: Eindtijd | F19: tanken | G19: aan/afkoppelen | I19: Totaal uren | J19: =J20+J21 -> 0.0202199074 | M19: Begintijd | N19: Eindtijd | O19: Begintijd | P19: Eindtijd | Q19: wachten instructie | R19: wachten koppelchauffeur
A20: =IF(B20,"1",0) -> 0 | D20: 2015-07-29T16:35:12 | E20: 2015-07-29T16:47:42 | F20: =C20-B20 -> 0 | G20: =E20-D20 -> 0.008680555555 | I20: tanken | J20: =SUM(F20:F29) -> 0 | L20: =IF(M20,"1",0) -> 0 | Q20: =N20-M20 -> 0 | R20: =R7 -> 0
A21: =IF(B21,"1",0) -> 0 | D21: 2015-07-29T16:50:26 | E21: 2015-07-29T17:07:03 | F21: =C21-B21 -> 0 | G21: =E21-D21 -> 0.01153935185 | I21: aan-afkoppelen | J21: =SUM(G20:G29) -> 0.0202199074 | L21: =IF(M21,"1",0) -> 0 | Q21: 0 | R21: 0
A22: 0 | F22: 0 | G22: 0 | L22: 0 | Q22: 0 | R22: 0
A23: 0 | F23: 0 | G23: 0 | I23: Totaal uren | J23: =J24+J25 -> 0 | L23: 0 | Q23: 0 | R23: 0
A24: 0 | F24: 0 | G24: 0 | I24: wachten instructie | J24: =SUM(Q20:Q29) -> 0 | L24: 0 | Q24: 0 | R24: 0
A25: 0 | F25: 0 | G25: 0 | I25: wachten koppelchauffeur | J25: =SUM(R20:R29) -> 0 | L25: 0 | Q25: 0 | R25: 0
A26: 0 | F26: 0 | G26: 0 | L26: 0 | Q26: 0 | R26: 0
A27: 0 | F27: 0 | G27: 0 | L27: 0 | Q27: 0 | R27: 0
A28: 0 | F28: 0 | G28: 0 | J28: =J19+J23 -> 0.0202199074 | L28: 0 | Q28: 0 | R28: 0
A29: 0 | F29: 0 | G29: 0 | L29: 0 | Q29: =Q16 -> 0 | R29: =R16 -> 0
B31: woensdag 31-7-2019 | M31: =B31 -> woensdag 31-7-2019
B32: Begintijd | C32: Eindtijd | D32: Begintijd | E32: Eindtijd | F32: tanken | G32: aan/afkoppelen | I32: Totaal uren | J32: =J33+J34 -> 0.0424074074 | M32: Begintijd | N32: Eindtijd | O32: Begintijd | P32: Eindtijd | Q32: wachten instructie | R32: wachten koppelchauffeur
A33: =IF(#REF!,"1",0) ->  | D33: 2015-07-30T08:03:35 | E33: 2015-07-30T08:17:49 | F33: =N33-M33 -> 0.02048611111 | G33: =E33-D33 -> 0.009884259256 | I33: tanken | J33: =SUM(F33:F38) -> 0.02048611111 | L33: 1 | M33: 2015-07-30T08:17:55 | N33: 2015-07-30T08:47:25 | Q33: 0 | R33: =#REF!-#REF! -> 
A34: =IF(B34,"1",0) -> 0 | D34: 2015-07-30T08:47:36 | E34: 2015-07-30T09:04:56 | F34: =C34-B34 -> 0 | G34: =E34-D34 -> 0.01203703704 | I34: aan-afkoppelen | J34: =SUM(G33:G38) -> 0.02192129629 | L34: =IF(M34,"1",0) -> 0 | Q34: 0 | R34: 0
A35: 0 | F35: 0 | G35: 0 | L35: 0 | Q35: 0 | R35: 0
A36: 0 | F36: 0 | G36: 0 | I36: Totaal uren | J36: =J37+J38 ->  | L36: 0 | Q36: 0 | R36: 0
A37: 0 | F37: 0 | G37: 0 | I37: wachten instructie | J37: =SUM(Q33:Q42) -> 0 | L37: 0 | Q37: 0 | R37: 0
A38: 0 | F38: 0 | G38: 0 | I38: wachten koppelchauffeur | J38: =SUM(R33:R42) ->  | L38: 0 | Q38: 0 | R38: 0
A39: 0 | F39: 0 | G39: 0 | L39: 0 | Q39: 0 | R39: 0
A40: 0 | F40: 0 | G40: 0 | L40: 0 | Q40: 0 | R40: 0
A41: 0 | F41: 0 | G41: 0 | L41: 0 | Q41: 0 | R41: 0
A42: 0 | F42: 0 | G42: 0 | L42: 0 | Q42: 0 | R42: 0
B44: donderdag 01-8-2019 | M44: =B44 -> donderdag 01-8-2019
B45: Begintijd | C45: Eindtijd | D45: Begintijd | E45: Eindtijd | F45: tanken | G45: aan/afkoppelen | I45: Totaal uren | J45: =J46+J47 -> 0.003402777773 | M45: Begintijd | N45: Eindtijd | O45: Begintijd | P45: Eindtijd | Q45: wachten instructie | R45: wachten koppelchauffeur
A46: =IF(B46,"1",0) -> 0 | D46: 2015-07-31T16:15:46 | E46: 2015-07-31T16:24:13 | F46: =C46-B46 -> 0 | G46: =N46-M46 -> 0.003402777773 | I46: tanken | J46: =SUM(F46:F55) -> 0 | L46: =IF(#REF!,"1",0) ->  | M46: 2015-07-31T09:29:36 | N46: 2015-07-31T09:34:30 | Q46: =#REF!-#REF! ->  | R46: =P46-O46 -> 0
A47: =IF(B47,"1",0) -> 0 | F47: =C47-B47 -> 0 | G47: =E47-D47 -> 0 | I47: aan-afkoppelen | J47: =SUM(G46:G55) -> 0.003402777773 | L47: =IF(M47,"1",0) -> 0 | Q47: =N47-M47 -> 0 | R47: =P47-O47 -> 0
A48: 0 | F48: 0 | G48: 0 | L48: 0 | Q48: 0 | R48: 0
A49: 0 | F49: 0 | G49: 0 | I49: Totaal uren | J49: =J50+J51 ->  | L49: 0 | Q49: 0 | R49: 0
A50: 0 | F50: 0 | G50: 0 | I50: wachten instructie | J50: =SUM(Q46:Q55) ->  | L50: 0 | Q50: 0 | R50: 0
A51: 0 | F51: 0 | G51: 0 | I51: wachten koppelchauffeur | J51: =SUM(R46:R55) -> 0 | L51: 0 | Q51: 0 | R51: 0
A52: 0 | F52: 0 | G52: 0 | L52: 0 | Q52: 0 | R52: 0
A53: 0 | F53: 0 | G53: 0 | L53: 0 | Q53: 0 | R53: 0
A54: 0 | F54: 0 | G54: 0 | L54: 0 | Q54: 0 | R54: 0
A55: 0 | F55: 0 | G55: 0 | L55: 0 | Q55: 0 | R55: 0
B57: vrijdag 02-8-2019 | M57: =B57 -> vrijdag 02-8-2019
B58: Begintijd | C58: Eindtijd | D58: Begintijd | E58: Eindtijd | F58: tanken | G58: aan/afkoppelen | I58: Totaal uren | J58: =J59+J60 -> 0 | M58: Begintijd | N58: Eindtijd | O58: Begintijd | P58: Eindtijd | Q58: wachten instructie | R58: wachten koppelchauffeur
A59: =IF(B59,"1",0) -> 0 | F59: =C59-B59 -> 0 | G59: =E59-D59 -> 0 | I59: tanken | J59: =SUM(F59:F64) -> 0 | L59: =IF(M59,"1",0) -> 0 | Q59: =N59-M59 -> 0 | R59: =P59-O59 -> 0
A60: =IF(B60,"1",0) -> 0 | F60: =C60-B60 -> 0 | G60: =E60-D60 -> 0 | I60: aan-afkoppelen | J60: =SUM(G59:G64) -> 0 | L60: =IF(M60,"1",0) -> 0 | Q60: =N60-M60 -> 0 | R60: =P60-O60 -> 0
A61: 0 | F61: 0 | G61: 0 | L61: 0 | Q61: 0 | R61: 0
A62: 0 | F62: 0 | G62: 0 | I62: Totaal uren | J62: =J63+J64 -> 0 | L62: 0 | Q62: 0 | R62: 0
A63: 0 | F63: 0 | G63: 0 | I63: wachten instructie | J63: =SUM(Q59:Q68) -> 0 | L63: 0 | Q63: 0 | R63: 0
A64: 0 | F64: 0 | G64: 0 | I64: wachten koppelchauffeur | J64: =SUM(R59:R68) -> 0 | L64: 0 | Q64: 0 | R64: 0
A65: 0 | F65: 0 | G65: 0 | L65: 0 | Q65: 0 | R65: 0
A66: 0 | F66: 0 | G66: 0 | L66: 0 | Q66: 0 | R66: 0
A67: 0 | F67: 0 | G67: 0 | L67: 0 | Q67: 0 | R67: 0
A68: 0 | F68: 0 | G68: 0 | L68: 0 | Q68: 0 | R68: 0
B70: zaterdag 03-8-2019 | M70: =B70 -> zaterdag 03-8-2019
B71: Begintijd | C71: Eindtijd | D71: Begintijd | E71: Eindtijd | F71: tanken | G71: aan/afkoppelen | I71: Totaal uren | J71: =J72+J73 -> 0 | M71: Begintijd | N71: Eindtijd | O71: Begintijd | P71: Eindtijd | Q71: wachten instructie | R71: wachten koppelchauffeur
A72: =IF(B72,"1",0) -> 0 | F72: =C72-B72 -> 0 | G72: =E72-D72 -> 0 | I72: tanken | J72: =SUM(F72:F81) -> 0 | L72: =IF(M72,"1",0) -> 0 | Q72: =N72-M72 -> 0 | R72: =P72-O72 -> 0
A73: =IF(B73,"1",0) -> 0 | F73: =C73-B73 -> 0 | G73: =E73-D73 -> 0 | I73: aan-afkoppelen | J73: =SUM(G72:G81) -> 0 | L73: =IF(M73,"1",0) -> 0 | Q73: =N73-M73 -> 0 | R73: =P73-O73 -> 0
A74: 0 | F74: 0 | G74: 0 | L74: 0 | Q74: 0 | R74: 0
A75: 0 | F75: 0 | G75: 0 | I75: Totaal uren | J75: =J76+J77 -> 0 | L75: 0 | Q75: 0 | R75: 0
A76: 0 | F76: 0 | G76: 0 | I76: wachten instructie | J76: =SUM(Q72:Q81) -> 0 | L76: 0 | Q76: 0 | R76: 0
A77: 0 | F77: 0 | G77: 0 | I77: wachten koppelchauffeur | J77: =SUM(R72:R81) -> 0 | L77: 0 | Q77: 0 | R77: 0
A78: 0 | F78: 0 | G78: 0 | L78: 0 | Q78: 0 | R78: 0
A79: 0 | F79: 0 | G79: 0 | L79: 0 | Q79: 0 | R79: 0
A80: 0 | F80: 0 | G80: 0 | L80: 0 | Q80: 0 | R80: 0
A81: 0 | F81: 0 | G81: 0 | L81: 0 | Q81: 0 | R81: 0
B83: zondag 04-8-2019 | M83: =B83 -> zondag 04-8-2019
B84: Begintijd | C84: Eindtijd | D84: Begintijd | E84: Eindtijd | F84: tanken | G84: aan/afkoppelen | I84: Totaal uren | J84: =J85+J86 -> 0 | M84: Begintijd | N84: Eindtijd | O84: Begintijd | P84: Eindtijd | Q84: wachten instructie | R84: wachten koppelchauffeur
A85: =IF(B85,"1",0) -> 0 | F85: =C85-B85 -> 0 | G85: =E85-D85 -> 0 | I85: tanken | J85: =SUM(F85:F90) -> 0 | L85: =IF(M85,"1",0) -> 0 | Q85: =N85-M85 -> 0 | R85: =P85-O85 -> 0
A86: =IF(B86,"1",0) -> 0 | F86: =C86-B86 -> 0 | G86: =E86-D86 -> 0 | I86: aan-afkoppelen | J86: =SUM(G85:G90) -> 0 | L86: =IF(M86,"1",0) -> 0 | Q86: 0 | R86: 0
A87: 0 | F87: 0 | G87: 0 | L87: 0 | Q87: 0 | R87: 0
A88: 0 | F88: 0 | G88: 0 | I88: Totaal uren | J88: =J89+J90 -> 0 | L88: 0 | Q88: 0 | R88: 0
A89: 0 | F89: 0 | G89: 0 | I89: wachten instructie | J89: =SUM(Q85:Q94) -> 0 | L89: 0 | Q89: 0 | R89: 0
A90: 0 | F90: 0 | G90: 0 | I90: wachten koppelchauffeur | J90: =SUM(R85:R94) -> 0 | L90: 0 | Q90: 0 | R90: 0
A91: 0 | F91: 0 | G91: 0 | L91: 0 | Q91: 0 | R91: 0
A92: 0 | F92: 0 | G92: 0 | L92: 0 | Q92: 0 | R92: 0
A93: 0 | F93: 0 | G93: 0 | L93: 0 | Q93: 0 | R93: 0
A94: 0 | F94: 0 | G94: 0 | L94: 0 | Q94: 0 | R94: 0
I96: tanken | J96: =J85+J72+J59+J46+J33+J20+J7 -> 0.02798611112
I98: aan-afkoppelen | J98: =J86+J73+J60+J47+J34+J21+J8 -> 0.05843749999
I100: Totaal uren | J100: =J98+J96 -> 0.08642361111
I103: wachten instructie | J103: =J89+J76+J63+J50+J37+J24+J11 -> 
I105: wachten koppelchauffeur | J105: =J90+J77+J64+J51+J38+J25+J12 -> 
I107: Totaal uren | J107: =J105+J103 -> 
B110: Einde dag-taken week 31

Sheet Dag-taken week (30) (hidden)
B1: Dag-taken week 30 | M1: =B1 -> Dag-taken week 30
B2: tanken | D2: aan/afkoppelen | F2: Totaal | G2: =Q2 -> Tijden | M2: wachten instructie | O2: wachten koppelchauffeur | Q2: Tijden
B5: maandag 22-7-2019 | M5: =B5 -> maandag 22-7-2019
B6: Begintijd | C6: Eindtijd | D6: Begintijd | E6: Eindtijd | F6: tanken | G6: aan/afkoppelen | I6: Totaal uren | J6: =J7+J8 -> 0.02002314815 | M6: Begintijd | N6: Eindtijd | O6: Begintijd | P6: Eindtijd | Q6: wachten instructie | R6: wachten koppelchauffeur
A7: 1 | B7: 2015-07-21T02:55:03 | C7: 2015-07-21T03:11:03 | D7: 2015-07-21T02:34:06 | E7: 2015-07-21T02:46:56 | F7: =C7-B7 -> 0.01111111111 | G7: =E7-D7 -> 0.008912037039 | I7: tanken | J7: =SUM(F7:F12) -> 0.01111111111 | L7: =IF(M7,"1",0) -> 0 | Q7: =N7-M7 -> 0 | R7: =P7-O7 -> 0
A8: =IF(B8,"1",0) -> 0 | F8: =C8-B8 -> 0 | G8: =E8-D8 -> 0 | I8: aan-afkoppelen | J8: =SUM(G7:G12) -> 0.008912037039 | L8: 0 | Q8: =N8-M8 -> 0 | R8: =P8-O8 -> 0
A9: 0 | F9: 0 | G9: 0 | L9: 0 | Q9: 0 | R9: 0
A10: 0 | F10: 0 | G10: 0 | I10: Totaal uren | J10: =J11+J12 -> 0 | L10: 0 | Q10: 0 | R10: 0
A11: 0 | F11: 0 | G11: 0 | I11: wachten instructie | J11: =SUM(Q7:Q16) -> 0 | L11: 0 | Q11: 0 | R11: 0
A12: 0 | F12: 0 | G12: 0 | I12: wachten koppelchauffeur | J12: =SUM(R7:R16) -> 0 | L12: 0 | Q12: 0 | R12: 0
A13: 0 | F13: 0 | G13: 0 | L13: 0 | Q13: 0 | R13: 0
A14: 0 | F14: 0 | G14: 0 | L14: 0 | Q14: 0 | R14: 0
A15: 0 | F15: 0 | G15: 0 | L15: 0 | Q15: 0 | R15: 0
A16: 0 | F16: 0 | G16: 0 | L16: 0 | Q16: 0 | R16: 0
B18: dinsdag 23-7-2019 | M18: =B18 -> dinsdag 23-7-2019
B19: Begintijd | C19: Eindtijd | D19: Begintijd | E19: Eindtijd | F19: tanken | G19: aan/afkoppelen | I19: Totaal uren | J19: =J20+J21 -> 0 | M19: Begintijd | N19: Eindtijd | O19: Begintijd | P19: Eindtijd | Q19: wachten instructie | R19: wachten koppelchauffeur
A20: =IF(B20,"1",0) -> 0 | F20: =C20-B20 -> 0 | G20: =E20-D20 -> 0 | I20: tanken | J20: =SUM(F20:F29) -> 0 | L20: =IF(M20,"1",0) -> 1 | M20: 2015-07-22T14:45:29 | N20: 2015-07-22T17:16:30 | Q20: =N20-M20 -> 0.1048726852 | R20: =R7 -> 0
A21: =IF(B21,"1",0) -> 0 | F21: =C21-B21 -> 0 | G21: =E21-D21 -> 0 | I21: aan-afkoppelen | J21: =SUM(G20:G29) -> 0 | L21: =IF(M21,"1",0) -> 0 | Q21: 0 | R21: 0
A22: 0 | F22: 0 | G22: 0 | L22: 0 | Q22: 0 | R22: 0
A23: 0 | F23: 0 | G23: 0 | I23: Totaal uren | J23: =J24+J25 -> 0.1048726852 | L23: 0 | Q23: 0 | R23: 0
A24: 0 | F24: 0 | G24: 0 | I24: wachten instructie | J24: =SUM(Q20:Q29) -> 0.1048726852 | L24: 0 | Q24: 0 | R24: 0
A25: 0 | F25: 0 | G25: 0 | I25: wachten koppelchauffeur | J25: =SUM(R20:R29) -> 0 | L25: 0 | Q25: 0 | R25: 0
A26: 0 | F26: 0 | G26: 0 | L26: 0 | Q26: 0 | R26: 0
A27: 0 | F27: 0 | G27: 0 | L27: 0 | Q27: 0 | R27: 0
A28: 0 | F28: 0 | G28: 0 | J28: =J19+J23 -> 0.1048726852 | L28: 0 | Q28: 0 | R28: 0
A29: 0 | F29: 0 | G29: 0 | L29: 0 | Q29: =Q16 -> 0 | R29: =R16 -> 0
B31: woensdag 24-7-2019 | M31: =B31 -> woensdag 24-7-2019
B32: Begintijd | C32: Eindtijd | D32: Begintijd | E32: Eindtijd | F32: tanken | G32: aan/afkoppelen | I32: Totaal uren | J32: =J33+J34 -> 0.01408564815 | M32: Begintijd | N32: Eindtijd | O32: Begintijd | P32: Eindtijd | Q32: wachten instructie | R32: wachten koppelchauffeur
A33: =IF(M46,"1",0) -> 0 | D33: 2015-07-23T18:48:34 | E33: 2015-07-23T19:08:51 | F33: =C33-B33 -> 0 | G33: =E33-D33 -> 0.01408564815 | I33: tanken | J33: =SUM(F33:F38) -> 0 | L33: 1 | Q33: 0 | R33: =N33-M33 -> 0
A34: =IF(B34,"1",0) -> 0 | F34: =C34-B34 -> 0 | G34: =E34-D34 -> 0 | I34: aan-afkoppelen | J34: =SUM(G33:G38) -> 0.01408564815 | L34: =IF(M34,"1",0) -> 0 | Q34: 0 | R34: 0
A35: 0 | F35: 0 | G35: 0 | L35: 0 | Q35: 0 | R35: 0
A36: 0 | F36: 0 | G36: 0 | I36: Totaal uren | J36: =J37+J38 -> 0 | L36: 0 | Q36: 0 | R36: 0
A37: 0 | F37: 0 | G37: 0 | I37: wachten instructie | J37: =SUM(Q33:Q42) -> 0 | L37: 0 | Q37: 0 | R37: 0
A38: 0 | F38: 0 | G38: 0 | I38: wachten koppelchauffeur | J38: =SUM(R33:R42) -> 0 | L38: 0 | Q38: 0 | R38: 0
A39: 0 | F39: 0 | G39: 0 | L39: 0 | Q39: 0 | R39: 0
A40: 0 | F40: 0 | G40: 0 | L40: 0 | Q40: 0 | R40: 0
A41: 0 | F41: 0 | G41: 0 | L41: 0 | Q41: 0 | R41: 0
A42: 0 | F42: 0 | G42: 0 | L42: 0 | Q42: 0 | R42: 0
B44: donderdag 25-7-2019 | M44: =B44 -> donderdag 25-7-2019
B45: Begintijd | C45: Eindtijd | D45: Begintijd | E45: Eindtijd | F45: tanken | G45: aan/afkoppelen | I45: Totaal uren | J45: =J46+J47 -> 0.01498842593 | M45: Begintijd | N45: Eindtijd | O45: Begintijd | P45: Eindtijd | Q45: wachten instructie | R45: wachten koppelchauffeur
A46: =IF(B46,"1",0) -> 1 | B46: 2015-07-24T04:55:29 | C46: 2015-07-24T05:10:36 | D46: 2015-07-24T04:44:45 | E46: 2015-07-24T04:51:13 | F46: =C46-B46 -> 0.01049768519 | G46: =E46-D46 -> 0.004490740743 | I46: tanken | J46: =SUM(F46:F55) -> 0.01049768519 | L46: =IF(M46,"1",0) -> 0 | Q46: =N46-M46 -> 0 | R46: =P46-O46 -> 0
A47: =IF(B47,"1",0) -> 0 | F47: =C47-B47 -> 0 | G47: =E47-D47 -> 0 | I47: aan-afkoppelen | J47: =SUM(G46:G55) -> 0.004490740743 | L47: 0 | Q47: =N47-M47 -> 0 | R47: =P47-O47 -> 0
A48: 0 | F48: 0 | G48: 0 | L48: 0 | Q48: 0 | R48: 0
A49: 0 | F49: 0 | G49: 0 | I49: Totaal uren | J49: =J50+J51 -> 0 | L49: 0 | Q49: 0 | R49: 0
A50: 0 | F50: 0 | G50: 0 | I50: wachten instructie | J50: =SUM(Q46:Q55) -> 0 | L50: 0 | Q50: 0 | R50: 0
A51: 0 | F51: 0 | G51: 0 | I51: wachten koppelchauffeur | J51: =SUM(R46:R55) -> 0 | L51: 0 | Q51: 0 | R51: 0
A52: 0 | F52: 0 | G52: 0 | L52: 0 | Q52: 0 | R52: 0
A53: 0 | F53: 0 | G53: 0 | L53: 0 | Q53: 0 | R53: 0
A54: 0 | F54: 0 | G54: 0 | L54: 0 | Q54: 0 | R54: 0
A55: 0 | F55: 0 | G55: 0 | L55: 0 | Q55: 0 | R55: 0
B57: vrijdag 26-7-2019 | M57: =B57 -> vrijdag 26-7-2019
B58: Begintijd | C58: Eindtijd | D58: Begintijd | E58: Eindtijd | F58: tanken | G58: aan/afkoppelen | I58: Totaal uren | J58: =J59+J60 -> 0.03074074074 | M58: Begintijd | N58: Eindtijd | O58: Begintijd | P58: Eindtijd | Q58: wachten instructie | R58: wachten koppelchauffeur
A59: =IF(B59,"1",0) -> 0 | D59: 2015-07-25T17:48:22 | E59: 2015-07-25T17:56:07 | F59: =C59-B59 -> 0 | G59: =E59-D59 -> 0.005381944444 | I59: tanken | J59: =SUM(F59:F64) -> 0 | L59: =IF(M59,"1",0) -> 0 | Q59: =N59-M59 -> 0 | R59: =P59-O59 -> 0
A60: =IF(B60,"1",0) -> 0 | D60: 2015-07-25T18:14:38 | E60: 2015-07-25T18:19:18 | F60: =C60-B60 -> 0 | G60: =E60-D60 -> 0.003240740734 | I60: aan-afkoppelen | J60: =SUM(G59:G64) -> 0.03074074074 | L60: =IF(M60,"1",0) -> 0 | Q60: =N60-M60 -> 0 | R60: =P60-O60 -> 0
A61: 0 | D61: 2015-07-25T18:21:54 | E61: 2015-07-25T18:27:35 | F61: 0 | G61: 0.003946759265 | L61: 0 | Q61: 0 | R61: 0
A62: 0 | D62: 2015-07-25T18:27:43 | E62: 2015-07-25T18:43:28 | F62: 0 | G62: 0.0109375 | I62: Totaal uren | J62: =J63+J64 -> 0 | L62: 0 | Q62: 0 | R62: 0
A63: 0 | D63: 2015-07-25T19:02:28 | E63: 2015-07-25T19:12:53 | F63: 0 | G63: 0.007233796299 | I63: wachten instructie | J63: =SUM(Q59:Q68) -> 0 | L63: 0 | Q63: 0 | R63: 0
A64: 0 | F64: 0 | G64: 0 | I64: wachten koppelchauffeur | J64: =SUM(R59:R68) -> 0 | L64: 0 | Q64: 0 | R64: 0
A65: 0 | F65: 0 | G65: 0 | L65: 0 | Q65: 0 | R65: 0
A66: 0 | F66: 0 | G66: 0 | L66: 0 | Q66: 0 | R66: 0
A67: 0 | F67: 0 | G67: 0 | L67: 0 | Q67: 0 | R67: 0
A68: 0 | F68: 0 | G68: 0 | L68: 0 | Q68: 0 | R68: 0
B70: zaterdag 27-7-2019 | M70: =B70 -> zaterdag 27-7-2019
B71: Begintijd | C71: Eindtijd | D71: Begintijd | E71: Eindtijd | F71: tanken | G71: aan/afkoppelen | I71: Totaal uren | J71: =J72+J73 -> 0 | M71: Begintijd | N71: Eindtijd | O71: Begintijd | P71: Eindtijd | Q71: wachten instructie | R71: wachten koppelchauffeur
A72: =IF(B72,"1",0) -> 0 | F72: =C72-B72 -> 0 | G72: =E72-D72 -> 0 | I72: tanken | J72: =SUM(F72:F81) -> 0 | L72: =IF(M72,"1",0) -> 0 | Q72: =N72-M72 -> 0 | R72: =P72-O72 -> 0
A73: =IF(B73,"1",0) -> 0 | F73: =C73-B73 -> 0 | G73: =E73-D73 -> 0 | I73: aan-afkoppelen | J73: =SUM(G72:G81) -> 0 | L73: =IF(M73,"1",0) -> 0 | Q73: =N73-M73 -> 0 | R73: =P73-O73 -> 0
A74: 0 | F74: 0 | G74: 0 | L74: 0 | Q74: 0 | R74: 0
A75: 0 | F75: 0 | G75: 0 | I75: Totaal uren | J75: =J76+J77 -> 0 | L75: 0 | Q75: 0 | R75: 0
A76: 0 | F76: 0 | G76: 0 | I76: wachten instructie | J76: =SUM(Q72:Q81) -> 0 | L76: 0 | Q76: 0 | R76: 0
A77: 0 | F77: 0 | G77: 0 | I77: wachten koppelchauffeur | J77: =SUM(R72:R81) -> 0 | L77: 0 | Q77: 0 | R77: 0
A78: 0 | F78: 0 | G78: 0 | L78: 0 | Q78: 0 | R78: 0
A79: 0 | F79: 0 | G79: 0 | L79: 0 | Q79: 0 | R79: 0
A80: 0 | F80: 0 | G80: 0 | L80: 0 | Q80: 0 | R80: 0
A81: 0 | F81: 0 | G81: 0 | L81: 0 | Q81: 0 | R81: 0
B83: zondag 28-7-2019 | M83: =B83 -> zondag 28-7-2019
B84: Begintijd | C84: Eindtijd | D84: Begintijd | E84: Eindtijd | F84: tanken | G84: aan/afkoppelen | I84: Totaal uren | J84: =J85+J86 -> 0 | M84: Begintijd | N84: Eindtijd | O84: Begintijd | P84: Eindtijd | Q84: wachten instructie | R84: wachten koppelchauffeur
A85: =IF(B85,"1",0) -> 0 | F85: =C85-B85 -> 0 | G85: =E85-D85 -> 0 | I85: tanken | J85: =SUM(F85:F90) -> 0 | L85: =IF(M85,"1",0) -> 0 | Q85: =N85-M85 -> 0 | R85: =P85-O85 -> 0
A86: =IF(B86,"1",0) -> 0 | F86: =C86-B86 -> 0 | G86: =E86-D86 -> 0 | I86: aan-afkoppelen | J86: =SUM(G85:G90) -> 0 | L86: =IF(M86,"1",0) -> 0 | Q86: 0 | R86: 0
A87: 0 | F87: 0 | G87: 0 | L87: 0 | Q87: 0 | R87: 0
A88: 0 | F88: 0 | G88: 0 | I88: Totaal uren | J88: =J89+J90 -> 0 | L88: 0 | Q88: 0 | R88: 0
A89: 0 | F89: 0 | G89: 0 | I89: wachten instructie | J89: =SUM(Q85:Q94) -> 0 | L89: 0 | Q89: 0 | R89: 0
A90: 0 | F90: 0 | G90: 0 | I90: wachten koppelchauffeur | J90: =SUM(R85:R94) -> 0 | L90: 0 | Q90: 0 | R90: 0
A91: 0 | F91: 0 | G91: 0 | L91: 0 | Q91: 0 | R91: 0
A92: 0 | F92: 0 | G92: 0 | L92: 0 | Q92: 0 | R92: 0
A93: 0 | F93: 0 | G93: 0 | L93: 0 | Q93: 0 | R93: 0
A94: 0 | F94: 0 | G94: 0 | L94: 0 | Q94: 0 | R94: 0
I96: tanken | J96: =J85+J72+J59+J46+J33+J20+J7 -> 0.0216087963
I98: aan-afkoppelen | J98: =J86+J73+J60+J47+J34+J21+J8 -> 0.05822916667
I100: Totaal uren | J100: =J98+J96 -> 0.07983796297
I103: wachten instructie | J103: =J89+J76+J63+J50+J37+J24+J11 -> 0.1048726852
I105: wachten koppelchauffeur | J105: =J90+J77+J64+J51+J38+J25+J12 -> 0
I107: Totaal uren | J107: =J105+J103 -> 0.1048726852
B110: Einde dag-taken week 30

Sheet Dag-taken week (29) (hidden)
B1: Dag-taken week 29 | M1: =B1 -> Dag-taken week 29
B2: tanken | D2: aan/afkoppelen | F2: Totaal | G2: =Q2 -> Tijden | M2: wachten instructie | O2: wachten koppelchauffeur | Q2: Tijden
B5: maandag 15-7-2019 | M5: =B5 -> maandag 15-7-2019
B6: Begintijd | C6: Eindtijd | D6: Begintijd | E6: Eindtijd | F6: tanken | G6: aan/afkoppelen | I6: Totaal uren | J6: =J7+J8 -> 0.01346064814 | M6: Begintijd | N6: Eindtijd | O6: Begintijd | P6: Eindtijd | Q6: wachten instructie | R6: wachten koppelchauffeur
A7: =IF(B7,"1",0) -> 1 | B7: 2015-07-14T04:41:47 | C7: 2015-07-14T04:49:50 | D7: 2015-07-14T04:24:16 | E7: 2015-07-14T04:35:36 | F7: =C7-B7 -> 0.005590277775 | G7: =E7-D7 -> 0.007870370369 | I7: tanken | J7: =SUM(F7:F12) -> 0.005590277775 | L7: =IF(M7,"1",0) -> 0 | Q7: =N7-M7 -> 0 | R7: =P7-O7 -> 0
A8: 0 | F8: 0 | G8: 0 | I8: aan-afkoppelen | J8: =SUM(G7:G12) -> 0.007870370369 | L8: 0 | Q8: 0 | R8: 0
A9: 0 | F9: 0 | G9: 0 | L9: 0 | Q9: 0 | R9: 0
A10: 0 | F10: 0 | G10: 0 | I10: Totaal uren | J10: =J11+J12 -> 0 | L10: 0 | Q10: 0 | R10: 0
A11: 0 | F11: 0 | G11: 0 | I11: wachten instructie | J11: =SUM(Q7:Q16) -> 0 | L11: 0 | Q11: 0 | R11: 0
A12: 0 | F12: 0 | G12: 0 | I12: wachten koppelchauffeur | J12: =SUM(R7:R16) -> 0 | L12: 0 | Q12: 0 | R12: 0
A13: 0 | F13: 0 | G13: 0 | L13: 0 | Q13: 0 | R13: 0
A14: 0 | F14: 0 | G14: 0 | L14: 0 | Q14: 0 | R14: 0
A15: 0 | F15: 0 | G15: 0 | L15: 0 | Q15: 0 | R15: 0
A16: 0 | F16: 0 | G16: 0 | L16: 0 | Q16: 0 | R16: 0
B18: dinsdag 16-7-2019 | M18: =B18 -> dinsdag 16-7-2019
B19: Begintijd | C19: Eindtijd | D19: Begintijd | E19: Eindtijd | F19: tanken | G19: aan/afkoppelen | I19: Totaal uren | J19: =J20+J21 -> 0 | M19: Begintijd | N19: Eindtijd | O19: Begintijd | P19: Eindtijd | Q19: wachten instructie | R19: wachten koppelchauffeur
A20: =IF(B20,"1",0) -> 0 | F20: =C20-B20 -> 0 | G20: =E20-D20 -> 0 | I20: tanken | J20: =SUM(F20:F29) -> 0 | L20: =IF(M20,"1",0) -> 0 | Q20: =N20-M20 -> 0 | R20: =R7 -> 0
A21: 0 | F21: 0 | G21: 0 | I21: aan-afkoppelen | J21: =SUM(G20:G29) -> 0 | L21: 0 | Q21: 0 | R21: 0
A22: 0 | F22: 0 | G22: 0 | L22: 0 | Q22: 0 | R22: 0
A23: 0 | F23: 0 | G23: 0 | I23: Totaal uren | J23: =J24+J25 -> 0 | L23: 0 | Q23: 0 | R23: 0
A24: 0 | F24: 0 | G24: 0 | I24: wachten instructie | J24: =SUM(Q20:Q29) -> 0 | L24: 0 | Q24: 0 | R24: 0
A25: 0 | F25: 0 | G25: 0 | I25: wachten koppelchauffeur | J25: =SUM(R20:R29) -> 0 | L25: 0 | Q25: 0 | R25: 0
A26: 0 | F26: 0 | G26: 0 | L26: 0 | Q26: 0 | R26: 0
A27: 0 | F27: 0 | G27: 0 | L27: 0 | Q27: 0 | R27: 0
A28: 0 | F28: 0 | G28: 0 | J28: =J19+J23 -> 0 | L28: 0 | Q28: 0 | R28: 0
A29: 0 | F29: 0 | G29: 0 | L29: 0 | Q29: =Q16 -> 0 | R29: 0
B31: woensdag 17-7-2019 | M31: =B31 -> woensdag 17-7-2019
B32: Begintijd | C32: Eindtijd | D32: Begintijd | E32: Eindtijd | F32: tanken | G32: aan/afkoppelen | I32: Totaal uren | J32: =J33+J34 -> 0.01545138888 | M32: Begintijd | N32: Eindtijd | O32: Begintijd | P32: Eindtijd | Q32: wachten instructie | R32: wachten koppelchauffeur
A33: =IF(M46,"1",0) -> 0 | D33: 2015-07-16T03:07:33 | E33: 2015-07-16T03:29:48 | F33: =C33-B33 -> 0 | G33: =E33-D33 -> 0.01545138888 | I33: tanken | J33: =SUM(F33:F38) -> 0 | L33: 1 | M33: 2015-07-16T15:06:03 | N33: 2015-07-16T15:26:12 | Q33: 0 | R33: =N33-M33 -> 0.01399305555
A34: =IF(B34,"1",0) -> 0 | F34: 0 | G34: 0 | I34: aan-afkoppelen | J34: =SUM(G33:G38) -> 0.01545138888 | L34: =IF(M34,"1",0) -> 0 | Q34: 0 | R34: 0
A35: 0 | F35: 0 | G35: 0 | L35: 0 | Q35: 0 | R35: 0
A36: 0 | F36: 0 | G36: 0 | I36: Totaal uren | J36: =J37+J38 -> 0.01399305555 | L36: 0 | Q36: 0 | R36: 0
A37: 0 | F37: 0 | G37: 0 | I37: wachten instructie | J37: =SUM(Q33:Q42) -> 0 | L37: 0 | Q37: 0 | R37: 0
A38: 0 | F38: 0 | G38: 0 | I38: wachten koppelchauffeur | J38: =SUM(R33:R42) -> 0.01399305555 | L38: 0 | Q38: 0 | R38: 0
A39: 0 | F39: 0 | G39: 0 | L39: 0 | Q39: 0 | R39: 0
A40: 0 | F40: 0 | G40: 0 | L40: 0 | Q40: 0 | R40: 0
A41: 0 | F41: 0 | G41: 0 | L41: 0 | Q41: 0 | R41: 0
A42: 0 | F42: 0 | G42: 0 | L42: 0 | Q42: 0 | R42: 0
B44: donderdag 18-7-2019 | M44: =B44 -> donderdag 18-7-2019
B45: Begintijd | C45: Eindtijd | D45: Begintijd | E45: Eindtijd | F45: tanken | G45: aan/afkoppelen | I45: Totaal uren | J45: =J46+J47 -> 0.01877314815 | M45: Begintijd | N45: Eindtijd | O45: Begintijd | P45: Eindtijd | Q45: wachten instructie | R45: wachten koppelchauffeur
A46: =IF(B46,"1",0) -> 0 | D46: 2015-07-17T12:01:42 | E46: 2015-07-17T12:16:25 | F46: =C46-B46 -> 0 | G46: =E46-D46 -> 0.01021990741 | I46: tanken | J46: =SUM(F46:F55) -> 0 | L46: =IF(M46,"1",0) -> 0 | Q46: =N46-M46 -> 0 | R46: =P46-O46 -> 0
A47: 0 | D47: 2015-07-17T12:16:55 | E47: 2015-07-17T12:29:14 | F47: 0 | G47: 0.008553240739 | I47: aan-afkoppelen | J47: =SUM(G46:G55) -> 0.01877314815 | L47: 0 | Q47: 0 | R47: 0
A48: 0 | F48: 0 | G48: 0 | L48: 0 | Q48: 0 | R48: 0
A49: 0 | F49: 0 | G49: 0 | I49: Totaal uren | J49: =J50+J51 -> 0 | L49: 0 | Q49: 0 | R49: 0
A50: 0 | F50: 0 | G50: 0 | I50: wachten instructie | J50: =SUM(Q46:Q55) -> 0 | L50: 0 | Q50: 0 | R50: 0
A51: 0 | F51: 0 | G51: 0 | I51: wachten koppelchauffeur | J51: =SUM(R46:R55) -> 0 | L51: 0 | Q51: 0 | R51: 0
A52: 0 | F52: 0 | G52: 0 | L52: 0 | Q52: 0 | R52: 0
A53: 0 | F53: 0 | G53: 0 | L53: 0 | Q53: 0 | R53: 0
A54: 0 | F54: 0 | G54: 0 | L54: 0 | Q54: 0 | R54: 0
A55: 0 | F55: 0 | G55: 0 | L55: 0 | Q55: 0 | R55: 0
B57: vrijdag 19-7-2019 | M57: =B57 -> vrijdag 19-7-2019
B58: Begintijd | C58: Eindtijd | D58: Begintijd | E58: Eindtijd | F58: tanken | G58: aan/afkoppelen | I58: Totaal uren | J58: =J59+J60 -> 0.04354166667 | M58: Begintijd | N58: Eindtijd | O58: Begintijd | P58: Eindtijd | Q58: wachten instructie | R58: wachten koppelchauffeur
A59: =IF(B59,"1",0) -> 1 | B59: 2015-07-18T09:20:27 | C59: 2015-07-18T09:53:14 | D59: 2015-07-18T10:04:22 | E59: 2015-07-18T10:11:03 | F59: =C59-B59 -> 0.0227662037 | G59: =E59-D59 -> 0.004641203705 | I59: tanken | J59: =SUM(F59:F64) -> 0.0227662037 | L59: =IF(M59,"1",0) -> 0 | Q59: =N59-M59 -> 0 | R59: =P59-O59 -> 0
A60: 0 | D60: 2015-07-18T10:17:54 | E60: 2015-07-18T10:20:38 | F60: 0 | G60: 0.001898148148 | I60: aan-afkoppelen | J60: =SUM(G59:G64) -> 0.02077546297 | L60: 0 | Q60: 0 | R60: 0
A61: 0 | D61: 2015-07-18T18:26:26 | E61: 2015-07-18T18:46:56 | F61: 0 | G61: 0.01423611111 | L61: 0 | Q61: 0 | R61: 0
A62: 0 | F62: 0 | G62: 0 | I62: Totaal uren | J62: =J63+J64 -> 0 | L62: 0 | Q62: 0 | R62: 0
A63: 0 | F63: 0 | G63: 0 | I63: wachten instructie | J63: =SUM(Q59:Q68) -> 0 | L63: 0 | Q63: 0 | R63: 0
A64: 0 | F64: 0 | G64: 0 | I64: wachten koppelchauffeur | J64: =SUM(R59:R68) -> 0 | L64: 0 | Q64: 0 | R64: 0
A65: 0 | F65: 0 | G65: 0 | L65: 0 | Q65: 0 | R65: 0
A66: 0 | F66: 0 | G66: 0 | L66: 0 | Q66: 0 | R66: 0
A67: 0 | F67: 0 | G67: 0 | L67: 0 | Q67: 0 | R67: 0
A68: 0 | F68: 0 | G68: 0 | L68: 0 | Q68: 0 | R68: 0
B70: zaterdag 20-7-2019 | M70: =B70 -> zaterdag 20-7-2019
B71: Begintijd | C71: Eindtijd | D71: Begintijd | E71: Eindtijd | F71: tanken | G71: aan/afkoppelen | I71: Totaal uren | J71: =J72+J73 -> 0 | M71: Begintijd | N71: Eindtijd | O71: Begintijd | P71: Eindtijd | Q71: wachten instructie | R71: wachten koppelchauffeur
A72: =IF(B72,"1",0) -> 0 | F72: =C72-B72 -> 0 | G72: =E72-D72 -> 0 | I72: tanken | J72: =SUM(F72:F81) -> 0 | L72: =IF(M72,"1",0) -> 0 | Q72: =N72-M72 -> 0 | R72: =P72-O72 -> 0
A73: 0 | F73: 0 | G73: 0 | I73: aan-afkoppelen | J73: =SUM(G72:G81) -> 0 | L73: 0 | Q73: 0 | R73: 0
A74: 0 | F74: 0 | G74: 0 | L74: 0 | Q74: 0 | R74: 0
A75: 0 | F75: 0 | G75: 0 | I75: Totaal uren | J75: =J76+J77 -> 0 | L75: 0 | Q75: 0 | R75: 0
A76: 0 | F76: 0 | G76: 0 | I76: wachten instructie | J76: =SUM(Q72:Q81) -> 0 | L76: 0 | Q76: 0 | R76: 0
A77: 0 | F77: 0 | G77: 0 | I77: wachten koppelchauffeur | J77: =SUM(R72:R81) -> 0 | L77: 0 | Q77: 0 | R77: 0
A78: 0 | F78: 0 | G78: 0 | L78: 0 | Q78: 0 | R78: 0
A79: 0 | F79: 0 | G79: 0 | L79: 0 | Q79: 0 | R79: 0
A80: 0 | F80: 0 | G80: 0 | L80: 0 | Q80: 0 | R80: 0
A81: 0 | F81: 0 | G81: 0 | L81: 0 | Q81: 0 | R81: 0
B83: zondag 21-7-2019 | M83: =B83 -> zondag 21-7-2019
B84: Begintijd | C84: Eindtijd | D84: Begintijd | E84: Eindtijd | F84: tanken | G84: aan/afkoppelen | I84: Totaal uren | J84: =J85+J86 -> 0.02002314815 | M84: Begintijd | N84: Eindtijd | O84: Begintijd | P84: Eindtijd | Q84: wachten instructie | R84: wachten koppelchauffeur
A85: =IF('Dag-taken week (30)'!B7,"1",0) -> 1 | F85: ='Dag-taken week (30)'!C7-'Dag-taken week (30)'!B7 -> 0.01111111111 | G85: ='Dag-taken week (30)'!E7-'Dag-taken week (30)'!D7 -> 0.008912037039 | I85: tanken | J85: =SUM(F85:F90) -> 0.01111111111 | L85: =IF(M85,"1",0) -> 0 | Q85: =N85-M85 -> 0 | R85: =P85-O85 -> 0
A86: =IF(B86,"1",0) -> 0 | F86: =C86-B86 -> 0 | G86: =E86-D86 -> 0 | I86: aan-afkoppelen | J86: =SUM(G85:G90) -> 0.008912037039 | L86: 0 | Q86: 0 | R86: 0
A87: 0 | F87: 0 | G87: 0 | L87: 0 | Q87: 0 | R87: 0
A88: 0 | F88: 0 | G88: 0 | I88: Totaal uren | J88: =J89+J90 -> 0 | L88: 0 | Q88: 0 | R88: 0
A89: 0 | F89: 0 | G89: 0 | I89: wachten instructie | J89: =SUM(Q85:Q94) -> 0 | L89: 0 | Q89: 0 | R89: 0
A90: 0 | F90: 0 | G90: 0 | I90: wachten koppelchauffeur | J90: =SUM(R85:R94) -> 0 | L90: 0 | Q90: 0 | R90: 0
A91: 0 | F91: 0 | G91: 0 | L91: 0 | Q91: 0 | R91: 0
A92: 0 | F92: 0 | G92: 0 | L92: 0 | Q92: 0 | R92: 0
A93: 0 | F93: 0 | G93: 0 | L93: 0 | Q93: 0 | R93: 0
A94: 0 | F94: 0 | G94: 0 | L94: 0 | Q94: 0 | R94: 0
I96: tanken | J96: =J85+J72+J59+J46+J33+J20+J7 -> 0.03946759259
I98: aan-afkoppelen | J98: =J86+J73+J60+J47+J34+J21+J8 -> 0.07178240741
I100: Totaal uren | J100: =J98+J96 -> 0.11125
I103: wachten instructie | J103: =J89+J76+J63+J50+J37+J24+J11 -> 0
I105: wachten koppelchauffeur | J105: =J90+J77+J64+J51+J38+J25+J12 -> 0.01399305555
I107: Totaal uren | J107: =J105+J103 -> 0.01399305555
B110: Einde dag-taken week 29

Sheet Dag-taken week (26) (hidden)
B1: Dag-taken week 26 | M1: =B1 -> Dag-taken week 26
B2: tanken | D2: aan/afkoppelen | F2: Totaal | G2: =Q2 -> Tijden | M2: wachten instructie | O2: wachten koppelchauffeur | Q2: Tijden
B5: maandag 24-6-2019 | M5: =B5 -> maandag 24-6-2019
B6: Begintijd | C6: Eindtijd | D6: Begintijd | E6: Eindtijd | F6: tanken | G6: aan/afkoppelen | I6: Totaal uren | J6: =J7+J8 -> 0 | M6: Begintijd | N6: Eindtijd | O6: Begintijd | P6: Eindtijd | Q6: wachten instructie | R6: wachten koppelchauffeur
A7: =IF(B7,"1",0) -> 0 | F7: =C7-B7 -> 0 | G7: =E7-D7 -> 0 | I7: tanken | J7: =SUM(F7:F12) -> 0 | L7: =IF(M7,"1",0) -> 0 | Q7: =N7-M7 -> 0 | R7: =P7-O7 -> 0
A8: =IF(B8,"1",0) -> 0 | F8: =C8-B8 -> 0 | G8: =E8-D8 -> 0 | I8: aan-afkoppelen | J8: =SUM(G7:G12) -> 0 | L8: 0 | Q8: =N8-M8 -> 0 | R8: =P8-O8 -> 0
A9: 0 | F9: 0 | G9: 0 | L9: 0 | Q9: 0 | R9: 0
A10: 0 | F10: 0 | G10: 0 | I10: Totaal uren | J10: =J11+J12 -> 0 | L10: 0 | Q10: 0 | R10: 0
A11: 0 | F11: 0 | G11: 0 | I11: wachten instructie | J11: =SUM(Q7:Q16) -> 0 | L11: 0 | Q11: 0 | R11: 0
A12: 0 | F12: 0 | G12: 0 | I12: wachten koppelchauffeur | J12: =SUM(R7:R16) -> 0 | L12: 0 | Q12: 0 | R12: 0
A13: 0 | F13: 0 | G13: 0 | L13: 0 | Q13: 0 | R13: 0
A14: 0 | F14: 0 | G14: 0 | L14: 0 | Q14: 0 | R14: 0
A15: 0 | F15: 0 | G15: 0 | L15: 0 | Q15: 0 | R15: 0
A16: 0 | F16: 0 | G16: 0 | L16: 0 | Q16: 0 | R16: 0
B18: dinsdag 25-6-2019 | M18: =B18 -> dinsdag 25-6-2019
B19: Begintijd | C19: Eindtijd | D19: Begintijd | E19: Eindtijd | F19: tanken | G19: aan/afkoppelen | I19: Totaal uren | J19: =J20+J21 -> 0 | M19: Begintijd | N19: Eindtijd | O19: Begintijd | P19: Eindtijd | Q19: wachten instructie | R19: wachten koppelchauffeur
A20: =IF(B20,"1",0) -> 0 | F20: =C20-B20 -> 0 | G20: =E20-D20 -> 0 | I20: tanken | J20: =SUM(F20:F29) -> 0 | L20: =IF(M20,"1",0) -> 0 | Q20: =N20-M20 -> 0 | R20: =R7 -> 0
A21: =IF(B21,"1",0) -> 0 | F21: =C21-B21 -> 0 | G21: =E21-D21 -> 0 | I21: aan-afkoppelen | J21: =SUM(G20:G29) -> 0 | L21: =IF(M21,"1",0) -> 0 | Q21: 0 | R21: 0
A22: 0 | F22: 0 | G22: 0 | L22: 0 | Q22: 0 | R22: 0
A23: 0 | F23: 0 | G23: 0 | I23: Totaal uren | J23: =J24+J25 -> 0 | L23: 0 | Q23: 0 | R23: 0
A24: 0 | F24: 0 | G24: 0 | I24: wachten instructie | J24: =SUM(Q20:Q29) -> 0 | L24: 0 | Q24: 0 | R24: 0
A25: 0 | F25: 0 | G25: 0 | I25: wachten koppelchauffeur | J25: =SUM(R20:R29) -> 0 | L25: 0 | Q25: 0 | R25: 0
A26: 0 | F26: 0 | G26: 0 | L26: 0 | Q26: 0 | R26: 0
A27: 0 | F27: 0 | G27: 0 | L27: 0 | Q27: 0 | R27: 0
A28: 0 | F28: 0 | G28: 0 | L28: 0 | Q28: 0 | R28: 0
A29: 0 | F29: 0 | G29: 0 | L29: 0 | Q29: =Q16 -> 0 | R29: =R16 -> 0
B31: woensdag 26-6-2019 | M31: =B31 -> woensdag 26-6-2019
B32: Begintijd | C32: Eindtijd | D32: Begintijd | E32: Eindtijd | F32: tanken | G32: aan/afkoppelen | I32: Totaal uren | J32: =J33+J34 -> 0 | M32: Begintijd | N32: Eindtijd | O32: Begintijd | P32: Eindtijd | Q32: wachten instructie | R32: wachten koppelchauffeur
A33: =IF(M46,"1",0) -> 1 | F33: =C33-B33 -> 0 | G33: =E33-D33 -> 0 | I33: tanken | J33: =SUM(F33:F38) -> 0 | L33: 1 | M33: 2015-06-25T14:27:50 | N33: 2015-06-25T15:02:37 | Q33: 0 | R33: =N33-M33 -> 0.02415509259
A34: =IF(B34,"1",0) -> 0 | F34: 0 | G34: =E34-D34 -> 0 | I34: aan-afkoppelen | J34: =SUM(G33:G38) -> 0 | L34: =IF(M34,"1",0) -> 0 | Q34: 0 | R34: 0
A35: 0 | F35: 0 | G35: 0 | L35: 0 | Q35: 0 | R35: 0
A36: 0 | F36: 0 | G36: 0 | I36: Totaal uren | J36: =J37+J38 -> 0.02415509259 | L36: 0 | Q36: 0 | R36: 0
A37: 0 | F37: 0 | G37: 0 | I37: wachten instructie | J37: =SUM(Q33:Q42) -> 0 | L37: 0 | Q37: 0 | R37: 0
A38: 0 | F38: 0 | G38: 0 | I38: wachten koppelchauffeur | J38: =SUM(R33:R42) -> 0.02415509259 | L38: 0 | Q38: 0 | R38: 0
A39: 0 | F39: 0 | G39: 0 | L39: 0 | Q39: 0 | R39: 0
A40: 0 | F40: 0 | G40: 0 | L40: 0 | Q40: 0 | R40: 0
A41: 0 | F41: 0 | G41: 0 | L41: 0 | Q41: 0 | R41: 0
A42: 0 | F42: 0 | G42: 0 | L42: 0 | Q42: 0 | R42: 0
B44: donderdag 27-6-2019 | M44: =B44 -> donderdag 27-6-2019
B45: Begintijd | C45: Eindtijd | D45: Begintijd | E45: Eindtijd | F45: tanken | G45: aan/afkoppelen | I45: Totaal uren | J45: =J46+J47 -> 0.02918981482 | M45: Begintijd | N45: Eindtijd | O45: Begintijd | P45: Eindtijd | Q45: wachten instructie | R45: wachten koppelchauffeur
A46: =IF(B46,"1",0) -> 1 | B46: 2015-06-26T18:26:13 | C46: 2015-06-26T18:38:58 | D46: 2015-06-26T23:42:30 | E46: 2015-06-26T23:57:35 | F46: =C46-B46 -> 0.00885416667 | G46: =E46-D46 -> 0.01047453704 | I46: tanken | J46: =SUM(F46:F55) -> 0.01871527778 | L46: =IF(M46,"1",0) -> 1 | M46: 2015-06-26T11:48:33 | N46: 2015-06-26T15:21:26 | Q46: =N46-M46 -> 0.1478356482 | R46: =P46-O46 -> 0
A47: =IF(B47,"1",0) -> 1 | B47: 2015-06-26T23:09:54 | C47: 2015-06-26T23:24:06 | F47: =C47-B47 -> 0.00986111111 | G47: =E47-D47 -> 0 | I47: aan-afkoppelen | J47: =SUM(G46:G55) -> 0.01047453704 | L47: 0 | Q47: =N47-M47 -> 0 | R47: =P47-O47 -> 0
A48: 0 | F48: 0 | G48: 0 | L48: 0 | Q48: 0 | R48: 0
A49: 0 | F49: 0 | G49: 0 | I49: Totaal uren | J49: =J50+J51 -> 0.1478356482 | L49: 0 | Q49: 0 | R49: 0
A50: 0 | F50: 0 | G50: 0 | I50: wachten instructie | J50: =SUM(Q46:Q55) -> 0.1478356482 | L50: 0 | Q50: 0 | R50: 0
A51: 0 | F51: 0 | G51: 0 | I51: wachten koppelchauffeur | J51: =SUM(R46:R55) -> 0 | L51: 0 | Q51: 0 | R51: 0
A52: 0 | F52: 0 | G52: 0 | L52: 0 | Q52: 0 | R52: 0
A53: 0 | F53: 0 | G53: 0 | L53: 0 | Q53: 0 | R53: 0
A54: 0 | F54: 0 | G54: 0 | L54: 0 | Q54: 0 | R54: 0
A55: 0 | F55: 0 | G55: 0 | L55: 0 | Q55: 0 | R55: 0
B57: vrijdag 28-6-2019 | M57: =B57 -> vrijdag 28-6-2019
B58: Begintijd | C58: Eindtijd | D58: Begintijd | E58: Eindtijd | F58: tanken | G58: aan/afkoppelen | I58: Totaal uren | J58: =J59+J60 -> 0 | M58: Begintijd | N58: Eindtijd | O58: Begintijd | P58: Eindtijd | Q58: wachten instructie | R58: wachten koppelchauffeur
A59: =IF(B59,"1",0) -> 0 | F59: =C59-B59 -> 0 | G59: =E59-D59 -> 0 | I59: tanken | J59: =SUM(F59:F64) -> 0 | L59: =IF(M59,"1",0) -> 0 | Q59: =N59-M59 -> 0 | R59: =P59-O59 -> 0
A60: =IF(B60,"1",0) -> 0 | F60: =C60-B60 -> 0 | G60: =E60-D60 -> 0 | I60: aan-afkoppelen | J60: =SUM(G59:G64) -> 0 | L60: =IF(M60,"1",0) -> 0 | Q60: =N60-M60 -> 0 | R60: =P60-O60 -> 0
A61: 0 | F61: 0 | G61: 0 | L61: 0 | Q61: 0 | R61: 0
A62: 0 | F62: 0 | G62: 0 | I62: Totaal uren | J62: =J63+J64 -> 0 | L62: 0 | Q62: 0 | R62: 0
A63: 0 | F63: 0 | G63: 0 | I63: wachten instructie | J63: =SUM(Q59:Q68) -> 0 | L63: 0 | Q63: 0 | R63: 0
A64: 0 | F64: 0 | G64: 0 | I64: wachten koppelchauffeur | J64: =SUM(R59:R68) -> 0 | L64: 0 | Q64: 0 | R64: 0
A65: 0 | F65: 0 | G65: 0 | L65: 0 | Q65: 0 | R65: 0
A66: 0 | F66: 0 | G66: 0 | L66: 0 | Q66: 0 | R66: 0
A67: 0 | F67: 0 | G67: 0 | L67: 0 | Q67: 0 | R67: 0
A68: 0 | F68: 0 | G68: 0 | L68: 0 | Q68: 0 | R68: 0
B70: zaterdag 29-6-2019 | M70: =B70 -> zaterdag 29-6-2019
B71: Begintijd | C71: Eindtijd | D71: Begintijd | E71: Eindtijd | F71: tanken | G71: aan/afkoppelen | I71: Totaal uren | J71: =J72+J73 -> 0 | M71: Begintijd | N71: Eindtijd | O71: Begintijd | P71: Eindtijd | Q71: wachten instructie | R71: wachten koppelchauffeur
A72: =IF(B72,"1",0) -> 0 | F72: =C72-B72 -> 0 | G72: =E72-D72 -> 0 | I72: tanken | J72: =SUM(F72:F81) -> 0 | L72: =IF(M72,"1",0) -> 0 | Q72: =N72-M72 -> 0 | R72: =P72-O72 -> 0
A73: =IF(B73,"1",0) -> 0 | F73: =C73-B73 -> 0 | G73: =E73-D73 -> 0 | I73: aan-afkoppelen | J73: =SUM(G72:G81) -> 0 | L73: =IF(M73,"1",0) -> 0 | Q73: =N73-M73 -> 0 | R73: =P73-O73 -> 0
A74: 0 | F74: 0 | G74: 0 | L74: 0 | Q74: 0 | R74: 0
A75: 0 | F75: 0 | G75: 0 | I75: Totaal uren | J75: =J76+J77 -> 0 | L75: 0 | Q75: 0 | R75: 0
A76: 0 | F76: 0 | G76: 0 | I76: wachten instructie | J76: =SUM(Q72:Q81) -> 0 | L76: 0 | Q76: 0 | R76: 0
A77: 0 | F77: 0 | G77: 0 | I77: wachten koppelchauffeur | J77: =SUM(R72:R81) -> 0 | L77: 0 | Q77: 0 | R77: 0
A78: 0 | F78: 0 | G78: 0 | L78: 0 | Q78: 0 | R78: 0
A79: 0 | F79: 0 | G79: 0 | L79: 0 | Q79: 0 | R79: 0
A80: 0 | F80: 0 | G80: 0 | L80: 0 | Q80: 0 | R80: 0
A81: 0 | F81: 0 | G81: 0 | L81: 0 | Q81: 0 | R81: 0
B83: zondag 30-6-2019 | M83: =B83 -> zondag 30-6-2019
B84: Begintijd | C84: Eindtijd | D84: Begintijd | E84: Eindtijd | F84: tanken | G84: aan/afkoppelen | I84: Totaal uren | J84: =J85+J86 -> 0.02263888888 | M84: Begintijd | N84: Eindtijd | O84: Begintijd | P84: Eindtijd | Q84: wachten instructie | R84: wachten koppelchauffeur
A85: =IF(B85,"1",0) -> 0 | D85: 2015-06-29T08:49:54 | E85: 2015-06-29T09:00:23 | F85: =C85-B85 -> 0 | G85: =E85-D85 -> 0.007280092592 | I85: tanken | J85: =SUM(F85:F90) -> 0.01535879629 | L85: =IF(M85,"1",0) -> 0 | Q85: =N85-M85 -> 0 | R85: =P85-O85 -> 0
A86: =IF(B86,"1",0) -> 1 | B86: 2015-06-29T09:04:11 | C86: 2015-06-29T09:26:18 | F86: =C86-B86 -> 0.01535879629 | G86: =E86-D86 -> 0 | I86: aan-afkoppelen | J86: =SUM(G85:G90) -> 0.007280092592 | L86: =IF(M86,"1",0) -> 0 | Q86: 0 | R86: 0
A87: 0 | F87: 0 | G87: 0 | L87: 0 | Q87: 0 | R87: 0
A88: 0 | F88: 0 | G88: 0 | I88: Totaal uren | J88: =J89+J90 -> 0 | L88: 0 | Q88: 0 | R88: 0
A89: 0 | F89: 0 | G89: 0 | I89: wachten instructie | J89: =SUM(Q85:Q94) -> 0 | L89: 0 | Q89: 0 | R89: 0
A90: 0 | F90: 0 | G90: 0 | I90: wachten koppelchauffeur | J90: =SUM(R85:R94) -> 0 | L90: 0 | Q90: 0 | R90: 0
A91: 0 | F91: 0 | G91: 0 | L91: 0 | Q91: 0 | R91: 0
A92: 0 | F92: 0 | G92: 0 | L92: 0 | Q92: 0 | R92: 0
A93: 0 | F93: 0 | G93: 0 | L93: 0 | Q93: 0 | R93: 0
A94: 0 | F94: 0 | G94: 0 | L94: 0 | Q94: 0 | R94: 0
I96: tanken | J96: =J85+J72+J59+J46+J33+J20+J7 -> 0.03407407407
I98: aan-afkoppelen | J98: =J86+J73+J60+J47+J34+J21+J8 -> 0.01775462963
I100: Totaal uren | J100: =J98+J96 -> 0.0518287037
I103: wachten instructie | J103: =J89+J76+J63+J50+J37+J24+J11 -> 0.1478356482
I105: wachten koppelchauffeur | J105: =J90+J77+J64+J51+J38+J25+J12 -> 0.02415509259
I107: Totaal uren | J107: =J105+J103 -> 0.1719907407
B110: Einde dag-taken week 26

Sheet Dag-taken week (27) (hidden)
B1: Dag-taken week 27 | M1: =B1 -> Dag-taken week 27
B2: tanken | D2: aan/afkoppelen | F2: Totaal | G2: =Q2 -> Tijden | M2: wachten instructie | O2: wachten koppelchauffeur | Q2: Tijden
B5: maandag 01-7-2019 | M5: =B5 -> maandag 01-7-2019
B6: Begintijd | C6: Eindtijd | D6: Begintijd | E6: Eindtijd | F6: tanken | G6: aan/afkoppelen | I6: Totaal uren | J6: =J7+J8 -> 0.01434027778 | M6: Begintijd | N6: Eindtijd | O6: Begintijd | P6: Eindtijd | Q6: wachten instructie | R6: wachten koppelchauffeur
A7: =IF(B7,"1",0) -> 1 | B7: 2015-07-01T04:33:07 | C7: 2015-07-01T04:53:46 | F7: =C7-B7 -> 0.01434027778 | G7: =E7-D7 -> 0 | I7: tanken | J7: =SUM(F7:F12) -> 0.01434027778 | L7: =IF(M7,"1",0) -> 0 | Q7: =N7-M7 -> 0 | R7: =P7-O7 -> 0
A8: =IF(B8,"1",0) -> 0 | F8: =C8-B8 -> 0 | G8: =E8-D8 -> 0 | I8: aan-afkoppelen | J8: =SUM(G7:G12) -> 0 | L8: 0 | Q8: =N8-M8 -> 0 | R8: =P8-O8 -> 0
A9: 0 | F9: 0 | G9: 0 | L9: 0 | Q9: 0 | R9: 0
A10: 0 | F10: 0 | G10: 0 | I10: Totaal uren | J10: =J11+J12 -> 0 | L10: 0 | Q10: 0 | R10: 0
A11: 0 | F11: 0 | G11: 0 | I11: wachten instructie | J11: =SUM(Q7:Q16) -> 0 | L11: 0 | Q11: 0 | R11: 0
A12: 0 | F12: 0 | G12: 0 | I12: wachten koppelchauffeur | J12: =SUM(R7:R16) -> 0 | L12: 0 | Q12: 0 | R12: 0
A13: 0 | F13: 0 | G13: 0 | L13: 0 | Q13: 0 | R13: 0
A14: 0 | F14: 0 | G14: 0 | L14: 0 | Q14: 0 | R14: 0
A15: 0 | F15: 0 | G15: 0 | L15: 0 | Q15: 0 | R15: 0
A16: 0 | F16: 0 | G16: 0 | L16: 0 | Q16: 0 | R16: 0
B18: dinsdag 02-7-2019 | M18: =B18 -> dinsdag 02-7-2019
B19: Begintijd | C19: Eindtijd | D19: Begintijd | E19: Eindtijd | F19: tanken | G19: aan/afkoppelen | I19: Totaal uren | J19: =J20+J21 -> 0 | M19: Begintijd | N19: Eindtijd | O19: Begintijd | P19: Eindtijd | Q19: wachten instructie | R19: wachten koppelchauffeur
A20: =IF(B20,"1",0) -> 0 | F20: =C20-B20 -> 0 | G20: =E20-D20 -> 0 | I20: tanken | J20: =SUM(F20:F29) -> 0 | L20: =IF(M20,"1",0) -> 0 | Q20: =N20-M20 -> 0 | R20: =R7 -> 0
A21: =IF(B21,"1",0) -> 0 | F21: =C21-B21 -> 0 | G21: =E21-D21 -> 0 | I21: aan-afkoppelen | J21: =SUM(G20:G29) -> 0 | L21: =IF(M21,"1",0) -> 0 | Q21: 0 | R21: 0
A22: 0 | F22: 0 | G22: 0 | L22: 0 | Q22: 0 | R22: 0
A23: 0 | F23: 0 | G23: 0 | I23: Totaal uren | J23: =J24+J25 -> 0 | L23: 0 | Q23: 0 | R23: 0
A24: 0 | F24: 0 | G24: 0 | I24: wachten instructie | J24: =SUM(Q20:Q29) -> 0 | L24: 0 | Q24: 0 | R24: 0
A25: 0 | F25: 0 | G25: 0 | I25: wachten koppelchauffeur | J25: =SUM(R20:R29) -> 0 | L25: 0 | Q25: 0 | R25: 0
A26: 0 | F26: 0 | G26: 0 | L26: 0 | Q26: 0 | R26: 0
A27: 0 | F27: 0 | G27: 0 | L27: 0 | Q27: 0 | R27: 0
A28: 0 | F28: 0 | G28: 0 | L28: 0 | Q28: 0 | R28: 0
A29: 0 | F29: 0 | G29: 0 | L29: 0 | Q29: =Q16 -> 0 | R29: =R16 -> 0
B31: woensdag 03-7-2019 | M31: =B31 -> woensdag 03-7-2019
B32: Begintijd | C32: Eindtijd | D32: Begintijd | E32: Eindtijd | F32: tanken | G32: aan/afkoppelen | I32: Totaal uren | J32: =J33+J34 -> 0 | M32: Begintijd | N32: Eindtijd | O32: Begintijd | P32: Eindtijd | Q32: wachten instructie | R32: wachten koppelchauffeur
A33: =IF(M46,"1",0) -> 0 | F33: =C33-B33 -> 0 | G33: =E33-D33 -> 0 | I33: tanken | J33: =SUM(F33:F38) -> 0 | L33: 1 | Q33: 0 | R33: =N33-M33 -> 0
A34: =IF(B34,"1",0) -> 0 | F34: 0 | G34: =E34-D34 -> 0 | I34: aan-afkoppelen | J34: =SUM(G33:G38) -> 0 | L34: =IF(M34,"1",0) -> 0 | Q34: 0 | R34: 0
A35: 0 | F35: 0 | G35: 0 | L35: 0 | Q35: 0 | R35: 0
A36: 0 | F36: 0 | G36: 0 | I36: Totaal uren | J36: =J37+J38 -> 0 | L36: 0 | Q36: 0 | R36: 0
A37: 0 | F37: 0 | G37: 0 | I37: wachten instructie | J37: =SUM(Q33:Q42) -> 0 | L37: 0 | Q37: 0 | R37: 0
A38: 0 | F38: 0 | G38: 0 | I38: wachten koppelchauffeur | J38: =SUM(R33:R42) -> 0 | L38: 0 | Q38: 0 | R38: 0
A39: 0 | F39: 0 | G39: 0 | L39: 0 | Q39: 0 | R39: 0
A40: 0 | F40: 0 | G40: 0 | L40: 0 | Q40: 0 | R40: 0
A41: 0 | F41: 0 | G41: 0 | L41: 0 | Q41: 0 | R41: 0
A42: 0 | F42: 0 | G42: 0 | L42: 0 | Q42: 0 | R42: 0
B44: donderdag 04-7-2019 | M44: =B44 -> donderdag 04-7-2019
B45: Begintijd | C45: Eindtijd | D45: Begintijd | E45: Eindtijd | F45: tanken | G45: aan/afkoppelen | I45: Totaal uren | J45: =J46+J47 -> 0 | M45: Begintijd | N45: Eindtijd | O45: Begintijd | P45: Eindtijd | Q45: wachten instructie | R45: wachten koppelchauffeur
A46: =IF(B46,"1",0) -> 0 | F46: =C46-B46 -> 0 | G46: =E46-D46 -> 0 | I46: tanken | J46: =SUM(F46:F55) -> 0 | L46: =IF(M46,"1",0) -> 0 | Q46: =N46-M46 -> 0 | R46: =P46-O46 -> 0
A47: =IF(B47,"1",0) -> 0 | F47: =C47-B47 -> 0 | G47: =E47-D47 -> 0 | I47: aan-afkoppelen | J47: =SUM(G46:G55) -> 0 | L47: 0 | Q47: =N47-M47 -> 0 | R47: =P47-O47 -> 0
A48: 0 | F48: 0 | G48: 0 | L48: 0 | Q48: 0 | R48: 0
A49: 0 | F49: 0 | G49: 0 | I49: Totaal uren | J49: =J50+J51 -> 0 | L49: 0 | Q49: 0 | R49: 0
A50: 0 | F50: 0 | G50: 0 | I50: wachten instructie | J50: =SUM(Q46:Q55) -> 0 | L50: 0 | Q50: 0 | R50: 0
A51: 0 | F51: 0 | G51: 0 | I51: wachten koppelchauffeur | J51: =SUM(R46:R55) -> 0 | L51: 0 | Q51: 0 | R51: 0
A52: 0 | F52: 0 | G52: 0 | L52: 0 | Q52: 0 | R52: 0
A53: 0 | F53: 0 | G53: 0 | L53: 0 | Q53: 0 | R53: 0
A54: 0 | F54: 0 | G54: 0 | L54: 0 | Q54: 0 | R54: 0
A55: 0 | F55: 0 | G55: 0 | L55: 0 | Q55: 0 | R55: 0
B57: vrijdag 05-7-2019 | M57: =B57 -> vrijdag 05-7-2019
B58: Begintijd | C58: Eindtijd | D58: Begintijd | E58: Eindtijd | F58: tanken | G58: aan/afkoppelen | I58: Totaal uren | J58: =J59+J60 -> 0.01734953703 | M58: Begintijd | N58: Eindtijd | O58: Begintijd | P58: Eindtijd | Q58: wachten instructie | R58: wachten koppelchauffeur
A59: =IF(B59,"1",0) -> 1 | B59: 2015-07-04T03:10:22 | C59: 2015-07-04T03:35:21 | F59: =C59-B59 -> 0.01734953703 | G59: =E59-D59 -> 0 | I59: tanken | J59: =SUM(F59:F64) -> 0.01734953703 | L59: =IF(M59,"1",0) -> 0 | Q59: =N59-M59 -> 0 | R59: =P59-O59 -> 0
A60: =IF(B60,"1",0) -> 0 | F60: =C60-B60 -> 0 | G60: =E60-D60 -> 0 | I60: aan-afkoppelen | J60: =SUM(G59:G64) -> 0 | L60: =IF(M60,"1",0) -> 0 | Q60: =N60-M60 -> 0 | R60: =P60-O60 -> 0
A61: 0 | F61: 0 | G61: 0 | L61: 0 | Q61: 0 | R61: 0
A62: 0 | F62: 0 | G62: 0 | I62: Totaal uren | J62: =J63+J64 -> 0 | L62: 0 | Q62: 0 | R62: 0
A63: 0 | F63: 0 | G63: 0 | I63: wachten instructie | J63: =SUM(Q59:Q68) -> 0 | L63: 0 | Q63: 0 | R63: 0
A64: 0 | F64: 0 | G64: 0 | I64: wachten koppelchauffeur | J64: =SUM(R59:R68) -> 0 | L64: 0 | Q64: 0 | R64: 0
A65: 0 | F65: 0 | G65: 0 | L65: 0 | Q65: 0 | R65: 0
A66: 0 | F66: 0 | G66: 0 | L66: 0 | Q66: 0 | R66: 0
A67: 0 | F67: 0 | G67: 0 | L67: 0 | Q67: 0 | R67: 0
A68: 0 | F68: 0 | G68: 0 | L68: 0 | Q68: 0 | R68: 0
B70: zaterdag 06-7-2019 | M70: =B70 -> zaterdag 06-7-2019
B71: Begintijd | C71: Eindtijd | D71: Begintijd | E71: Eindtijd | F71: tanken | G71: aan/afkoppelen | I71: Totaal uren | J71: =J72+J73 -> 0 | M71: Begintijd | N71: Eindtijd | O71: Begintijd | P71: Eindtijd | Q71: wachten instructie | R71: wachten koppelchauffeur
A72: =IF(B72,"1",0) -> 0 | F72: =C72-B72 -> 0 | G72: =E72-D72 -> 0 | I72: tanken | J72: =SUM(F72:F81) -> 0 | L72: =IF(M72,"1",0) -> 0 | Q72: =N72-M72 -> 0 | R72: =P72-O72 -> 0
A73: =IF(B73,"1",0) -> 0 | F73: =C73-B73 -> 0 | G73: =E73-D73 -> 0 | I73: aan-afkoppelen | J73: =SUM(G72:G81) -> 0 | L73: =IF(M73,"1",0) -> 0 | Q73: =N73-M73 -> 0 | R73: =P73-O73 -> 0
A74: 0 | F74: 0 | G74: 0 | L74: 0 | Q74: 0 | R74: 0
A75: 0 | F75: 0 | G75: 0 | I75: Totaal uren | J75: =J76+J77 -> 0 | L75: 0 | Q75: 0 | R75: 0
A76: 0 | F76: 0 | G76: 0 | I76: wachten instructie | J76: =SUM(Q72:Q81) -> 0 | L76: 0 | Q76: 0 | R76: 0
A77: 0 | F77: 0 | G77: 0 | I77: wachten koppelchauffeur | J77: =SUM(R72:R81) -> 0 | L77: 0 | Q77: 0 | R77: 0
A78: 0 | F78: 0 | G78: 0 | L78: 0 | Q78: 0 | R78: 0
A79: 0 | F79: 0 | G79: 0 | L79: 0 | Q79: 0 | R79: 0
A80: 0 | F80: 0 | G80: 0 | L80: 0 | Q80: 0 | R80: 0
A81: 0 | F81: 0 | G81: 0 | L81: 0 | Q81: 0 | R81: 0
B83: zondag 07-7-2019 | M83: =B83 -> zondag 07-7-2019
B84: Begintijd | C84: Eindtijd | D84: Begintijd | E84: Eindtijd | F84: tanken | G84: aan/afkoppelen | I84: Totaal uren | J84: =J85+J86 -> 0.005115740736 | M84: Begintijd | N84: Eindtijd | O84: Begintijd | P84: Eindtijd | Q84: wachten instructie | R84: wachten koppelchauffeur
A85: =IF(B85,"1",0) -> 1 | B85: 2015-07-06T09:37:26 | C85: 2015-07-06T09:44:48 | F85: =C85-B85 -> 0.005115740736 | G85: =E85-D85 -> 0 | I85: tanken | J85: =SUM(F85:F90) -> 0.005115740736 | L85: =IF(M85,"1",0) -> 0 | Q85: =N85-M85 -> 0 | R85: =P85-O85 -> 0
A86: =IF(B86,"1",0) -> 0 | F86: =C86-B86 -> 0 | G86: =E86-D86 -> 0 | I86: aan-afkoppelen | J86: =SUM(G85:G90) -> 0 | L86: =IF(M86,"1",0) -> 0 | Q86: 0 | R86: 0
A87: 0 | F87: 0 | G87: 0 | L87: 0 | Q87: 0 | R87: 0
A88: 0 | F88: 0 | G88: 0 | I88: Totaal uren | J88: =J89+J90 -> 0 | L88: 0 | Q88: 0 | R88: 0
A89: 0 | F89: 0 | G89: 0 | I89: wachten instructie | J89: =SUM(Q85:Q94) -> 0 | L89: 0 | Q89: 0 | R89: 0
A90: 0 | F90: 0 | G90: 0 | I90: wachten koppelchauffeur | J90: =SUM(R85:R94) -> 0 | L90: 0 | Q90: 0 | R90: 0
A91: 0 | F91: 0 | G91: 0 | L91: 0 | Q91: 0 | R91: 0
A92: 0 | F92: 0 | G92: 0 | L92: 0 | Q92: 0 | R92: 0
A93: 0 | F93: 0 | G93: 0 | L93: 0 | Q93: 0 | R93: 0
A94: 0 | F94: 0 | G94: 0 | L94: 0 | Q94: 0 | R94: 0
I96: tanken | J96: =J85+J72+J59+J46+J33+J20+J7 -> 0.03680555555
I98: aan-afkoppelen | J98: =J86+J73+J60+J47+J34+J21+J8 -> 0
I100: Totaal uren | J100: =J98+J96 -> 0.03680555555
I103: wachten instructie | J103: =J89+J76+J63+J50+J37+J24+J11 -> 0
I105: wachten koppelchauffeur | J105: =J90+J77+J64+J51+J38+J25+J12 -> 0
I107: Totaal uren | J107: =J105+J103 -> 0
B110: Einde dag-taken week 27

Sheet Dag-taken week (28) (hidden)
B1: Dag-taken week 28 | M1: =B1 -> Dag-taken week 28
B2: tanken | D2: aan/afkoppelen | F2: Totaal | G2: =Q2 -> Tijden | M2: wachten instructie | O2: wachten koppelchauffeur | Q2: Tijden
B5: maandag 08-7-2019 | M5: =B5 -> maandag 08-7-2019
B6: Begintijd | C6: Eindtijd | D6: Begintijd | E6: Eindtijd | F6: tanken | G6: aan/afkoppelen | I6: Totaal uren | J6: =J7+J8 -> 0.01153935185 | M6: Begintijd | N6: Eindtijd | O6: Begintijd | P6: Eindtijd | Q6: wachten instructie | R6: wachten koppelchauffeur
A7: =IF(B7,"1",0) -> 1 | B7: 2015-07-07T13:06:39 | C7: 2015-07-07T13:17:38 | D7: 2015-07-07T14:25:01 | E7: 2015-07-07T14:30:39 | F7: =C7-B7 -> 0.007627314815 | G7: =E7-D7 -> 0.003912037035 | I7: tanken | J7: =SUM(F7:F12) -> 0.007627314815 | L7: =IF(M7,"1",0) -> 0 | Q7: =N7-M7 -> 0 | R7: =P7-O7 -> 0
A8: =IF(B8,"1",0) -> 0 | F8: =C8-B8 -> 0 | G8: =E8-D8 -> 0 | I8: aan-afkoppelen | J8: =SUM(G7:G12) -> 0.003912037035 | L8: 0 | Q8: =N8-M8 -> 0 | R8: =P8-O8 -> 0
A9: 0 | F9: 0 | G9: 0 | L9: 0 | Q9: 0 | R9: 0
A10: 0 | F10: 0 | G10: 0 | I10: Totaal uren | J10: =J11+J12 -> 0 | L10: 0 | Q10: 0 | R10: 0
A11: 0 | F11: 0 | G11: 0 | I11: wachten instructie | J11: =SUM(Q7:Q16) -> 0 | L11: 0 | Q11: 0 | R11: 0
A12: 0 | F12: 0 | G12: 0 | I12: wachten koppelchauffeur | J12: =SUM(R7:R16) -> 0 | L12: 0 | Q12: 0 | R12: 0
A13: 0 | F13: 0 | G13: 0 | L13: 0 | Q13: 0 | R13: 0
A14: 0 | F14: 0 | G14: 0 | L14: 0 | Q14: 0 | R14: 0
A15: 0 | F15: 0 | G15: 0 | L15: 0 | Q15: 0 | R15: 0
A16: 0 | F16: 0 | G16: 0 | L16: 0 | Q16: 0 | R16: 0
B18: dinsdag 09-7-2019 | M18: =B18 -> dinsdag 09-7-2019
B19: Begintijd | C19: Eindtijd | D19: Begintijd | E19: Eindtijd | F19: tanken | G19: aan/afkoppelen | I19: Totaal uren | J19: =J20+J21 -> 0.01912037037 | M19: Begintijd | N19: Eindtijd | O19: Begintijd | P19: Eindtijd | Q19: wachten instructie | R19: wachten koppelchauffeur
A20: =IF(B20,"1",0) -> 1 | B20: 2015-07-08T04:41:58 | C20: 2015-07-08T04:48:57 | D20: 2015-07-08T04:52:24 | E20: 2015-07-08T05:12:57 | F20: =C20-B20 -> 0.004849537036 | G20: =E20-D20 -> 0.01427083334 | I20: tanken | J20: =SUM(F20:F29) -> 0.004849537036 | L20: =IF(M20,"1",0) -> 1 | M20: 2015-07-08T14:53:31 | N20: 2015-07-08T15:53:26 | Q20: =N20-M20 -> 0.04160879629 | R20: =R7 -> 0
A21: =IF(B21,"1",0) -> 0 | F21: =C21-B21 -> 0 | G21: =E21-D21 -> 0 | I21: aan-afkoppelen | J21: =SUM(G20:G29) -> 0.01427083334 | L21: =IF(M21,"1",0) -> 0 | Q21: 0 | R21: 0
A22: 0 | F22: 0 | G22: 0 | L22: 0 | Q22: 0 | R22: 0
A23: 0 | F23: 0 | G23: 0 | I23: Totaal uren | J23: =J24+J25 -> 0.04160879629 | L23: 0 | Q23: 0 | R23: 0
A24: 0 | F24: 0 | G24: 0 | I24: wachten instructie | J24: =SUM(Q20:Q29) -> 0.04160879629 | L24: 0 | Q24: 0 | R24: 0
A25: 0 | F25: 0 | G25: 0 | I25: wachten koppelchauffeur | J25: =SUM(R20:R29) -> 0 | L25: 0 | Q25: 0 | R25: 0
A26: 0 | F26: 0 | G26: 0 | L26: 0 | Q26: 0 | R26: 0
A27: 0 | F27: 0 | G27: 0 | L27: 0 | Q27: 0 | R27: 0
A28: 0 | F28: 0 | G28: 0 | J28: =J19+J23 -> 0.06072916667 | L28: 0 | Q28: 0 | R28: 0
A29: 0 | F29: 0 | G29: 0 | L29: 0 | Q29: =Q16 -> 0 | R29: =R16 -> 0
B31: woensdag 10-7-2019 | M31: =B31 -> woensdag 10-7-2019
B32: Begintijd | C32: Eindtijd | D32: Begintijd | E32: Eindtijd | F32: tanken | G32: aan/afkoppelen | I32: Totaal uren | J32: =J33+J34 -> 0.01346064814 | M32: Begintijd | N32: Eindtijd | O32: Begintijd | P32: Eindtijd | Q32: wachten instructie | R32: wachten koppelchauffeur
A33: =IF(M46,"1",0) -> 0 | B33: 2015-07-14T04:41:47 | C33: 2015-07-14T04:49:50 | D33: 2015-07-14T04:24:16 | E33: 2015-07-14T04:35:36 | F33: =C33-B33 -> 0.005590277775 | G33: =E33-D33 -> 0.007870370369 | I33: tanken | J33: =SUM(F33:F38) -> 0.005590277775 | L33: 1 | M33: 2015-07-09T10:25:50 | N33: 2015-07-09T11:25:41 | Q33: 0 | R33: =N33-M33 -> 0.0415625
A34: =IF(B34,"1",0) -> 0 | F34: 0 | G34: =E34-D34 -> 0 | I34: aan-afkoppelen | J34: =SUM(G33:G38) -> 0.007870370369 | L34: =IF(M34,"1",0) -> 0 | Q34: 0 | R34: 0
A35: 0 | F35: 0 | G35: 0 | L35: 0 | Q35: 0 | R35: 0
A36: 0 | F36: 0 | G36: 0 | I36: Totaal uren | J36: =J37+J38 -> 0.0415625 | L36: 0 | Q36: 0 | R36: 0
A37: 0 | F37: 0 | G37: 0 | I37: wachten instructie | J37: =SUM(Q33:Q42) -> 0 | L37: 0 | Q37: 0 | R37: 0
A38: 0 | F38: 0 | G38: 0 | I38: wachten koppelchauffeur | J38: =SUM(R33:R42) -> 0.0415625 | L38: 0 | Q38: 0 | R38: 0
A39: 0 | F39: 0 | G39: 0 | L39: 0 | Q39: 0 | R39: 0
A40: 0 | F40: 0 | G40: 0 | L40: 0 | Q40: 0 | R40: 0
A41: 0 | F41: 0 | G41: 0 | L41: 0 | Q41: 0 | R41: 0
A42: 0 | F42: 0 | G42: 0 | L42: 0 | Q42: 0 | R42: 0
B44: donderdag 11-7-2019 | M44: =B44 -> donderdag 11-7-2019
B45: Begintijd | C45: Eindtijd | D45: Begintijd | E45: Eindtijd | F45: tanken | G45: aan/afkoppelen | I45: Totaal uren | J45: =J46+J47 -> 0.04614583334 | M45: Begintijd | N45: Eindtijd | O45: Begintijd | P45: Eindtijd | Q45: wachten instructie | R45: wachten koppelchauffeur
A46: =IF(B46,"1",0) -> 1 | B46: 2015-07-10T06:41:47 | C46: 2015-07-10T06:56:39 | D46: 2015-07-10T06:08:03 | E46: 2015-07-10T06:38:26 | F46: =C46-B46 -> 0.01032407407 | G46: =E46-D46 -> 0.02109953704 | I46: tanken | J46: =SUM(F46:F55) -> 0.01032407407 | L46: =IF(M46,"1",0) -> 0 | Q46: =N46-M46 -> 0 | R46: =P46-O46 -> 0
A47: =IF(B47,"1",0) -> 0 | D47: 2015-07-10T15:21:26 | E47: 2015-07-10T15:33:00 | F47: =C47-B47 -> 0 | G47: =E47-D47 -> 0.008032407408 | I47: aan-afkoppelen | J47: =SUM(G46:G55) -> 0.03582175927 | L47: 0 | Q47: =N47-M47 -> 0 | R47: =P47-O47 -> 0
A48: 0 | D48: 2015-07-10T15:37:30 | E48: 2015-07-10T15:47:08 | F48: 0 | G48: 0.006689814814 | L48: 0 | Q48: 0 | R48: 0
A49: 0 | F49: 0 | G49: 0 | I49: Totaal uren | J49: =J50+J51 -> 0 | L49: 0 | Q49: 0 | R49: 0
A50: 0 | F50: 0 | G50: 0 | I50: wachten instructie | J50: =SUM(Q46:Q55) -> 0 | L50: 0 | Q50: 0 | R50: 0
A51: 0 | F51: 0 | G51: 0 | I51: wachten koppelchauffeur | J51: =SUM(R46:R55) -> 0 | L51: 0 | Q51: 0 | R51: 0
A52: 0 | F52: 0 | G52: 0 | L52: 0 | Q52: 0 | R52: 0
A53: 0 | F53: 0 | G53: 0 | L53: 0 | Q53: 0 | R53: 0
A54: 0 | F54: 0 | G54: 0 | L54: 0 | Q54: 0 | R54: 0
A55: 0 | F55: 0 | G55: 0 | L55: 0 | Q55: 0 | R55: 0
B57: vrijdag 12-7-2019 | M57: =B57 -> vrijdag 12-7-2019
B58: Begintijd | C58: Eindtijd | D58: Begintijd | E58: Eindtijd | F58: tanken | G58: aan/afkoppelen | I58: Totaal uren | J58: =J59+J60 -> 0.02201388889 | M58: Begintijd | N58: Eindtijd | O58: Begintijd | P58: Eindtijd | Q58: wachten instructie | R58: wachten koppelchauffeur
A59: =IF(B59,"1",0) -> 1 | B59: 2015-07-11T12:12:59 | C59: 2015-07-11T12:35:48 | D59: 2015-07-11T13:08:08 | E59: 2015-07-11T13:17:01 | F59: =C59-B59 -> 0.01584490741 | G59: =E59-D59 -> 0.006168981483 | I59: tanken | J59: =SUM(F59:F64) -> 0.01584490741 | L59: =IF(M59,"1",0) -> 0 | Q59: =N59-M59 -> 0 | R59: =P59-O59 -> 0
A60: =IF(B60,"1",0) -> 0 | F60: =C60-B60 -> 0 | G60: =E60-D60 -> 0 | I60: aan-afkoppelen | J60: =SUM(G59:G64) -> 0.006168981483 | L60: =IF(M60,"1",0) -> 0 | Q60: =N60-M60 -> 0 | R60: =P60-O60 -> 0
A61: 0 | F61: 0 | G61: 0 | L61: 0 | Q61: 0 | R61: 0
A62: 0 | F62: 0 | G62: 0 | I62: Totaal uren | J62: =J63+J64 -> 0 | L62: 0 | Q62: 0 | R62: 0
A63: 0 | F63: 0 | G63: 0 | I63: wachten instructie | J63: =SUM(Q59:Q68) -> 0 | L63: 0 | Q63: 0 | R63: 0
A64: 0 | F64: 0 | G64: 0 | I64: wachten koppelchauffeur | J64: =SUM(R59:R68) -> 0 | L64: 0 | Q64: 0 | R64: 0
A65: 0 | F65: 0 | G65: 0 | L65: 0 | Q65: 0 | R65: 0
A66: 0 | F66: 0 | G66: 0 | L66: 0 | Q66: 0 | R66: 0
A67: 0 | F67: 0 | G67: 0 | L67: 0 | Q67: 0 | R67: 0
A68: 0 | F68: 0 | G68: 0 | L68: 0 | Q68: 0 | R68: 0
B70: zaterdag 13-7-2019 | M70: =B70 -> zaterdag 13-7-2019
B71: Begintijd | C71: Eindtijd | D71: Begintijd | E71: Eindtijd | F71: tanken | G71: aan/afkoppelen | I71: Totaal uren | J71: =J72+J73 -> 0 | M71: Begintijd | N71: Eindtijd | O71: Begintijd | P71: Eindtijd | Q71: wachten instructie | R71: wachten koppelchauffeur
A72: =IF(B72,"1",0) -> 0 | F72: =C72-B72 -> 0 | G72: =E72-D72 -> 0 | I72: tanken | J72: =SUM(F72:F81) -> 0 | L72: =IF(M72,"1",0) -> 0 | Q72: =N72-M72 -> 0 | R72: =P72-O72 -> 0
A73: =IF(B73,"1",0) -> 0 | F73: =C73-B73 -> 0 | G73: =E73-D73 -> 0 | I73: aan-afkoppelen | J73: =SUM(G72:G81) -> 0 | L73: =IF(M73,"1",0) -> 0 | Q73: =N73-M73 -> 0 | R73: =P73-O73 -> 0
A74: 0 | F74: 0 | G74: 0 | L74: 0 | Q74: 0 | R74: 0
A75: 0 | F75: 0 | G75: 0 | I75: Totaal uren | J75: =J76+J77 -> 0 | L75: 0 | Q75: 0 | R75: 0
A76: 0 | F76: 0 | G76: 0 | I76: wachten instructie | J76: =SUM(Q72:Q81) -> 0 | L76: 0 | Q76: 0 | R76: 0
A77: 0 | F77: 0 | G77: 0 | I77: wachten koppelchauffeur | J77: =SUM(R72:R81) -> 0 | L77: 0 | Q77: 0 | R77: 0
A78: 0 | F78: 0 | G78: 0 | L78: 0 | Q78: 0 | R78: 0
A79: 0 | F79: 0 | G79: 0 | L79: 0 | Q79: 0 | R79: 0
A80: 0 | F80: 0 | G80: 0 | L80: 0 | Q80: 0 | R80: 0
A81: 0 | F81: 0 | G81: 0 | L81: 0 | Q81: 0 | R81: 0
B83: zondag 14-7-2019 | M83: =B83 -> zondag 14-7-2019
B84: Begintijd | C84: Eindtijd | D84: Begintijd | E84: Eindtijd | F84: tanken | G84: aan/afkoppelen | I84: Totaal uren | J84: =J85+J86 -> 0 | M84: Begintijd | N84: Eindtijd | O84: Begintijd | P84: Eindtijd | Q84: wachten instructie | R84: wachten koppelchauffeur
A85: =IF(B85,"1",0) -> 0 | F85: =C85-B85 -> 0 | G85: =E85-D85 -> 0 | I85: tanken | J85: =SUM(F85:F90) -> 0 | L85: =IF(M85,"1",0) -> 0 | Q85: =N85-M85 -> 0 | R85: =P85-O85 -> 0
A86: =IF(B86,"1",0) -> 0 | F86: =C86-B86 -> 0 | G86: =E86-D86 -> 0 | I86: aan-afkoppelen | J86: =SUM(G85:G90) -> 0 | L86: =IF(M86,"1",0) -> 0 | Q86: 0 | R86: 0
A87: 0 | F87: 0 | G87: 0 | L87: 0 | Q87: 0 | R87: 0
A88: 0 | F88: 0 | G88: 0 | I88: Totaal uren | J88: =J89+J90 -> 0 | L88: 0 | Q88: 0 | R88: 0
A89: 0 | F89: 0 | G89: 0 | I89: wachten instructie | J89: =SUM(Q85:Q94) -> 0 | L89: 0 | Q89: 0 | R89: 0
A90: 0 | F90: 0 | G90: 0 | I90: wachten koppelchauffeur | J90: =SUM(R85:R94) -> 0 | L90: 0 | Q90: 0 | R90: 0
A91: 0 | F91: 0 | G91: 0 | L91: 0 | Q91: 0 | R91: 0
A92: 0 | F92: 0 | G92: 0 | L92: 0 | Q92: 0 | R92: 0
A93: 0 | F93: 0 | G93: 0 | L93: 0 | Q93: 0 | R93: 0
A94: 0 | F94: 0 | G94: 0 | L94: 0 | Q94: 0 | R94: 0
I96: tanken | J96: =J85+J72+J59+J46+J33+J20+J7 -> 0.04423611111
I98: aan-afkoppelen | J98: =J86+J73+J60+J47+J34+J21+J8 -> 0.06804398149
I100: Totaal uren | J100: =J98+J96 -> 0.1122800926
I103: wachten instructie | J103: =J89+J76+J63+J50+J37+J24+J11 -> 0.04160879629
I105: wachten koppelchauffeur | J105: =J90+J77+J64+J51+J38+J25+J12 -> 0.0415625
I107: Totaal uren | J107: =J105+J103 -> 0.0831712963
B110: Einde dag-taken week 28

Sheet Landen (hidden)
B3: Belgie
B4: Nederland
B5: Luxemburg
B6: Frankrijk
B7: Italie
B8: Duitsland
B9: Engeland
B10: Ierland
B11: Spanje | D11: Spanje = | E11: An
B12: Portugal | E12: Ar
B13: Slowakije | E13: Ast
B14: Tsjechen | E14: C
B15: Hongarije | E15: Cat
B16: Zwitserland | E16: Cl
B17: Oosterijk | E17: Cm
B18: Polen | E18: Cv
B19: Litouwen | E19: Ext
B20: Estland | E20: G
B21: Letland | E21: Ib
B22: Denemarken | E22: Ic
B23: Zweden | E23: Lr
B24: Noorwegen | E24: M
B25: Finland | E25: Mu
B26: Roemenie | E26: Na
B27: Kroatie | E27: Pw
B28: Slovenie
B29: Griekenland
B30: Malta
B31: Bulgarije

Sheet Blad3 (hidden)
